Posting date,Supplier number,Supplier name,Expense type,Department,Amount
02/05/2023,1249077,The Advocacy Project,B*Voluntary-Spot-V Dep-Enhanced - do not u,ASC Procurement and Business Intelligenc," 51,294.00 "
01/04/2023,1248618,Riverside Echg,Payments to Voluntary bodies,ASC Procurement and Business Intelligenc," 31,500.00 "
04/05/2023,1243869,Addison Lee,HTM / Other Vehicle - Hire Charges,Adult Social Care Finance and Resources, 708.87 
06/06/2023,1243869,Addison Lee,HTM / Other Vehicle - Hire Charges,Adult Social Care Finance and Resources, 616.39 
18/05/2023,1293425,Storey Spaces Ltd,Hire of Accommodation and Facilities,Adult Social Care Finance and Resources," 1,404.80 "
12/06/2023,1243797,Central & North West London Nhs,Hired and Contracted Services,Adult Social Care Finance and Resources," 4,234.00 "
12/06/2023,1243797,Central & North West London Nhs,Hired and Contracted Services,Adult Social Care Finance and Resources," 4,234.00 "
12/06/2023,1243797,Central & North West London Nhs,Hired and Contracted Services,Adult Social Care Finance and Resources," 4,234.00 "
04/04/2023,1249029,Storing.Com Ltd,Other premises related costs,Adult Social Care Finance and Resources, 661.83 
02/05/2023,1249029,Storing.Com Ltd,Other premises related costs,Adult Social Care Finance and Resources, 619.58 
01/06/2023,1249029,Storing.Com Ltd,Other premises related costs,Adult Social Care Finance and Resources, 619.58 
14/04/2023,1245228,Pohwer,Hired and Contracted Services,Adult Social Care Finance and Resources," 2,281.40 "
20/06/2023,1245228,Pohwer,Hired and Contracted Services,Adult Social Care Finance and Resources," 1,647.75 "
20/06/2023,1245228,Pohwer,Hired and Contracted Services,Adult Social Care Finance and Resources, 886.65 
07/06/2023,1307441,PERSONAL PAYMENTS,Hired and Contracted Services (Curricul,Adult Social Care Finance and Resources," 3,477.00 "
22/05/2023,1289656,Local Gov't and Social care Ombudsm,Training related expenditure,Adult Social Care Finance and Resources," 1,000.00 "
04/04/2023,1243774,Royal Borough of Kensington &,B*Payments to OLAs - Portsmouth City Coun,Adult Social Care Finance and Resources," 56,009.04 "
12/04/2023,1245706,London Borough Of Merton,Equipment,Adult Social Care Operations," 4,267.00 "
26/04/2023,1290804,Doro Care UK Ltd,###,Bi-Borough Director of Integrated Care," 2,456.00 "
22/05/2023,1290804,Doro Care UK Ltd,###,Bi-Borough Director of Integrated Care, 700.00 
22/05/2023,1290804,Doro Care UK Ltd,###,Bi-Borough Director of Integrated Care," 18,900.00 "
25/05/2023,1290804,Doro Care UK Ltd,###,Bi-Borough Director of Integrated Care," 2,436.00 "
01/06/2023,1244670,Just Checking Ltd,###,Bi-Borough Director of Integrated Care," 1,420.42 "
20/04/2023,1292281,The Community Housing Group Limited,Hired and Contracted Services,Bi-Borough Director of Integrated Care, 856.35 
09/05/2023,1292281,The Community Housing Group Limited,Hired and Contracted Services,Bi-Borough Director of Integrated Care," 24,145.68 "
05/06/2023,1292281,The Community Housing Group Limited,Hired and Contracted Services,Bi-Borough Director of Integrated Care," 5,576.34 "
15/06/2023,1292281,The Community Housing Group Limited,Hired and Contracted Services,Bi-Borough Director of Integrated Care," 7,005.93 "
19/04/2023,1246138,Tunstall Healthcare (UK) Ltd (Use,###,Bi-Borough Director of Integrated Care, 728.00 
11/04/2023,1273817,GCH Alan Morkill House Ltd,Hired and Contracted Services,Bi-Borough Director of Integrated Care," 2,379,052.00 "
13/04/2023,1273817,GCH Alan Morkill House Ltd,Hired and Contracted Services,Bi-Borough Director of Integrated Care," 950,000.00 "
29/06/2023,1243481,Gold Care Homes Ltd,Staff - Basic Pay,Bi-Borough Director of Integrated Care," 2,210,049.00 "
25/05/2023,1245563,Sharpe Pritchard,Legal Costs,Bi-Borough Director of Integrated Care," 4,924.00 "
16/06/2023,1245563,Sharpe Pritchard,Legal Costs,Bi-Borough Director of Integrated Care," 5,541.50 "
02/05/2023,1292095,365 Care Solutions Ltd,,Bi-Borough Director of Integrated Care," 8,125.71 "
02/05/2023,1292095,365 Care Solutions Ltd,,Bi-Borough Director of Integrated Care," 9,420.00 "
24/05/2023,1292095,365 Care Solutions Ltd,,Bi-Borough Director of Integrated Care," 9,480.00 "
24/05/2023,1292095,365 Care Solutions Ltd,,Bi-Borough Director of Integrated Care," 10,990.00 "
21/06/2023,1292095,365 Care Solutions Ltd,,Bi-Borough Director of Integrated Care," 9,480.00 "
21/06/2023,1292095,365 Care Solutions Ltd,,Bi-Borough Director of Integrated Care," 10,990.00 "
02/05/2023,1255843,A.I. Care Services Ltd,,Bi-Borough Director of Integrated Care, 569.28 
02/05/2023,1255843,A.I. Care Services Ltd,,Bi-Borough Director of Integrated Care," 6,903.36 "
30/05/2023,1255843,A.I. Care Services Ltd,,Bi-Borough Director of Integrated Care," 7,454.32 "
30/05/2023,1255843,A.I. Care Services Ltd,,Bi-Borough Director of Integrated Care, 614.72 
22/06/2023,1255843,A.I. Care Services Ltd,,Bi-Borough Director of Integrated Care, 614.72 
22/06/2023,1255843,A.I. Care Services Ltd,,Bi-Borough Director of Integrated Care," 7,454.32 "
02/05/2023,1245929,The Regard Partnership Ltd,,Bi-Borough Director of Integrated Care," 13,078.22 "
02/05/2023,1245929,The Regard Partnership Ltd,,Bi-Borough Director of Integrated Care," 8,368.11 "
24/05/2023,1245929,The Regard Partnership Ltd,,Bi-Borough Director of Integrated Care," 9,762.80 "
24/05/2023,1245929,The Regard Partnership Ltd,,Bi-Borough Director of Integrated Care," 15,257.92 "
21/06/2023,1245929,The Regard Partnership Ltd,,Bi-Borough Director of Integrated Care," 11,666.56 "
21/06/2023,1245929,The Regard Partnership Ltd,,Bi-Borough Director of Integrated Care," 15,257.92 "
02/05/2023,1271174,ASPECTS 2 LIMITED,,Bi-Borough Director of Integrated Care," 3,637.20 "
02/05/2023,1271174,ASPECTS 2 LIMITED,,Bi-Borough Director of Integrated Care," 3,637.20 "
24/05/2023,1271174,ASPECTS 2 LIMITED,,Bi-Borough Director of Integrated Care," 4,243.40 "
24/05/2023,1271174,ASPECTS 2 LIMITED,,Bi-Borough Director of Integrated Care," 4,243.40 "
21/06/2023,1271174,ASPECTS 2 LIMITED,,Bi-Borough Director of Integrated Care," 4,243.40 "
21/06/2023,1271174,ASPECTS 2 LIMITED,,Bi-Borough Director of Integrated Care," 4,243.40 "
02/05/2023,1243851,Accomplish Group Ltd,,Bi-Borough Director of Integrated Care," 7,837.47 "
02/05/2023,1243851,Accomplish Group Ltd,,Bi-Borough Director of Integrated Care," 7,837.47 "
24/05/2023,1243851,Accomplish Group Ltd,,Bi-Borough Director of Integrated Care," 9,143.72 "
24/05/2023,1243851,Accomplish Group Ltd,,Bi-Borough Director of Integrated Care," 9,143.72 "
21/06/2023,1243851,Accomplish Group Ltd,,Bi-Borough Director of Integrated Care," 9,143.72 "
21/06/2023,1243851,Accomplish Group Ltd,,Bi-Borough Director of Integrated Care," 9,143.72 "
02/05/2023,1243435,Acorn Village,,Bi-Borough Director of Integrated Care," 6,375.43 "
24/05/2023,1243435,Acorn Village,,Bi-Borough Director of Integrated Care," 7,438.00 "
21/06/2023,1243435,Acorn Village,,Bi-Borough Director of Integrated Care," 7,438.00 "
22/05/2023,1243931,Ashbourne Healthcare Services,,Bi-Borough Director of Integrated Care," 3,874.00 "
02/05/2023,1243942,Aspens Charities,,Bi-Borough Director of Integrated Care," 6,000.00 "
24/05/2023,1243942,Aspens Charities,,Bi-Borough Director of Integrated Care," 7,000.00 "
21/06/2023,1243942,Aspens Charities,,Bi-Borough Director of Integrated Care," 8,365.00 "
02/05/2023,1243961,Autism Anglia,,Bi-Borough Director of Integrated Care," 9,123.43 "
24/05/2023,1243961,Autism Anglia,,Bi-Borough Director of Integrated Care," 10,644.00 "
21/06/2023,1243961,Autism Anglia,,Bi-Borough Director of Integrated Care," 10,644.00 "
02/05/2023,1243445,Broadstreet House Limited,,Bi-Borough Director of Integrated Care," 3,688.49 "
24/05/2023,1243445,Broadstreet House Limited,,Bi-Borough Director of Integrated Care," 4,841.17 "
21/06/2023,1243445,Broadstreet House Limited,,Bi-Borough Director of Integrated Care," 4,604.48 "
02/05/2023,1246286,Brunswick Supported Living,,Bi-Borough Director of Integrated Care," 1,126.83 "
02/05/2023,1246286,Brunswick Supported Living,,Bi-Borough Director of Integrated Care," 1,126.83 "
24/05/2023,1246286,Brunswick Supported Living,,Bi-Borough Director of Integrated Care," 1,314.64 "
24/05/2023,1246286,Brunswick Supported Living,,Bi-Borough Director of Integrated Care," 1,314.64 "
21/06/2023,1246286,Brunswick Supported Living,,Bi-Borough Director of Integrated Care," 1,314.64 "
21/06/2023,1246286,Brunswick Supported Living,,Bi-Borough Director of Integrated Care," 1,314.64 "
18/05/2023,1302645,CENTRE 404,B*Voluntary-Spot-V Dep-Enhanced - do not u,Bi-Borough Director of Integrated Care, 717.50 
18/05/2023,1302645,CENTRE 404,B*Voluntary-Spot-V Dep-Enhanced - do not u,Bi-Borough Director of Integrated Care, 922.50 
18/05/2023,1302645,CENTRE 404,B*Voluntary-Spot-V Dep-Enhanced - do not u,Bi-Borough Director of Integrated Care, 820.00 
18/05/2023,1302645,CENTRE 404,B*Voluntary-Spot-V Dep-Enhanced - do not u,Bi-Borough Director of Integrated Care, 615.00 
18/05/2023,1302645,CENTRE 404,B*Voluntary-Spot-V Dep-Enhanced - do not u,Bi-Borough Director of Integrated Care, 820.00 
18/05/2023,1302645,CENTRE 404,B*Voluntary-Spot-V Dep-Enhanced - do not u,Bi-Borough Director of Integrated Care, 820.00 
02/05/2023,1273390,CHILTERN SUPPORT & HOUSING LTD,,Bi-Borough Director of Integrated Care," 14,174.33 "
24/05/2023,1273390,CHILTERN SUPPORT & HOUSING LTD,,Bi-Borough Director of Integrated Care," 16,536.72 "
21/06/2023,1273390,CHILTERN SUPPORT & HOUSING LTD,,Bi-Borough Director of Integrated Care," 16,536.72 "
02/05/2023,1244092,Cambrian Learning Disabilities Ltd,,Bi-Borough Director of Integrated Care," 5,223.43 "
24/05/2023,1244092,Cambrian Learning Disabilities Ltd,,Bi-Borough Director of Integrated Care," 6,094.00 "
21/06/2023,1244092,Cambrian Learning Disabilities Ltd,,Bi-Borough Director of Integrated Care," 6,094.00 "
02/05/2023,1246321,Camphill Village Trust,,Bi-Borough Director of Integrated Care," 3,412.35 "
24/05/2023,1246321,Camphill Village Trust,,Bi-Borough Director of Integrated Care," 3,981.08 "
21/06/2023,1246321,Camphill Village Trust,,Bi-Borough Director of Integrated Care," 4,535.55 "
02/05/2023,1246324,Candour Care Services (Broadview),,Bi-Borough Director of Integrated Care," 6,372.79 "
24/05/2023,1246324,Candour Care Services (Broadview),,Bi-Borough Director of Integrated Care," 7,434.92 "
21/06/2023,1246324,Candour Care Services (Broadview),,Bi-Borough Director of Integrated Care," 7,434.92 "
02/05/2023,1246327,Canterbury Oast Trust Ltd,,Bi-Borough Director of Integrated Care," 1,154.40 "
24/05/2023,1246327,Canterbury Oast Trust Ltd,,Bi-Borough Director of Integrated Care," 1,346.80 "
21/06/2023,1246327,Canterbury Oast Trust Ltd,,Bi-Borough Director of Integrated Care," 1,346.80 "
02/05/2023,1246339,Caretech Community Services Ltd,,Bi-Borough Director of Integrated Care," 5,848.59 "
02/05/2023,1246339,Caretech Community Services Ltd,,Bi-Borough Director of Integrated Care," 4,038.14 "
02/05/2023,1246339,Caretech Community Services Ltd,,Bi-Borough Director of Integrated Care," 4,038.14 "
24/05/2023,1246339,Caretech Community Services Ltd,,Bi-Borough Director of Integrated Care," 6,823.36 "
24/05/2023,1246339,Caretech Community Services Ltd,,Bi-Borough Director of Integrated Care," 4,711.16 "
24/05/2023,1246339,Caretech Community Services Ltd,,Bi-Borough Director of Integrated Care," 4,711.16 "
21/06/2023,1246339,Caretech Community Services Ltd,,Bi-Borough Director of Integrated Care," 6,823.36 "
21/06/2023,1246339,Caretech Community Services Ltd,,Bi-Borough Director of Integrated Care," 4,711.16 "
21/06/2023,1246339,Caretech Community Services Ltd,,Bi-Borough Director of Integrated Care," 4,711.16 "
24/05/2023,1246349,Caxton Youth Organisation,B*Distric Council non fee related servi,Bi-Borough Director of Integrated Care, 650.00 
24/05/2023,1246349,Caxton Youth Organisation,B*Distric Council non fee related servi,Bi-Borough Director of Integrated Care, 650.00 
24/05/2023,1246349,Caxton Youth Organisation,B*Distric Council non fee related servi,Bi-Borough Director of Integrated Care, 650.00 
02/05/2023,1276470,Certitude (Support for Living),,Bi-Borough Director of Integrated Care," 3,847.99 "
02/05/2023,1276470,Certitude (Support for Living),,Bi-Borough Director of Integrated Care," 4,988.13 "
02/05/2023,1276470,Certitude (Support for Living),,Bi-Borough Director of Integrated Care," 4,988.13 "
02/05/2023,1276470,Certitude (Support for Living),,Bi-Borough Director of Integrated Care," 3,648.79 "
02/05/2023,1276470,Certitude (Support for Living),,Bi-Borough Director of Integrated Care," 14,780.16 "
02/05/2023,1276470,Certitude (Support for Living),,Bi-Borough Director of Integrated Care," 11,132.61 "
02/05/2023,1276470,Certitude (Support for Living),,Bi-Borough Director of Integrated Care," 7,360.53 "
02/05/2023,1276470,Certitude (Support for Living),,Bi-Borough Director of Integrated Care," 10,524.65 "
02/05/2023,1276470,Certitude (Support for Living),,Bi-Borough Director of Integrated Care," 1,973.42 "
02/05/2023,1276470,Certitude (Support for Living),,Bi-Borough Director of Integrated Care," 4,604.64 "
24/05/2023,1276470,Certitude (Support for Living),,Bi-Borough Director of Integrated Care," 12,988.04 "
24/05/2023,1276470,Certitude (Support for Living),,Bi-Borough Director of Integrated Care," 5,372.08 "
24/05/2023,1276470,Certitude (Support for Living),,Bi-Borough Director of Integrated Care," 2,302.32 "
24/05/2023,1276470,Certitude (Support for Living),,Bi-Borough Director of Integrated Care," 8,587.28 "
24/05/2023,1276470,Certitude (Support for Living),,Bi-Borough Director of Integrated Care," 12,278.76 "
24/05/2023,1276470,Certitude (Support for Living),,Bi-Borough Director of Integrated Care," 4,489.32 "
24/05/2023,1276470,Certitude (Support for Living),,Bi-Borough Director of Integrated Care," 5,819.48 "
24/05/2023,1276470,Certitude (Support for Living),,Bi-Borough Director of Integrated Care," 5,819.48 "
24/05/2023,1276470,Certitude (Support for Living),,Bi-Borough Director of Integrated Care," 4,256.92 "
21/06/2023,1276470,Certitude (Support for Living),,Bi-Borough Director of Integrated Care," 12,988.04 "
21/06/2023,1276470,Certitude (Support for Living),,Bi-Borough Director of Integrated Care," 2,302.32 "
21/06/2023,1276470,Certitude (Support for Living),,Bi-Borough Director of Integrated Care," 5,372.08 "
21/06/2023,1276470,Certitude (Support for Living),,Bi-Borough Director of Integrated Care," 12,278.76 "
21/06/2023,1276470,Certitude (Support for Living),,Bi-Borough Director of Integrated Care," 8,587.28 "
21/06/2023,1276470,Certitude (Support for Living),,Bi-Borough Director of Integrated Care," 4,489.32 "
21/06/2023,1276470,Certitude (Support for Living),,Bi-Borough Director of Integrated Care," 5,819.48 "
21/06/2023,1276470,Certitude (Support for Living),,Bi-Borough Director of Integrated Care," 4,256.92 "
21/06/2023,1276470,Certitude (Support for Living),,Bi-Borough Director of Integrated Care," 5,819.48 "
02/05/2023,1293636,Choice Support,,Bi-Borough Director of Integrated Care," 7,659.43 "
02/05/2023,1293636,Choice Support,,Bi-Borough Director of Integrated Care," 4,124.57 "
02/05/2023,1293636,Choice Support,,Bi-Borough Director of Integrated Care, 587.59 
24/05/2023,1293636,Choice Support,,Bi-Borough Director of Integrated Care," 8,936.00 "
24/05/2023,1293636,Choice Support,,Bi-Borough Director of Integrated Care, 685.52 
24/05/2023,1293636,Choice Support,,Bi-Borough Director of Integrated Care," 4,812.00 "
21/06/2023,1293636,Choice Support,,Bi-Borough Director of Integrated Care," 4,812.00 "
21/06/2023,1293636,Choice Support,,Bi-Borough Director of Integrated Care, 685.52 
21/06/2023,1293636,Choice Support,,Bi-Borough Director of Integrated Care," 8,936.00 "
02/05/2023,1243458,Cocklebury Farmhouse Homes Ltd,,Bi-Borough Director of Integrated Care," 4,745.14 "
02/05/2023,1243458,Cocklebury Farmhouse Homes Ltd,,Bi-Borough Director of Integrated Care," 5,492.57 "
02/05/2023,1243458,Cocklebury Farmhouse Homes Ltd,,Bi-Borough Director of Integrated Care," 4,244.57 "
02/05/2023,1243458,Cocklebury Farmhouse Homes Ltd,,Bi-Borough Director of Integrated Care," 4,772.57 "
02/05/2023,1243458,Cocklebury Farmhouse Homes Ltd,,Bi-Borough Director of Integrated Care," 6,024.00 "
24/05/2023,1243458,Cocklebury Farmhouse Homes Ltd,,Bi-Borough Director of Integrated Care," 5,536.00 "
24/05/2023,1243458,Cocklebury Farmhouse Homes Ltd,,Bi-Borough Director of Integrated Care," 6,408.00 "
24/05/2023,1243458,Cocklebury Farmhouse Homes Ltd,,Bi-Borough Director of Integrated Care," 4,952.00 "
24/05/2023,1243458,Cocklebury Farmhouse Homes Ltd,,Bi-Borough Director of Integrated Care," 5,568.00 "
24/05/2023,1243458,Cocklebury Farmhouse Homes Ltd,,Bi-Borough Director of Integrated Care," 7,028.00 "
21/06/2023,1243458,Cocklebury Farmhouse Homes Ltd,,Bi-Borough Director of Integrated Care," 5,536.00 "
21/06/2023,1243458,Cocklebury Farmhouse Homes Ltd,,Bi-Borough Director of Integrated Care," 6,408.00 "
21/06/2023,1243458,Cocklebury Farmhouse Homes Ltd,,Bi-Borough Director of Integrated Care," 4,952.00 "
21/06/2023,1243458,Cocklebury Farmhouse Homes Ltd,,Bi-Borough Director of Integrated Care," 5,568.00 "
21/06/2023,1243458,Cocklebury Farmhouse Homes Ltd,,Bi-Borough Director of Integrated Care," 7,028.00 "
29/06/2023,1246600,Community Focus Inclusive Arts,B*Voluntary-Spot-V Dep-Enhanced - do not u,Bi-Borough Director of Integrated Care," 1,060.00 "
02/05/2023,1280687,Community Integrated Care,,Bi-Borough Director of Integrated Care," 5,483.45 "
02/05/2023,1280687,Community Integrated Care,,Bi-Borough Director of Integrated Care," 6,774.21 "
02/05/2023,1280687,Community Integrated Care,,Bi-Borough Director of Integrated Care," 9,276.07 "
02/05/2023,1280687,Community Integrated Care,,Bi-Borough Director of Integrated Care," 9,264.55 "
02/05/2023,1280687,Community Integrated Care,,Bi-Borough Director of Integrated Care," 24,758.71 "
02/05/2023,1280687,Community Integrated Care,,Bi-Borough Director of Integrated Care," 9,276.07 "
02/05/2023,1280687,Community Integrated Care,,Bi-Borough Director of Integrated Care," 8,994.72 "
24/05/2023,1280687,Community Integrated Care,,Bi-Borough Director of Integrated Care," 6,397.36 "
24/05/2023,1280687,Community Integrated Care,,Bi-Borough Director of Integrated Care," 7,903.24 "
24/05/2023,1280687,Community Integrated Care,,Bi-Borough Director of Integrated Care," 10,822.08 "
24/05/2023,1280687,Community Integrated Care,,Bi-Borough Director of Integrated Care," 10,493.84 "
24/05/2023,1280687,Community Integrated Care,,Bi-Borough Director of Integrated Care," 10,808.64 "
24/05/2023,1280687,Community Integrated Care,,Bi-Borough Director of Integrated Care," 8,742.92 "
24/05/2023,1280687,Community Integrated Care,,Bi-Borough Director of Integrated Care," 10,822.08 "
21/06/2023,1280687,Community Integrated Care,,Bi-Borough Director of Integrated Care," 7,903.24 "
21/06/2023,1280687,Community Integrated Care,,Bi-Borough Director of Integrated Care," 10,822.08 "
21/06/2023,1280687,Community Integrated Care,,Bi-Borough Director of Integrated Care," 10,493.84 "
21/06/2023,1280687,Community Integrated Care,,Bi-Borough Director of Integrated Care," 8,742.92 "
21/06/2023,1280687,Community Integrated Care,,Bi-Borough Director of Integrated Care," 10,808.64 "
21/06/2023,1280687,Community Integrated Care,,Bi-Borough Director of Integrated Care," 10,822.08 "
21/06/2023,1280687,Community Integrated Care,,Bi-Borough Director of Integrated Care," 6,397.36 "
02/05/2023,1244212,Complete Care London,,Bi-Borough Director of Integrated Care," 3,562.29 "
02/05/2023,1244212,Complete Care London,,Bi-Borough Director of Integrated Care," 2,165.14 "
02/05/2023,1244212,Complete Care London,,Bi-Borough Director of Integrated Care," 2,165.14 "
02/05/2023,1243470,Downing (Chertsey Road) Ltd,,Bi-Borough Director of Integrated Care," 5,118.17 "
24/05/2023,1243470,Downing (Chertsey Road) Ltd,,Bi-Borough Director of Integrated Care," 5,971.20 "
21/06/2023,1243470,Downing (Chertsey Road) Ltd,,Bi-Borough Director of Integrated Care," 5,971.20 "
02/05/2023,1245108,Elysium Healthcare No 2 Ltd,,Bi-Borough Director of Integrated Care," 8,006.98 "
24/05/2023,1245108,Elysium Healthcare No 2 Ltd,,Bi-Borough Director of Integrated Care," 9,341.48 "
21/06/2023,1245108,Elysium Healthcare No 2 Ltd,,Bi-Borough Director of Integrated Care," 9,341.48 "
06/04/2023,1246934,Equal People Mencap (Kensington &,B*Voluntary-Spot-V Dep-Enhanced - do not u,Bi-Borough Director of Integrated Care, 904.50 
02/05/2023,1245110,Eric Patrick Care Ltd,,Bi-Borough Director of Integrated Care," 1,826.50 "
11/04/2023,1259597,Ethica Services LTD,,Bi-Borough Director of Integrated Care," 1,656.00 "
01/06/2023,1259597,Ethica Services LTD,,Bi-Borough Director of Integrated Care," 1,656.00 "
30/06/2023,1259597,Ethica Services LTD,,Bi-Borough Director of Integrated Care," 1,656.00 "
02/05/2023,1285826,Fircroft Services Limited,,Bi-Borough Director of Integrated Care," 4,905.15 "
24/05/2023,1285826,Fircroft Services Limited,,Bi-Borough Director of Integrated Care," 8,522.95 "
21/06/2023,1285826,Fircroft Services Limited,,Bi-Borough Director of Integrated Care," 2,303.50 "
02/05/2023,1243483,Greenview Healthcare Ltd,,Bi-Borough Director of Integrated Care," 3,832.29 "
24/05/2023,1243483,Greenview Healthcare Ltd,,Bi-Borough Director of Integrated Care," 4,471.00 "
21/06/2023,1243483,Greenview Healthcare Ltd,,Bi-Borough Director of Integrated Care," 4,471.00 "
02/05/2023,1243485,Grove Care Partnership Ltd,,Bi-Borough Director of Integrated Care," 8,278.59 "
24/05/2023,1243485,Grove Care Partnership Ltd,,Bi-Borough Director of Integrated Care," 9,658.36 "
21/06/2023,1243485,Grove Care Partnership Ltd,,Bi-Borough Director of Integrated Care," 11,810.83 "
02/05/2023,1258503,Guyatt House Care Limited,,Bi-Borough Director of Integrated Care," 6,477.57 "
24/05/2023,1258503,Guyatt House Care Limited,,Bi-Borough Director of Integrated Care," 7,557.16 "
21/06/2023,1258503,Guyatt House Care Limited,,Bi-Borough Director of Integrated Care," 7,557.16 "
12/04/2023,1244531,HCP Staffing Services Ltd,,Bi-Borough Director of Integrated Care, 717.88 
13/04/2023,1244531,HCP Staffing Services Ltd,,Bi-Borough Director of Integrated Care, 745.96 
26/04/2023,1244531,HCP Staffing Services Ltd,,Bi-Borough Director of Integrated Care, 717.88 
18/05/2023,1244531,HCP Staffing Services Ltd,,Bi-Borough Director of Integrated Care, 717.88 
18/05/2023,1244531,HCP Staffing Services Ltd,,Bi-Borough Director of Integrated Care, 717.88 
18/05/2023,1244531,HCP Staffing Services Ltd,,Bi-Borough Director of Integrated Care, 717.88 
18/05/2023,1244531,HCP Staffing Services Ltd,,Bi-Borough Director of Integrated Care, 717.88 
07/06/2023,1244531,HCP Staffing Services Ltd,,Bi-Borough Director of Integrated Care, 717.88 
07/06/2023,1244531,HCP Staffing Services Ltd,,Bi-Borough Director of Integrated Care, 717.88 
15/06/2023,1244531,HCP Staffing Services Ltd,,Bi-Borough Director of Integrated Care, 717.88 
29/06/2023,1244531,HCP Staffing Services Ltd,,Bi-Borough Director of Integrated Care, 717.88 
29/06/2023,1244531,HCP Staffing Services Ltd,,Bi-Borough Director of Integrated Care, 717.88 
29/06/2023,1244531,HCP Staffing Services Ltd,,Bi-Borough Director of Integrated Care, 717.88 
11/04/2023,1244549,HF Trust Ltd,B*Voluntary-Spot-V Dep-Enhanced - do not u,Bi-Borough Director of Integrated Care, 614.00 
02/05/2023,1244549,HF Trust Ltd,,Bi-Borough Director of Integrated Care," 12,958.15 "
02/05/2023,1244549,HF Trust Ltd,,Bi-Borough Director of Integrated Care," 3,124.66 "
24/05/2023,1244549,HF Trust Ltd,,Bi-Borough Director of Integrated Care," 3,645.44 "
24/05/2023,1244549,HF Trust Ltd,,Bi-Borough Director of Integrated Care," 15,117.84 "
21/06/2023,1244549,HF Trust Ltd,,Bi-Borough Director of Integrated Care," 15,117.84 "
21/06/2023,1244549,HF Trust Ltd,,Bi-Borough Director of Integrated Care," 4,356.36 "
02/05/2023,1244515,Hampshire Autistic Society,,Bi-Borough Director of Integrated Care," 8,066.85 "
24/05/2023,1244515,Hampshire Autistic Society,,Bi-Borough Director of Integrated Care," 9,411.32 "
21/06/2023,1244515,Hampshire Autistic Society,,Bi-Borough Director of Integrated Care," 9,411.32 "
02/05/2023,1243490,Haydon Park Lodge Ltd,,Bi-Borough Director of Integrated Care," 3,428.57 "
24/05/2023,1243490,Haydon Park Lodge Ltd,,Bi-Borough Director of Integrated Care," 4,000.00 "
21/06/2023,1243490,Haydon Park Lodge Ltd,,Bi-Borough Director of Integrated Care," 4,000.00 "
02/05/2023,1260257,Hazel Homes for Autism Ltd,,Bi-Borough Director of Integrated Care," 12,758.78 "
02/05/2023,1260257,Hazel Homes for Autism Ltd,,Bi-Borough Director of Integrated Care, 738.00 
24/05/2023,1260257,Hazel Homes for Autism Ltd,,Bi-Borough Director of Integrated Care," 14,885.24 "
24/05/2023,1260257,Hazel Homes for Autism Ltd,,Bi-Borough Director of Integrated Care, 861.00 
21/06/2023,1260257,Hazel Homes for Autism Ltd,,Bi-Borough Director of Integrated Care, 861.00 
21/06/2023,1260257,Hazel Homes for Autism Ltd,,Bi-Borough Director of Integrated Care," 14,885.24 "
02/05/2023,1245125,Heathcotes (Southern) Ltd,,Bi-Borough Director of Integrated Care," 10,447.85 "
24/05/2023,1245125,Heathcotes (Southern) Ltd,,Bi-Borough Director of Integrated Care," 12,189.16 "
21/06/2023,1245125,Heathcotes (Southern) Ltd,,Bi-Borough Director of Integrated Care," 12,189.16 "
17/05/2023,1254857,Hope Care Agency,,Bi-Borough Director of Integrated Care," 18,928.56 "
17/05/2023,1254857,Hope Care Agency,,Bi-Borough Director of Integrated Care," 78,080.31 "
30/05/2023,1254857,Hope Care Agency,,Bi-Borough Director of Integrated Care," 5,060.72 "
30/05/2023,1254857,Hope Care Agency,,Bi-Borough Director of Integrated Care," 3,984.96 "
30/05/2023,1254857,Hope Care Agency,,Bi-Borough Director of Integrated Care," 18,068.12 "
30/05/2023,1254857,Hope Care Agency,,Bi-Borough Director of Integrated Care," 13,947.36 "
30/05/2023,1254857,Hope Care Agency,,Bi-Borough Director of Integrated Care," 14,299.52 "
30/05/2023,1254857,Hope Care Agency,,Bi-Borough Director of Integrated Care," 2,988.72 "
02/05/2023,1267460,Hunters Lodge Care Home,,Bi-Borough Director of Integrated Care," 3,369.12 "
24/05/2023,1267460,Hunters Lodge Care Home,,Bi-Borough Director of Integrated Care," 3,930.64 "
21/06/2023,1267460,Hunters Lodge Care Home,,Bi-Borough Director of Integrated Care," 3,930.64 "
18/04/2023,1247526,Integrity Care and Support Ltd,B*Voluntary-Spot-V Dep-Enhanced - do not u,Bi-Borough Director of Integrated Care, 916.33 
18/04/2023,1247526,Integrity Care and Support Ltd,B*Voluntary-Spot-V Dep-Enhanced - do not u,Bi-Borough Director of Integrated Care," 1,257.29 "
18/04/2023,1247526,Integrity Care and Support Ltd,B*Voluntary-Spot-V Dep-Enhanced - do not u,Bi-Borough Director of Integrated Care, 554.06 
18/04/2023,1247526,Integrity Care and Support Ltd,B*Voluntary-Spot-V Dep-Enhanced - do not u,Bi-Borough Director of Integrated Care, 681.92 
18/04/2023,1247526,Integrity Care and Support Ltd,B*Voluntary-Spot-V Dep-Enhanced - do not u,Bi-Borough Director of Integrated Care, 575.37 
18/04/2023,1247526,Integrity Care and Support Ltd,B*Voluntary-Spot-V Dep-Enhanced - do not u,Bi-Borough Director of Integrated Care," 1,193.36 "
18/04/2023,1247526,Integrity Care and Support Ltd,B*Voluntary-Spot-V Dep-Enhanced - do not u,Bi-Borough Director of Integrated Care, 895.02 
18/04/2023,1247526,Integrity Care and Support Ltd,B*Voluntary-Spot-V Dep-Enhanced - do not u,Bi-Borough Director of Integrated Care, 511.44 
18/04/2023,1247526,Integrity Care and Support Ltd,B*Voluntary-Spot-V Dep-Enhanced - do not u,Bi-Borough Director of Integrated Care," 1,108.12 "
18/04/2023,1247526,Integrity Care and Support Ltd,B*Voluntary-Spot-V Dep-Enhanced - do not u,Bi-Borough Director of Integrated Care, 511.44 
18/04/2023,1247526,Integrity Care and Support Ltd,B*Voluntary-Spot-V Dep-Enhanced - do not u,Bi-Borough Director of Integrated Care, 554.06 
18/04/2023,1247526,Integrity Care and Support Ltd,B*Voluntary-Spot-V Dep-Enhanced - do not u,Bi-Borough Director of Integrated Care," 2,088.38 "
18/04/2023,1247526,Integrity Care and Support Ltd,B*Voluntary-Spot-V Dep-Enhanced - do not u,Bi-Borough Director of Integrated Care," 1,704.80 "
18/04/2023,1247526,Integrity Care and Support Ltd,B*Voluntary-Spot-V Dep-Enhanced - do not u,Bi-Borough Director of Integrated Care," 1,523.66 "
18/04/2023,1247526,Integrity Care and Support Ltd,B*Voluntary-Spot-V Dep-Enhanced - do not u,Bi-Borough Director of Integrated Care," 1,619.56 "
18/04/2023,1247526,Integrity Care and Support Ltd,B*Voluntary-Spot-V Dep-Enhanced - do not u,Bi-Borough Director of Integrated Care," 1,022.88 "
18/04/2023,1247526,Integrity Care and Support Ltd,B*Voluntary-Spot-V Dep-Enhanced - do not u,Bi-Borough Director of Integrated Care, 596.68 
18/04/2023,1247526,Integrity Care and Support Ltd,B*Voluntary-Spot-V Dep-Enhanced - do not u,Bi-Borough Director of Integrated Care, 681.92 
06/06/2023,1247526,Integrity Care and Support Ltd,B*Voluntary-Spot-V Dep-Enhanced - do not u,Bi-Borough Director of Integrated Care, 511.44 
06/06/2023,1247526,Integrity Care and Support Ltd,B*Voluntary-Spot-V Dep-Enhanced - do not u,Bi-Borough Director of Integrated Care," 1,598.24 "
06/06/2023,1247526,Integrity Care and Support Ltd,B*Voluntary-Spot-V Dep-Enhanced - do not u,Bi-Borough Director of Integrated Care, 554.08 
06/06/2023,1247526,Integrity Care and Support Ltd,B*Voluntary-Spot-V Dep-Enhanced - do not u,Bi-Borough Director of Integrated Care," 1,022.88 "
06/06/2023,1247526,Integrity Care and Support Ltd,B*Voluntary-Spot-V Dep-Enhanced - do not u,Bi-Borough Director of Integrated Care," 1,235.98 "
06/06/2023,1247526,Integrity Care and Support Ltd,B*Voluntary-Spot-V Dep-Enhanced - do not u,Bi-Borough Director of Integrated Care, 639.30 
06/06/2023,1247526,Integrity Care and Support Ltd,B*Voluntary-Spot-V Dep-Enhanced - do not u,Bi-Borough Director of Integrated Care," 1,108.12 "
06/06/2023,1247526,Integrity Care and Support Ltd,B*Voluntary-Spot-V Dep-Enhanced - do not u,Bi-Borough Director of Integrated Care," 1,790.04 "
06/06/2023,1247526,Integrity Care and Support Ltd,B*Voluntary-Spot-V Dep-Enhanced - do not u,Bi-Borough Director of Integrated Care, 767.16 
06/06/2023,1247526,Integrity Care and Support Ltd,B*Voluntary-Spot-V Dep-Enhanced - do not u,Bi-Borough Director of Integrated Care," 1,342.93 "
06/06/2023,1247526,Integrity Care and Support Ltd,B*Voluntary-Spot-V Dep-Enhanced - do not u,Bi-Borough Director of Integrated Care," 1,193.36 "
06/06/2023,1247526,Integrity Care and Support Ltd,B*Voluntary-Spot-V Dep-Enhanced - do not u,Bi-Borough Director of Integrated Care, 607.35 
06/06/2023,1247526,Integrity Care and Support Ltd,B*Voluntary-Spot-V Dep-Enhanced - do not u,Bi-Borough Director of Integrated Care," 1,513.01 "
06/06/2023,1247526,Integrity Care and Support Ltd,B*Voluntary-Spot-V Dep-Enhanced - do not u,Bi-Borough Director of Integrated Care," 1,086.81 "
06/06/2023,1247526,Integrity Care and Support Ltd,B*Voluntary-Spot-V Dep-Enhanced - do not u,Bi-Borough Director of Integrated Care," 1,022.88 "
06/06/2023,1247526,Integrity Care and Support Ltd,B*Voluntary-Spot-V Dep-Enhanced - do not u,Bi-Borough Director of Integrated Care, 916.33 
06/06/2023,1247526,Integrity Care and Support Ltd,B*Voluntary-Spot-V Dep-Enhanced - do not u,Bi-Borough Director of Integrated Care, 895.04 
06/06/2023,1247526,Integrity Care and Support Ltd,B*Voluntary-Spot-V Dep-Enhanced - do not u,Bi-Borough Director of Integrated Care, 681.92 
26/06/2023,1247526,Integrity Care and Support Ltd,B*Voluntary-Spot-V Dep-Enhanced - do not u,Bi-Borough Director of Integrated Care, 511.44 
26/06/2023,1247526,Integrity Care and Support Ltd,B*Voluntary-Spot-V Dep-Enhanced - do not u,Bi-Borough Director of Integrated Care," 1,576.96 "
26/06/2023,1247526,Integrity Care and Support Ltd,B*Voluntary-Spot-V Dep-Enhanced - do not u,Bi-Borough Director of Integrated Care, 895.04 
26/06/2023,1247526,Integrity Care and Support Ltd,B*Voluntary-Spot-V Dep-Enhanced - do not u,Bi-Borough Director of Integrated Care," 1,790.04 "
26/06/2023,1247526,Integrity Care and Support Ltd,B*Voluntary-Spot-V Dep-Enhanced - do not u,Bi-Borough Director of Integrated Care, 554.08 
26/06/2023,1247526,Integrity Care and Support Ltd,B*Voluntary-Spot-V Dep-Enhanced - do not u,Bi-Borough Director of Integrated Care," 1,363.84 "
26/06/2023,1247526,Integrity Care and Support Ltd,B*Voluntary-Spot-V Dep-Enhanced - do not u,Bi-Borough Director of Integrated Care," 1,108.12 "
26/06/2023,1247526,Integrity Care and Support Ltd,B*Voluntary-Spot-V Dep-Enhanced - do not u,Bi-Borough Director of Integrated Care," 1,470.39 "
26/06/2023,1247526,Integrity Care and Support Ltd,B*Voluntary-Spot-V Dep-Enhanced - do not u,Bi-Borough Director of Integrated Care, 639.32 
26/06/2023,1247526,Integrity Care and Support Ltd,B*Voluntary-Spot-V Dep-Enhanced - do not u,Bi-Borough Director of Integrated Care, 980.26 
26/06/2023,1247526,Integrity Care and Support Ltd,B*Voluntary-Spot-V Dep-Enhanced - do not u,Bi-Borough Director of Integrated Care, 681.92 
26/06/2023,1247526,Integrity Care and Support Ltd,B*Voluntary-Spot-V Dep-Enhanced - do not u,Bi-Borough Director of Integrated Care, 660.61 
26/06/2023,1247526,Integrity Care and Support Ltd,B*Voluntary-Spot-V Dep-Enhanced - do not u,Bi-Borough Director of Integrated Care," 1,417.12 "
26/06/2023,1247526,Integrity Care and Support Ltd,B*Voluntary-Spot-V Dep-Enhanced - do not u,Bi-Borough Director of Integrated Care," 1,449.08 "
26/06/2023,1247526,Integrity Care and Support Ltd,B*Voluntary-Spot-V Dep-Enhanced - do not u,Bi-Borough Director of Integrated Care, 681.92 
26/06/2023,1247526,Integrity Care and Support Ltd,B*Voluntary-Spot-V Dep-Enhanced - do not u,Bi-Borough Director of Integrated Care," 1,896.59 "
26/06/2023,1247526,Integrity Care and Support Ltd,B*Voluntary-Spot-V Dep-Enhanced - do not u,Bi-Borough Director of Integrated Care, 831.09 
26/06/2023,1247526,Integrity Care and Support Ltd,B*Voluntary-Spot-V Dep-Enhanced - do not u,Bi-Borough Director of Integrated Care," 1,193.36 "
06/04/2023,1256893,Kapital Care WCC,,Bi-Borough Director of Integrated Care," 1,494.64 "
22/05/2023,1256893,Kapital Care WCC,,Bi-Borough Director of Integrated Care," 1,494.64 "
30/05/2023,1256893,Kapital Care WCC,,Bi-Borough Director of Integrated Care," 1,618.90 "
28/06/2023,1256893,Kapital Care WCC,,Bi-Borough Director of Integrated Care," 1,613.92 "
02/05/2023,1247598,Kisimul Group Ltd,,Bi-Borough Director of Integrated Care," 13,679.52 "
24/05/2023,1247598,Kisimul Group Ltd,,Bi-Borough Director of Integrated Care," 15,959.44 "
21/06/2023,1247598,Kisimul Group Ltd,,Bi-Borough Director of Integrated Care," 15,959.44 "
02/05/2023,1243535,Sequence Care Ltd,,Bi-Borough Director of Integrated Care," 8,974.29 "
02/05/2023,1243535,Sequence Care Ltd,,Bi-Borough Director of Integrated Care," 14,819.66 "
02/05/2023,1243535,Sequence Care Ltd,,Bi-Borough Director of Integrated Care," 15,306.72 "
02/05/2023,1243535,Sequence Care Ltd,,Bi-Borough Director of Integrated Care," 8,974.29 "
24/05/2023,1243535,Sequence Care Ltd,,Bi-Borough Director of Integrated Care," 15,032.80 "
24/05/2023,1243535,Sequence Care Ltd,,Bi-Borough Director of Integrated Care," 17,857.84 "
24/05/2023,1243535,Sequence Care Ltd,,Bi-Borough Director of Integrated Care," 10,470.00 "
24/05/2023,1243535,Sequence Care Ltd,,Bi-Borough Director of Integrated Care," 10,470.00 "
21/06/2023,1243535,Sequence Care Ltd,,Bi-Borough Director of Integrated Care," 17,857.84 "
21/06/2023,1243535,Sequence Care Ltd,,Bi-Borough Director of Integrated Care," 10,470.00 "
21/06/2023,1243535,Sequence Care Ltd,,Bi-Borough Director of Integrated Care," 10,470.00 "
21/06/2023,1243535,Sequence Care Ltd,,Bi-Borough Director of Integrated Care," 15,032.80 "
02/05/2023,1243506,Lifeways Community Care Ltd,,Bi-Borough Director of Integrated Care," 6,330.62 "
02/05/2023,1243506,Lifeways Community Care Ltd,,Bi-Borough Director of Integrated Care," 10,892.71 "
24/05/2023,1243506,Lifeways Community Care Ltd,,Bi-Borough Director of Integrated Care," 14,296.66 "
24/05/2023,1243506,Lifeways Community Care Ltd,,Bi-Borough Director of Integrated Care," 8,308.93 "
21/06/2023,1243506,Lifeways Community Care Ltd,,Bi-Borough Director of Integrated Care," 7,902.72 "
21/06/2023,1243506,Lifeways Community Care Ltd,,Bi-Borough Director of Integrated Care," 13,597.72 "
02/05/2023,1249729,Linden Lodge School,,Bi-Borough Director of Integrated Care," 5,612.57 "
24/05/2023,1249729,Linden Lodge School,,Bi-Borough Director of Integrated Care," 6,669.43 "
21/06/2023,1249729,Linden Lodge School,,Bi-Borough Director of Integrated Care," 6,616.00 "
02/05/2023,1244762,Livability,,Bi-Borough Director of Integrated Care," 5,297.14 "
24/05/2023,1244762,Livability,,Bi-Borough Director of Integrated Care," 6,180.00 "
21/06/2023,1244762,Livability,,Bi-Borough Director of Integrated Care," 6,180.00 "
20/04/2023,1247650,London Care Ltd,,Bi-Borough Director of Integrated Care," 1,079.42 "
15/05/2023,1247650,London Care Ltd,,Bi-Borough Director of Integrated Care, 908.98 
15/05/2023,1247650,London Care Ltd,,Bi-Borough Director of Integrated Care," 1,093.34 "
15/05/2023,1247650,London Care Ltd,,Bi-Borough Director of Integrated Care, 785.60 
15/05/2023,1247650,London Care Ltd,,Bi-Borough Director of Integrated Care," 1,648.12 "
15/05/2023,1247650,London Care Ltd,,Bi-Borough Director of Integrated Care," 1,294.61 "
08/06/2023,1247650,London Care Ltd,,Bi-Borough Director of Integrated Care," 1,190.24 "
02/05/2023,1247651,London Care Partnership Ltd,,Bi-Borough Director of Integrated Care," 7,663.99 "
24/05/2023,1247651,London Care Partnership Ltd,,Bi-Borough Director of Integrated Care," 8,941.32 "
21/06/2023,1247651,London Care Partnership Ltd,,Bi-Borough Director of Integrated Care," 8,941.32 "
01/04/2023,1247656,London Cyrenians Housing Ltd,Rent,Bi-Borough Director of Integrated Care," 2,929.21 "
02/05/2023,1247656,London Cyrenians Housing Ltd,,Bi-Borough Director of Integrated Care," 5,417.14 "
02/05/2023,1247656,London Cyrenians Housing Ltd,,Bi-Borough Director of Integrated Care," 8,265.33 "
24/05/2023,1247656,London Cyrenians Housing Ltd,,Bi-Borough Director of Integrated Care," 6,320.00 "
24/05/2023,1247656,London Cyrenians Housing Ltd,,Bi-Borough Director of Integrated Care," 9,642.88 "
21/06/2023,1247656,London Cyrenians Housing Ltd,,Bi-Borough Director of Integrated Care," 6,320.00 "
21/06/2023,1247656,London Cyrenians Housing Ltd,,Bi-Borough Director of Integrated Care," 9,642.88 "
28/04/2023,1247846,London Vip Cars,Payments to Transport Operators,Bi-Borough Director of Integrated Care," 2,255.00 "
19/05/2023,1247846,London Vip Cars,Payments to Transport Operators,Bi-Borough Director of Integrated Care," 1,470.00 "
22/06/2023,1247846,London Vip Cars,Payments to Transport Operators,Bi-Borough Director of Integrated Care," 1,768.00 "
01/04/2023,1247854,Look Ahead Housing & Care Ltd,Rent,Bi-Borough Director of Integrated Care," 12,373.00 "
02/05/2023,1243508,Lukka Care Homes (2010) Ltd T/A,B*Distric Council non fee related servi,Bi-Borough Director of Integrated Care," 5,130.21 "
24/05/2023,1243508,Lukka Care Homes (2010) Ltd T/A,,Bi-Borough Director of Integrated Care," 14,749.34 "
21/06/2023,1243508,Lukka Care Homes (2010) Ltd T/A,,Bi-Borough Director of Integrated Care," 5,985.24 "
05/05/2023,1259132,MMR Home Care LTD,,Bi-Borough Director of Integrated Care," 2,490.32 "
05/05/2023,1259132,MMR Home Care LTD,,Bi-Borough Director of Integrated Care," 2,490.88 "
25/05/2023,1259132,MMR Home Care LTD,,Bi-Borough Director of Integrated Care," 2,395.03 "
25/05/2023,1259132,MMR Home Care LTD,,Bi-Borough Director of Integrated Care," 2,586.17 "
23/06/2023,1259132,MMR Home Care LTD,,Bi-Borough Director of Integrated Care," 2,792.60 "
23/06/2023,1259132,MMR Home Care LTD,,Bi-Borough Director of Integrated Care," 2,586.20 "
02/05/2023,1282320,Marcus and Marcus,,Bi-Borough Director of Integrated Care," 6,874.08 "
02/05/2023,1282320,Marcus and Marcus,,Bi-Borough Director of Integrated Care," 5,741.28 "
02/05/2023,1282320,Marcus and Marcus,,Bi-Borough Director of Integrated Care," 1,132.80 "
24/05/2023,1282320,Marcus and Marcus,,Bi-Borough Director of Integrated Care," 1,321.60 "
24/05/2023,1282320,Marcus and Marcus,,Bi-Borough Director of Integrated Care," 8,019.76 "
24/05/2023,1282320,Marcus and Marcus,,Bi-Borough Director of Integrated Care," 6,698.16 "
21/06/2023,1282320,Marcus and Marcus,,Bi-Borough Director of Integrated Care," 6,698.16 "
21/06/2023,1282320,Marcus and Marcus,,Bi-Borough Director of Integrated Care," 1,321.60 "
21/06/2023,1282320,Marcus and Marcus,,Bi-Borough Director of Integrated Care," 8,019.76 "
02/05/2023,1245144,Methodist Homes For The Aged,,Bi-Borough Director of Integrated Care," 2,735.59 "
24/05/2023,1245144,Methodist Homes For The Aged,,Bi-Borough Director of Integrated Care," 3,191.52 "
21/06/2023,1245144,Methodist Homes For The Aged,,Bi-Borough Director of Integrated Care," 3,191.52 "
02/05/2023,1247933,Minster Pathways Ltd,,Bi-Borough Director of Integrated Care," 4,321.20 "
24/05/2023,1247933,Minster Pathways Ltd,,Bi-Borough Director of Integrated Care," 5,041.40 "
21/06/2023,1247933,Minster Pathways Ltd,,Bi-Borough Director of Integrated Care," 5,041.40 "
02/05/2023,1244905,Nas Services Ltd (Residential),,Bi-Borough Director of Integrated Care," 6,342.93 "
02/05/2023,1244905,Nas Services Ltd (Residential),,Bi-Borough Director of Integrated Care," 2,896.56 "
02/05/2023,1244905,Nas Services Ltd (Residential),,Bi-Borough Director of Integrated Care," 6,831.57 "
02/05/2023,1244905,Nas Services Ltd (Residential),,Bi-Borough Director of Integrated Care," 3,479.04 "
11/05/2023,1244905,Nas Services Ltd (Residential),,Bi-Borough Director of Integrated Care," 8,982.83 "
18/05/2023,1244905,Nas Services Ltd (Residential),B*Voluntary-Spot-V Dep-Enhanced - do not u,Bi-Borough Director of Integrated Care," 1,577.52 "
18/05/2023,1244905,Nas Services Ltd (Residential),B*Voluntary-Spot-V Dep-Enhanced - do not u,Bi-Borough Director of Integrated Care," 5,258.40 "
18/05/2023,1244905,Nas Services Ltd (Residential),B*Voluntary-Spot-V Dep-Enhanced - do not u,Bi-Borough Director of Integrated Care," 1,247.28 "
18/05/2023,1244905,Nas Services Ltd (Residential),B*Voluntary-Spot-V Dep-Enhanced - do not u,Bi-Borough Director of Integrated Care," 5,258.40 "
18/05/2023,1244905,Nas Services Ltd (Residential),B*Voluntary-Spot-V Dep-Enhanced - do not u,Bi-Borough Director of Integrated Care," 1,418.44 "
18/05/2023,1244905,Nas Services Ltd (Residential),B*Voluntary-Spot-V Dep-Enhanced - do not u,Bi-Borough Director of Integrated Care," 1,418.44 "
18/05/2023,1244905,Nas Services Ltd (Residential),B*Voluntary-Spot-V Dep-Enhanced - do not u,Bi-Borough Director of Integrated Care," 5,258.40 "
18/05/2023,1244905,Nas Services Ltd (Residential),B*Voluntary-Spot-V Dep-Enhanced - do not u,Bi-Borough Director of Integrated Care," 1,247.28 "
18/05/2023,1244905,Nas Services Ltd (Residential),B*Voluntary-Spot-V Dep-Enhanced - do not u,Bi-Borough Director of Integrated Care," 1,418.44 "
24/05/2023,1244905,Nas Services Ltd (Residential),,Bi-Borough Director of Integrated Care," 7,970.16 "
24/05/2023,1244905,Nas Services Ltd (Residential),,Bi-Borough Director of Integrated Care," 4,058.88 "
24/05/2023,1244905,Nas Services Ltd (Residential),,Bi-Borough Director of Integrated Care," 7,400.08 "
24/05/2023,1244905,Nas Services Ltd (Residential),,Bi-Borough Director of Integrated Care," 3,379.32 "
07/06/2023,1244905,Nas Services Ltd (Residential),B*Voluntary-Spot-V Dep-Enhanced - do not u,Bi-Borough Director of Integrated Care," 1,418.44 "
21/06/2023,1244905,Nas Services Ltd (Residential),,Bi-Borough Director of Integrated Care," 7,970.16 "
21/06/2023,1244905,Nas Services Ltd (Residential),,Bi-Borough Director of Integrated Care," 4,058.88 "
21/06/2023,1244905,Nas Services Ltd (Residential),,Bi-Borough Director of Integrated Care," 7,400.08 "
21/06/2023,1244905,Nas Services Ltd (Residential),,Bi-Borough Director of Integrated Care," 3,379.32 "
18/05/2023,1244906,Nas Services Ltd (Use 3009018),B*Voluntary-Spot-V Dep-Enhanced - do not u,Bi-Borough Director of Integrated Care," 2,915.36 "
18/05/2023,1244906,Nas Services Ltd (Use 3009018),B*Voluntary-Spot-V Dep-Enhanced - do not u,Bi-Borough Director of Integrated Care," 1,308.36 "
18/05/2023,1244906,Nas Services Ltd (Use 3009018),B*Voluntary-Spot-V Dep-Enhanced - do not u,Bi-Borough Director of Integrated Care," 1,124.96 "
18/05/2023,1244906,Nas Services Ltd (Use 3009018),B*Voluntary-Spot-V Dep-Enhanced - do not u,Bi-Borough Director of Integrated Care," 2,915.36 "
18/05/2023,1244906,Nas Services Ltd (Use 3009018),B*Voluntary-Spot-V Dep-Enhanced - do not u,Bi-Borough Director of Integrated Care," 2,027.52 "
18/05/2023,1244906,Nas Services Ltd (Use 3009018),B*Voluntary-Spot-V Dep-Enhanced - do not u,Bi-Borough Director of Integrated Care," 4,879.20 "
18/05/2023,1244906,Nas Services Ltd (Use 3009018),B*Voluntary-Spot-V Dep-Enhanced - do not u,Bi-Borough Director of Integrated Care," 2,027.52 "
18/05/2023,1244906,Nas Services Ltd (Use 3009018),B*Voluntary-Spot-V Dep-Enhanced - do not u,Bi-Borough Director of Integrated Care," 5,243.80 "
18/05/2023,1244906,Nas Services Ltd (Use 3009018),B*Voluntary-Spot-V Dep-Enhanced - do not u,Bi-Borough Director of Integrated Care," 4,879.20 "
18/05/2023,1244906,Nas Services Ltd (Use 3009018),B*Voluntary-Spot-V Dep-Enhanced - do not u,Bi-Borough Director of Integrated Care," 2,027.52 "
18/05/2023,1244906,Nas Services Ltd (Use 3009018),B*Voluntary-Spot-V Dep-Enhanced - do not u,Bi-Borough Director of Integrated Care," 4,879.20 "
18/05/2023,1244906,Nas Services Ltd (Use 3009018),B*Voluntary-Spot-V Dep-Enhanced - do not u,Bi-Borough Director of Integrated Care," 2,915.36 "
18/05/2023,1244906,Nas Services Ltd (Use 3009018),B*Voluntary-Spot-V Dep-Enhanced - do not u,Bi-Borough Director of Integrated Care," 1,308.36 "
18/05/2023,1244906,Nas Services Ltd (Use 3009018),B*Voluntary-Spot-V Dep-Enhanced - do not u,Bi-Borough Director of Integrated Care," 1,772.04 "
18/05/2023,1244906,Nas Services Ltd (Use 3009018),B*Voluntary-Spot-V Dep-Enhanced - do not u,Bi-Borough Director of Integrated Care," 2,027.52 "
18/05/2023,1244906,Nas Services Ltd (Use 3009018),B*Voluntary-Spot-V Dep-Enhanced - do not u,Bi-Borough Director of Integrated Care," 1,308.36 "
18/05/2023,1244906,Nas Services Ltd (Use 3009018),B*Voluntary-Spot-V Dep-Enhanced - do not u,Bi-Borough Director of Integrated Care," 2,970.72 "
18/05/2023,1244906,Nas Services Ltd (Use 3009018),B*Voluntary-Spot-V Dep-Enhanced - do not u,Bi-Borough Director of Integrated Care," 1,124.96 "
18/05/2023,1244906,Nas Services Ltd (Use 3009018),B*Voluntary-Spot-V Dep-Enhanced - do not u,Bi-Borough Director of Integrated Care," 2,970.72 "
18/05/2023,1244906,Nas Services Ltd (Use 3009018),B*Voluntary-Spot-V Dep-Enhanced - do not u,Bi-Borough Director of Integrated Care," 1,124.96 "
18/05/2023,1244906,Nas Services Ltd (Use 3009018),B*Voluntary-Spot-V Dep-Enhanced - do not u,Bi-Borough Director of Integrated Care," 1,772.04 "
18/05/2023,1244906,Nas Services Ltd (Use 3009018),B*Voluntary-Spot-V Dep-Enhanced - do not u,Bi-Borough Director of Integrated Care," 2,970.72 "
18/05/2023,1244906,Nas Services Ltd (Use 3009018),B*Voluntary-Spot-V Dep-Enhanced - do not u,Bi-Borough Director of Integrated Care," 1,772.04 "
07/06/2023,1244906,Nas Services Ltd (Use 3009018),B*Voluntary-Spot-V Dep-Enhanced - do not u,Bi-Borough Director of Integrated Care," 1,308.36 "
07/06/2023,1244906,Nas Services Ltd (Use 3009018),B*Voluntary-Spot-V Dep-Enhanced - do not u,Bi-Borough Director of Integrated Care," 1,772.04 "
07/06/2023,1244906,Nas Services Ltd (Use 3009018),B*Voluntary-Spot-V Dep-Enhanced - do not u,Bi-Borough Director of Integrated Care," 2,970.72 "
07/06/2023,1244906,Nas Services Ltd (Use 3009018),B*Voluntary-Spot-V Dep-Enhanced - do not u,Bi-Borough Director of Integrated Care," 4,879.20 "
07/06/2023,1244906,Nas Services Ltd (Use 3009018),B*Voluntary-Spot-V Dep-Enhanced - do not u,Bi-Borough Director of Integrated Care," 2,027.52 "
07/06/2023,1244906,Nas Services Ltd (Use 3009018),B*Voluntary-Spot-V Dep-Enhanced - do not u,Bi-Borough Director of Integrated Care," 2,915.36 "
07/06/2023,1244906,Nas Services Ltd (Use 3009018),B*Voluntary-Spot-V Dep-Enhanced - do not u,Bi-Borough Director of Integrated Care," 1,124.96 "
02/05/2023,1282551,Nisacraftcare Limited,,Bi-Borough Director of Integrated Care," 9,411.46 "
02/05/2023,1282551,Nisacraftcare Limited,,Bi-Borough Director of Integrated Care," 6,544.49 "
02/05/2023,1282551,Nisacraftcare Limited,,Bi-Borough Director of Integrated Care," 6,913.03 "
02/05/2023,1282551,Nisacraftcare Limited,,Bi-Borough Director of Integrated Care," 18,404.57 "
24/05/2023,1282551,Nisacraftcare Limited,,Bi-Borough Director of Integrated Care," 7,635.24 "
24/05/2023,1282551,Nisacraftcare Limited,,Bi-Borough Director of Integrated Care," 8,065.20 "
24/05/2023,1282551,Nisacraftcare Limited,,Bi-Borough Director of Integrated Care," 1,810.29 "
24/05/2023,1282551,Nisacraftcare Limited,,Bi-Borough Director of Integrated Care," 10,980.04 "
21/06/2023,1282551,Nisacraftcare Limited,,Bi-Borough Director of Integrated Care," 10,980.04 "
21/06/2023,1282551,Nisacraftcare Limited,,Bi-Borough Director of Integrated Care," 8,065.20 "
21/06/2023,1282551,Nisacraftcare Limited,,Bi-Borough Director of Integrated Care," 7,635.24 "
02/05/2023,1247147,Norwood Schools Ltd,,Bi-Borough Director of Integrated Care," 6,261.98 "
02/05/2023,1247147,Norwood Schools Ltd,,Bi-Borough Director of Integrated Care," 4,010.30 "
02/05/2023,1247147,Norwood Schools Ltd,,Bi-Borough Director of Integrated Care," 5,560.66 "
02/05/2023,1247147,Norwood Schools Ltd,,Bi-Borough Director of Integrated Care," 8,119.30 "
24/05/2023,1247147,Norwood Schools Ltd,,Bi-Borough Director of Integrated Care," 6,487.44 "
24/05/2023,1247147,Norwood Schools Ltd,,Bi-Borough Director of Integrated Care," 9,472.52 "
24/05/2023,1247147,Norwood Schools Ltd,,Bi-Borough Director of Integrated Care," 7,305.64 "
24/05/2023,1247147,Norwood Schools Ltd,,Bi-Borough Director of Integrated Care," 4,678.68 "
21/06/2023,1247147,Norwood Schools Ltd,,Bi-Borough Director of Integrated Care," 9,472.52 "
21/06/2023,1247147,Norwood Schools Ltd,,Bi-Borough Director of Integrated Care," 7,305.64 "
21/06/2023,1247147,Norwood Schools Ltd,,Bi-Borough Director of Integrated Care," 4,678.68 "
21/06/2023,1247147,Norwood Schools Ltd,,Bi-Borough Director of Integrated Care," 6,487.44 "
02/05/2023,1243520,Oakview Care (Berkshire) Ltd,,Bi-Borough Director of Integrated Care," 6,834.83 "
24/05/2023,1243520,Oakview Care (Berkshire) Ltd,,Bi-Borough Director of Integrated Care," 7,531.68 "
21/06/2023,1243520,Oakview Care (Berkshire) Ltd,,Bi-Borough Director of Integrated Care," 7,531.68 "
11/04/2023,1248252,Origin Housing Ltd,B*Voluntary-Spot-V Dep-Enhanced - do not u,Bi-Borough Director of Integrated Care, 993.72 
11/04/2023,1248252,Origin Housing Ltd,B*Voluntary-Spot-V Dep-Enhanced - do not u,Bi-Borough Director of Integrated Care," 1,716.00 "
11/04/2023,1248252,Origin Housing Ltd,B*Voluntary-Spot-V Dep-Enhanced - do not u,Bi-Borough Director of Integrated Care," 1,987.44 "
02/05/2023,1243524,Ormsby Lodge,,Bi-Borough Director of Integrated Care, 802.29 
02/05/2023,1243524,Ormsby Lodge,,Bi-Borough Director of Integrated Care," 2,983.85 "
24/05/2023,1243524,Ormsby Lodge,,Bi-Borough Director of Integrated Care, 936.00 
24/05/2023,1243524,Ormsby Lodge,,Bi-Borough Director of Integrated Care," 3,481.16 "
21/06/2023,1243524,Ormsby Lodge,,Bi-Borough Director of Integrated Care," 3,481.16 "
21/06/2023,1243524,Ormsby Lodge,,Bi-Borough Director of Integrated Care, 936.00 
02/05/2023,1245005,Outlook Care,,Bi-Borough Director of Integrated Care," 2,889.33 "
02/05/2023,1245005,Outlook Care,,Bi-Borough Director of Integrated Care," 1,840.18 "
02/05/2023,1245005,Outlook Care,,Bi-Borough Director of Integrated Care," 1,495.54 "
02/05/2023,1245005,Outlook Care,,Bi-Borough Director of Integrated Care," 2,488.25 "
02/05/2023,1245005,Outlook Care,,Bi-Borough Director of Integrated Care," 1,840.18 "
02/05/2023,1245005,Outlook Care,,Bi-Borough Director of Integrated Care," 1,146.58 "
24/05/2023,1245005,Outlook Care,,Bi-Borough Director of Integrated Care," 1,744.80 "
24/05/2023,1245005,Outlook Care,,Bi-Borough Director of Integrated Care," 2,146.88 "
24/05/2023,1245005,Outlook Care,,Bi-Borough Director of Integrated Care," 2,902.96 "
24/05/2023,1245005,Outlook Care,,Bi-Borough Director of Integrated Care," 3,370.88 "
24/05/2023,1245005,Outlook Care,,Bi-Borough Director of Integrated Care," 1,337.68 "
24/05/2023,1245005,Outlook Care,,Bi-Borough Director of Integrated Care," 2,890.49 "
21/06/2023,1245005,Outlook Care,,Bi-Borough Director of Integrated Care," 2,146.88 "
21/06/2023,1245005,Outlook Care,,Bi-Borough Director of Integrated Care," 1,744.80 "
21/06/2023,1245005,Outlook Care,,Bi-Borough Director of Integrated Care," 2,902.96 "
21/06/2023,1245005,Outlook Care,,Bi-Borough Director of Integrated Care," 3,370.88 "
21/06/2023,1245005,Outlook Care,,Bi-Borough Director of Integrated Care," 3,746.29 "
21/06/2023,1245005,Outlook Care,,Bi-Borough Director of Integrated Care," 1,337.68 "
06/04/2023,1250670,PERSONAL PAYMENTS,Adult Social Care - Other Transfer Pay,Bi-Borough Director of Integrated Care," 1,571.52 "
06/04/2023,1250044,PERSONAL PAYMENTS,Adult Social Care - Other Transfer Pay,Bi-Borough Director of Integrated Care, 724.04 
06/04/2023,1250627,PERSONAL PAYMENTS,Adult Social Care - Other Transfer Pay,Bi-Borough Director of Integrated Care," 2,508.00 "
06/04/2023,1247804,PERSONAL PAYMENTS,Adult Social Care - Other Transfer Pay,Bi-Borough Director of Integrated Care, 752.20 
06/04/2023,1250012,PERSONAL PAYMENTS,Adult Social Care - Other Transfer Pay,Bi-Borough Director of Integrated Care, 838.60 
06/04/2023,1250138,PERSONAL PAYMENTS,Adult Social Care - Other Transfer Pay,Bi-Borough Director of Integrated Care, 916.00 
06/04/2023,1291747,PERSONAL PAYMENTS,Adult Social Care - Other Transfer Pay,Bi-Borough Director of Integrated Care," 2,552.20 "
06/04/2023,1250186,PERSONAL PAYMENTS,Adult Social Care - Other Transfer Pay,Bi-Borough Director of Integrated Care," 3,404.96 "
06/04/2023,1250674,PERSONAL PAYMENTS,Adult Social Care - Other Transfer Pay,Bi-Borough Director of Integrated Care," 2,652.16 "
06/04/2023,1250536,PERSONAL PAYMENTS,Adult Social Care - Other Transfer Pay,Bi-Borough Director of Integrated Care, 678.64 
06/04/2023,1269674,PERSONAL PAYMENTS,Adult Social Care - Other Transfer Pay,Bi-Borough Director of Integrated Care, 889.28 
06/04/2023,1269674,PERSONAL PAYMENTS,Adult Social Care - Other Transfer Pay,Bi-Borough Director of Integrated Care, 600.00 
06/04/2023,1248354,PERSONAL PAYMENTS,Adult Social Care - Other Transfer Pay,Bi-Borough Director of Integrated Care," 2,425.36 "
06/04/2023,1250215,PERSONAL PAYMENTS,Adult Social Care - Other Transfer Pay,Bi-Borough Director of Integrated Care," 1,361.56 "
06/04/2023,1248828,PERSONAL PAYMENTS,Adult Social Care - Other Transfer Pay,Bi-Borough Director of Integrated Care," 1,737.52 "
06/04/2023,1272570,PERSONAL PAYMENTS,Adult Social Care - Other Transfer Pay,Bi-Borough Director of Integrated Care," 1,051.24 "
06/04/2023,1246066,Barrie Bookkeeping & Payroll,Adult Social Care - Other Transfer Pay,Bi-Borough Director of Integrated Care," 2,690.16 "
06/04/2023,1246066,Barrie Bookkeeping & Payroll,Adult Social Care - Other Transfer Pay,Bi-Borough Director of Integrated Care," 1,688.60 "
06/04/2023,1246066,Barrie Bookkeeping & Payroll,Adult Social Care - Other Transfer Pay,Bi-Borough Director of Integrated Care, 733.80 
06/04/2023,1291747,PERSONAL PAYMENTS,Adult Social Care - Other Transfer Pay,Bi-Borough Director of Integrated Care," 2,041.76 "
06/04/2023,1291747,PERSONAL PAYMENTS,Adult Social Care - Other Transfer Pay,Bi-Borough Director of Integrated Care," 1,201.80 "
06/04/2023,1247727,PERSONAL PAYMENTS,Social Care - Direct Payments,Bi-Borough Director of Integrated Care," 2,740.72 "
06/04/2023,1246066,Barrie Bookkeeping & Payroll,Adult Social Care - Other Transfer Pay,Bi-Borough Director of Integrated Care," 1,164.60 "
06/04/2023,1246066,Barrie Bookkeeping & Payroll,Adult Social Care - Other Transfer Pay,Bi-Borough Director of Integrated Care, 843.96 
06/04/2023,1246066,Barrie Bookkeeping & Payroll,Adult Social Care - Other Transfer Pay,Bi-Borough Director of Integrated Care," 1,070.52 "
06/04/2023,1280973,PERSONAL PAYMENTS,Adult Social Care - Other Transfer Pay,Bi-Borough Director of Integrated Care," 6,394.48 "
06/04/2023,1250037,PERSONAL PAYMENTS,Adult Social Care - Other Transfer Pay,Bi-Borough Director of Integrated Care," 2,383.72 "
06/04/2023,1248073,PERSONAL PAYMENTS,Adult Social Care - Other Transfer Pay,Bi-Borough Director of Integrated Care, 638.21 
06/04/2023,1246066,Barrie Bookkeeping & Payroll,Adult Social Care - Other Transfer Pay,Bi-Borough Director of Integrated Care," 5,914.56 "
06/04/2023,1246066,Barrie Bookkeeping & Payroll,Adult Social Care - Other Transfer Pay,Bi-Borough Director of Integrated Care," 5,754.04 "
06/04/2023,1291747,PERSONAL PAYMENTS,Adult Social Care - Other Transfer Pay,Bi-Borough Director of Integrated Care," 1,480.36 "
06/04/2023,1248010,PERSONAL PAYMENTS,Adult Social Care - Other Transfer Pay,Bi-Borough Director of Integrated Care, 646.16 
06/04/2023,1248154,PERSONAL PAYMENTS,Adult Social Care - Other Transfer Pay,Bi-Borough Director of Integrated Care, 829.52 
06/04/2023,1248148,PERSONAL PAYMENTS,Adult Social Care - Other Transfer Pay,Bi-Borough Director of Integrated Care," 1,638.96 "
06/04/2023,1278955,PERSONAL PAYMENTS,Social Care - Direct Payments,Bi-Borough Director of Integrated Care," 1,580.32 "
06/04/2023,1268346,PERSONAL PAYMENTS,Adult Social Care - Other Transfer Pay,Bi-Borough Director of Integrated Care," 2,999.05 "
06/04/2023,1246066,Barrie Bookkeeping & Payroll,Adult Social Care - Other Transfer Pay,Bi-Borough Director of Integrated Care," 1,029.88 "
06/04/2023,1246066,Barrie Bookkeeping & Payroll,Adult Social Care - Other Transfer Pay,Bi-Borough Director of Integrated Care," 2,452.20 "
06/04/2023,1246066,Barrie Bookkeeping & Payroll,Adult Social Care - Other Transfer Pay,Bi-Borough Director of Integrated Care," 11,674.68 "
06/04/2023,1246066,Barrie Bookkeeping & Payroll,Adult Social Care - Other Transfer Pay,Bi-Borough Director of Integrated Care," 1,991.00 "
06/04/2023,1246066,Barrie Bookkeeping & Payroll,Adult Social Care - Other Transfer Pay,Bi-Borough Director of Integrated Care," 2,056.84 "
06/04/2023,1246066,Barrie Bookkeeping & Payroll,Adult Social Care - Other Transfer Pay,Bi-Borough Director of Integrated Care," 2,854.04 "
06/04/2023,1246066,Barrie Bookkeeping & Payroll,Adult Social Care - Other Transfer Pay,Bi-Borough Director of Integrated Care, 876.08 
06/04/2023,1292106,PERSONAL PAYMENTS,Adult Social Care - Other Transfer Pay,Bi-Borough Director of Integrated Care," 1,155.40 "
06/04/2023,1250656,PERSONAL PAYMENTS,Social Care - Direct Payments,Bi-Borough Director of Integrated Care," 1,118.36 "
06/04/2023,1249942,PERSONAL PAYMENTS,Adult Social Care - Other Transfer Pay,Bi-Borough Director of Integrated Care," 6,343.36 "
06/04/2023,1254540,PERSONAL PAYMENTS,Adult Social Care - Other Transfer Pay,Bi-Borough Director of Integrated Care, 939.92 
06/04/2023,1246066,Barrie Bookkeeping & Payroll,Adult Social Care - Other Transfer Pay,Bi-Borough Director of Integrated Care, 544.00 
06/04/2023,1291747,PERSONAL PAYMENTS,Adult Social Care - Other Transfer Pay,Bi-Borough Director of Integrated Care," 4,521.00 "
06/04/2023,1291747,PERSONAL PAYMENTS,Adult Social Care - Other Transfer Pay,Bi-Borough Director of Integrated Care," 1,531.32 "
06/04/2023,1291747,PERSONAL PAYMENTS,Adult Social Care - Other Transfer Pay,Bi-Borough Director of Integrated Care," 1,216.80 "
06/04/2023,1291747,PERSONAL PAYMENTS,Adult Social Care - Other Transfer Pay,Bi-Borough Director of Integrated Care," 3,892.72 "
06/04/2023,1257487,PERSONAL PAYMENTS,Adult Social Care - Other Transfer Pay,Bi-Borough Director of Integrated Care, 505.00 
06/04/2023,1250074,PERSONAL PAYMENTS,Adult Social Care - Other Transfer Pay,Bi-Borough Director of Integrated Care," 6,904.80 "
06/04/2023,1247820,PERSONAL PAYMENTS,Adult Social Care - Other Transfer Pay,Bi-Borough Director of Integrated Care," 8,751.04 "
06/04/2023,1246066,Barrie Bookkeeping & Payroll,Adult Social Care - Other Transfer Pay,Bi-Borough Director of Integrated Care, 818.00 
06/04/2023,1246066,Barrie Bookkeeping & Payroll,Adult Social Care - Other Transfer Pay,Bi-Borough Director of Integrated Care," 1,066.28 "
06/04/2023,1249876,PERSONAL PAYMENTS,Adult Social Care - Other Transfer Pay,Bi-Borough Director of Integrated Care," 1,327.04 "
06/04/2023,1246066,Barrie Bookkeeping & Payroll,Adult Social Care - Other Transfer Pay,Bi-Borough Director of Integrated Care," 2,585.32 "
06/04/2023,1246066,Barrie Bookkeeping & Payroll,Adult Social Care - Other Transfer Pay,Bi-Borough Director of Integrated Care," 2,618.28 "
06/04/2023,1291747,PERSONAL PAYMENTS,Adult Social Care - Other Transfer Pay,Bi-Borough Director of Integrated Care," 1,682.52 "
12/04/2023,1245825,Sweet Tree Home Care Services,Adult Social Care - Other Transfer Pay,Bi-Borough Director of Integrated Care," 3,559.77 "
12/04/2023,1245825,Sweet Tree Home Care Services,Adult Social Care - Other Transfer Pay,Bi-Borough Director of Integrated Care," 4,136.16 "
20/04/2023,1291747,PERSONAL PAYMENTS,Adult Social Care - Other Transfer Pay,Bi-Borough Director of Integrated Care," 3,566.64 "
04/05/2023,1269674,PERSONAL PAYMENTS,Adult Social Care - Other Transfer Pay,Bi-Borough Director of Integrated Care, 889.28 
04/05/2023,1248354,PERSONAL PAYMENTS,Adult Social Care - Other Transfer Pay,Bi-Borough Director of Integrated Care," 2,425.36 "
04/05/2023,1250215,PERSONAL PAYMENTS,Adult Social Care - Other Transfer Pay,Bi-Borough Director of Integrated Care," 1,361.56 "
04/05/2023,1246066,Barrie Bookkeeping & Payroll,Adult Social Care - Other Transfer Pay,Bi-Borough Director of Integrated Care," 5,914.56 "
04/05/2023,1246066,Barrie Bookkeeping & Payroll,Adult Social Care - Other Transfer Pay,Bi-Borough Director of Integrated Care," 5,754.04 "
04/05/2023,1291747,PERSONAL PAYMENTS,Adult Social Care - Other Transfer Pay,Bi-Borough Director of Integrated Care," 1,480.36 "
04/05/2023,1250037,PERSONAL PAYMENTS,Adult Social Care - Other Transfer Pay,Bi-Borough Director of Integrated Care," 2,383.72 "
04/05/2023,1247727,PERSONAL PAYMENTS,Social Care - Direct Payments,Bi-Borough Director of Integrated Care," 2,740.72 "
04/05/2023,1246066,Barrie Bookkeeping & Payroll,Adult Social Care - Other Transfer Pay,Bi-Borough Director of Integrated Care, 544.00 
04/05/2023,1291747,PERSONAL PAYMENTS,Adult Social Care - Other Transfer Pay,Bi-Borough Director of Integrated Care," 1,531.32 "
04/05/2023,1291747,PERSONAL PAYMENTS,Adult Social Care - Other Transfer Pay,Bi-Borough Director of Integrated Care," 4,521.00 "
04/05/2023,1291747,PERSONAL PAYMENTS,Adult Social Care - Other Transfer Pay,Bi-Borough Director of Integrated Care," 1,216.80 "
04/05/2023,1291747,PERSONAL PAYMENTS,Adult Social Care - Other Transfer Pay,Bi-Borough Director of Integrated Care," 3,892.72 "
04/05/2023,1248010,PERSONAL PAYMENTS,Adult Social Care - Other Transfer Pay,Bi-Borough Director of Integrated Care, 646.16 
04/05/2023,1278955,PERSONAL PAYMENTS,Social Care - Direct Payments,Bi-Borough Director of Integrated Care," 1,580.32 "
04/05/2023,1248154,PERSONAL PAYMENTS,Adult Social Care - Other Transfer Pay,Bi-Borough Director of Integrated Care, 829.52 
04/05/2023,1248148,PERSONAL PAYMENTS,Adult Social Care - Other Transfer Pay,Bi-Borough Director of Integrated Care," 1,638.96 "
04/05/2023,1246066,Barrie Bookkeeping & Payroll,Adult Social Care - Other Transfer Pay,Bi-Borough Director of Integrated Care," 2,585.32 "
04/05/2023,1250074,PERSONAL PAYMENTS,Adult Social Care - Other Transfer Pay,Bi-Borough Director of Integrated Care," 6,904.80 "
04/05/2023,1249876,PERSONAL PAYMENTS,Adult Social Care - Other Transfer Pay,Bi-Borough Director of Integrated Care, 648.92 
04/05/2023,1257487,PERSONAL PAYMENTS,Adult Social Care - Other Transfer Pay,Bi-Borough Director of Integrated Care, 505.00 
04/05/2023,1291747,PERSONAL PAYMENTS,Adult Social Care - Other Transfer Pay,Bi-Borough Director of Integrated Care," 2,552.20 "
04/05/2023,1247804,PERSONAL PAYMENTS,Adult Social Care - Other Transfer Pay,Bi-Borough Director of Integrated Care, 752.20 
04/05/2023,1250670,PERSONAL PAYMENTS,Adult Social Care - Other Transfer Pay,Bi-Borough Director of Integrated Care," 1,571.52 "
04/05/2023,1250627,PERSONAL PAYMENTS,Adult Social Care - Other Transfer Pay,Bi-Borough Director of Integrated Care," 2,508.00 "
04/05/2023,1250044,PERSONAL PAYMENTS,Adult Social Care - Other Transfer Pay,Bi-Borough Director of Integrated Care, 724.04 
04/05/2023,1250012,PERSONAL PAYMENTS,Adult Social Care - Other Transfer Pay,Bi-Borough Director of Integrated Care, 838.60 
04/05/2023,1250138,PERSONAL PAYMENTS,Adult Social Care - Other Transfer Pay,Bi-Borough Director of Integrated Care, 916.00 
04/05/2023,1246066,Barrie Bookkeeping & Payroll,Adult Social Care - Other Transfer Pay,Bi-Borough Director of Integrated Care," 1,164.60 "
04/05/2023,1246066,Barrie Bookkeeping & Payroll,Adult Social Care - Other Transfer Pay,Bi-Borough Director of Integrated Care, 843.96 
04/05/2023,1246066,Barrie Bookkeeping & Payroll,Adult Social Care - Other Transfer Pay,Bi-Borough Director of Integrated Care," 1,070.52 "
04/05/2023,1250186,PERSONAL PAYMENTS,Adult Social Care - Other Transfer Pay,Bi-Borough Director of Integrated Care," 3,404.96 "
04/05/2023,1248828,PERSONAL PAYMENTS,Adult Social Care - Other Transfer Pay,Bi-Borough Director of Integrated Care, 868.76 
04/05/2023,1272570,PERSONAL PAYMENTS,Adult Social Care - Other Transfer Pay,Bi-Borough Director of Integrated Care," 1,051.24 "
04/05/2023,1250674,PERSONAL PAYMENTS,Adult Social Care - Other Transfer Pay,Bi-Borough Director of Integrated Care," 2,652.16 "
04/05/2023,1246066,Barrie Bookkeeping & Payroll,Adult Social Care - Other Transfer Pay,Bi-Borough Director of Integrated Care," 1,029.88 "
04/05/2023,1246066,Barrie Bookkeeping & Payroll,Adult Social Care - Other Transfer Pay,Bi-Borough Director of Integrated Care," 2,452.20 "
04/05/2023,1246066,Barrie Bookkeeping & Payroll,Adult Social Care - Other Transfer Pay,Bi-Borough Director of Integrated Care," 11,674.68 "
04/05/2023,1246066,Barrie Bookkeeping & Payroll,Adult Social Care - Other Transfer Pay,Bi-Borough Director of Integrated Care," 1,991.00 "
04/05/2023,1246066,Barrie Bookkeeping & Payroll,Adult Social Care - Other Transfer Pay,Bi-Borough Director of Integrated Care," 2,056.84 "
04/05/2023,1246066,Barrie Bookkeeping & Payroll,Adult Social Care - Other Transfer Pay,Bi-Borough Director of Integrated Care," 2,854.04 "
04/05/2023,1246066,Barrie Bookkeeping & Payroll,Adult Social Care - Other Transfer Pay,Bi-Borough Director of Integrated Care," 1,056.79 "
04/05/2023,1292106,PERSONAL PAYMENTS,Adult Social Care - Other Transfer Pay,Bi-Borough Director of Integrated Care," 1,155.40 "
04/05/2023,1280973,PERSONAL PAYMENTS,Adult Social Care - Other Transfer Pay,Bi-Borough Director of Integrated Care," 6,394.48 "
04/05/2023,1268346,PERSONAL PAYMENTS,Adult Social Care - Other Transfer Pay,Bi-Borough Director of Integrated Care," 2,234.80 "
04/05/2023,1246066,Barrie Bookkeeping & Payroll,Adult Social Care - Other Transfer Pay,Bi-Borough Director of Integrated Care, 818.00 
04/05/2023,1246066,Barrie Bookkeeping & Payroll,Adult Social Care - Other Transfer Pay,Bi-Borough Director of Integrated Care," 1,066.28 "
04/05/2023,1246066,Barrie Bookkeeping & Payroll,Adult Social Care - Other Transfer Pay,Bi-Borough Director of Integrated Care," 2,618.28 "
04/05/2023,1291747,PERSONAL PAYMENTS,Adult Social Care - Other Transfer Pay,Bi-Borough Director of Integrated Care," 1,682.52 "
04/05/2023,1247820,PERSONAL PAYMENTS,Adult Social Care - Other Transfer Pay,Bi-Borough Director of Integrated Care," 8,751.04 "
04/05/2023,1249942,PERSONAL PAYMENTS,Adult Social Care - Other Transfer Pay,Bi-Borough Director of Integrated Care," 6,343.36 "
04/05/2023,1250656,PERSONAL PAYMENTS,Social Care - Direct Payments,Bi-Borough Director of Integrated Care," 1,118.36 "
04/05/2023,1246066,Barrie Bookkeeping & Payroll,Adult Social Care - Other Transfer Pay,Bi-Borough Director of Integrated Care," 2,690.16 "
04/05/2023,1246066,Barrie Bookkeeping & Payroll,Adult Social Care - Other Transfer Pay,Bi-Borough Director of Integrated Care," 1,688.60 "
04/05/2023,1246066,Barrie Bookkeeping & Payroll,Adult Social Care - Other Transfer Pay,Bi-Borough Director of Integrated Care, 733.80 
04/05/2023,1291747,PERSONAL PAYMENTS,Adult Social Care - Other Transfer Pay,Bi-Borough Director of Integrated Care," 2,041.76 "
04/05/2023,1291747,PERSONAL PAYMENTS,Adult Social Care - Other Transfer Pay,Bi-Borough Director of Integrated Care," 1,201.80 "
04/05/2023,1250536,PERSONAL PAYMENTS,Adult Social Care - Other Transfer Pay,Bi-Borough Director of Integrated Care, 678.64 
04/05/2023,1254540,PERSONAL PAYMENTS,Adult Social Care - Other Transfer Pay,Bi-Borough Director of Integrated Care, 939.92 
15/05/2023,1245825,Sweet Tree Home Care Services,Adult Social Care - Other Transfer Pay,Bi-Borough Director of Integrated Care," 3,971.73 "
01/06/2023,1246066,Barrie Bookkeeping & Payroll,Adult Social Care - Other Transfer Pay,Bi-Borough Director of Integrated Care," 1,029.88 "
01/06/2023,1246066,Barrie Bookkeeping & Payroll,Adult Social Care - Other Transfer Pay,Bi-Borough Director of Integrated Care," 2,452.20 "
01/06/2023,1246066,Barrie Bookkeeping & Payroll,Adult Social Care - Other Transfer Pay,Bi-Borough Director of Integrated Care," 11,674.68 "
01/06/2023,1246066,Barrie Bookkeeping & Payroll,Adult Social Care - Other Transfer Pay,Bi-Borough Director of Integrated Care," 1,991.00 "
01/06/2023,1246066,Barrie Bookkeeping & Payroll,Adult Social Care - Other Transfer Pay,Bi-Borough Director of Integrated Care," 2,056.84 "
01/06/2023,1246066,Barrie Bookkeeping & Payroll,Adult Social Care - Other Transfer Pay,Bi-Borough Director of Integrated Care," 2,854.04 "
01/06/2023,1246066,Barrie Bookkeeping & Payroll,Adult Social Care - Other Transfer Pay,Bi-Borough Director of Integrated Care, 918.96 
01/06/2023,1292106,PERSONAL PAYMENTS,Adult Social Care - Other Transfer Pay,Bi-Borough Director of Integrated Care," 1,155.40 "
01/06/2023,1280973,PERSONAL PAYMENTS,Adult Social Care - Other Transfer Pay,Bi-Borough Director of Integrated Care," 6,394.48 "
01/06/2023,1268346,PERSONAL PAYMENTS,Adult Social Care - Other Transfer Pay,Bi-Borough Director of Integrated Care," 2,234.80 "
01/06/2023,1246066,Barrie Bookkeeping & Payroll,Adult Social Care - Other Transfer Pay,Bi-Borough Director of Integrated Care, 818.00 
01/06/2023,1246066,Barrie Bookkeeping & Payroll,Adult Social Care - Other Transfer Pay,Bi-Borough Director of Integrated Care," 1,066.28 "
01/06/2023,1246066,Barrie Bookkeeping & Payroll,Adult Social Care - Other Transfer Pay,Bi-Borough Director of Integrated Care," 2,618.28 "
01/06/2023,1291747,PERSONAL PAYMENTS,Adult Social Care - Other Transfer Pay,Bi-Borough Director of Integrated Care," 1,682.52 "
01/06/2023,1247820,PERSONAL PAYMENTS,Adult Social Care - Other Transfer Pay,Bi-Borough Director of Integrated Care," 8,751.04 "
01/06/2023,1249942,PERSONAL PAYMENTS,Adult Social Care - Other Transfer Pay,Bi-Borough Director of Integrated Care," 6,343.36 "
01/06/2023,1250656,PERSONAL PAYMENTS,Social Care - Direct Payments,Bi-Borough Director of Integrated Care," 1,118.36 "
01/06/2023,1246066,Barrie Bookkeeping & Payroll,Adult Social Care - Other Transfer Pay,Bi-Borough Director of Integrated Care," 2,690.16 "
01/06/2023,1246066,Barrie Bookkeeping & Payroll,Adult Social Care - Other Transfer Pay,Bi-Borough Director of Integrated Care," 1,688.60 "
01/06/2023,1246066,Barrie Bookkeeping & Payroll,Adult Social Care - Other Transfer Pay,Bi-Borough Director of Integrated Care, 733.80 
01/06/2023,1291747,PERSONAL PAYMENTS,Adult Social Care - Other Transfer Pay,Bi-Borough Director of Integrated Care," 2,041.76 "
01/06/2023,1291747,PERSONAL PAYMENTS,Adult Social Care - Other Transfer Pay,Bi-Borough Director of Integrated Care," 1,201.80 "
01/06/2023,1250536,PERSONAL PAYMENTS,Adult Social Care - Other Transfer Pay,Bi-Borough Director of Integrated Care, 678.64 
01/06/2023,1254540,PERSONAL PAYMENTS,Adult Social Care - Other Transfer Pay,Bi-Borough Director of Integrated Care, 939.92 
01/06/2023,1269674,PERSONAL PAYMENTS,Adult Social Care - Other Transfer Pay,Bi-Borough Director of Integrated Care, 889.28 
01/06/2023,1248354,PERSONAL PAYMENTS,Adult Social Care - Other Transfer Pay,Bi-Borough Director of Integrated Care," 2,425.36 "
01/06/2023,1250215,PERSONAL PAYMENTS,Adult Social Care - Other Transfer Pay,Bi-Borough Director of Integrated Care," 1,361.56 "
01/06/2023,1246066,Barrie Bookkeeping & Payroll,Adult Social Care - Other Transfer Pay,Bi-Borough Director of Integrated Care," 5,914.56 "
01/06/2023,1246066,Barrie Bookkeeping & Payroll,Adult Social Care - Other Transfer Pay,Bi-Borough Director of Integrated Care," 5,754.04 "
01/06/2023,1291747,PERSONAL PAYMENTS,Adult Social Care - Other Transfer Pay,Bi-Borough Director of Integrated Care," 1,480.36 "
01/06/2023,1250037,PERSONAL PAYMENTS,Adult Social Care - Other Transfer Pay,Bi-Borough Director of Integrated Care," 2,383.72 "
01/06/2023,1247727,PERSONAL PAYMENTS,Social Care - Direct Payments,Bi-Borough Director of Integrated Care," 2,740.72 "
01/06/2023,1246066,Barrie Bookkeeping & Payroll,Adult Social Care - Other Transfer Pay,Bi-Borough Director of Integrated Care, 544.00 
01/06/2023,1291747,PERSONAL PAYMENTS,Adult Social Care - Other Transfer Pay,Bi-Borough Director of Integrated Care," 1,531.32 "
01/06/2023,1291747,PERSONAL PAYMENTS,Adult Social Care - Other Transfer Pay,Bi-Borough Director of Integrated Care," 4,521.00 "
01/06/2023,1291747,PERSONAL PAYMENTS,Adult Social Care - Other Transfer Pay,Bi-Borough Director of Integrated Care," 1,216.80 "
01/06/2023,1291747,PERSONAL PAYMENTS,Adult Social Care - Other Transfer Pay,Bi-Borough Director of Integrated Care," 3,892.72 "
01/06/2023,1248010,PERSONAL PAYMENTS,Adult Social Care - Other Transfer Pay,Bi-Borough Director of Integrated Care, 646.16 
01/06/2023,1278955,PERSONAL PAYMENTS,Social Care - Direct Payments,Bi-Borough Director of Integrated Care," 1,580.32 "
01/06/2023,1248154,PERSONAL PAYMENTS,Adult Social Care - Other Transfer Pay,Bi-Borough Director of Integrated Care, 829.52 
01/06/2023,1248148,PERSONAL PAYMENTS,Adult Social Care - Other Transfer Pay,Bi-Borough Director of Integrated Care," 1,638.96 "
01/06/2023,1246066,Barrie Bookkeeping & Payroll,Adult Social Care - Other Transfer Pay,Bi-Borough Director of Integrated Care," 2,585.32 "
01/06/2023,1250074,PERSONAL PAYMENTS,Adult Social Care - Other Transfer Pay,Bi-Borough Director of Integrated Care," 6,904.80 "
01/06/2023,1249876,PERSONAL PAYMENTS,Adult Social Care - Other Transfer Pay,Bi-Borough Director of Integrated Care, 648.92 
01/06/2023,1257487,PERSONAL PAYMENTS,Adult Social Care - Other Transfer Pay,Bi-Borough Director of Integrated Care, 505.00 
01/06/2023,1291747,PERSONAL PAYMENTS,Adult Social Care - Other Transfer Pay,Bi-Borough Director of Integrated Care," 2,552.20 "
01/06/2023,1247804,PERSONAL PAYMENTS,Adult Social Care - Other Transfer Pay,Bi-Borough Director of Integrated Care, 752.20 
01/06/2023,1250670,PERSONAL PAYMENTS,Adult Social Care - Other Transfer Pay,Bi-Borough Director of Integrated Care," 1,571.52 "
01/06/2023,1250627,PERSONAL PAYMENTS,Adult Social Care - Other Transfer Pay,Bi-Borough Director of Integrated Care," 2,508.00 "
01/06/2023,1250044,PERSONAL PAYMENTS,Adult Social Care - Other Transfer Pay,Bi-Borough Director of Integrated Care, 724.04 
01/06/2023,1250012,PERSONAL PAYMENTS,Adult Social Care - Other Transfer Pay,Bi-Borough Director of Integrated Care, 838.60 
01/06/2023,1250138,PERSONAL PAYMENTS,Adult Social Care - Other Transfer Pay,Bi-Borough Director of Integrated Care, 916.00 
01/06/2023,1246066,Barrie Bookkeeping & Payroll,Adult Social Care - Other Transfer Pay,Bi-Borough Director of Integrated Care," 1,164.60 "
01/06/2023,1246066,Barrie Bookkeeping & Payroll,Adult Social Care - Other Transfer Pay,Bi-Borough Director of Integrated Care, 843.96 
01/06/2023,1246066,Barrie Bookkeeping & Payroll,Adult Social Care - Other Transfer Pay,Bi-Borough Director of Integrated Care," 1,070.52 "
01/06/2023,1250186,PERSONAL PAYMENTS,Adult Social Care - Other Transfer Pay,Bi-Borough Director of Integrated Care," 3,404.96 "
01/06/2023,1248828,PERSONAL PAYMENTS,Adult Social Care - Other Transfer Pay,Bi-Borough Director of Integrated Care, 868.76 
01/06/2023,1272570,PERSONAL PAYMENTS,Adult Social Care - Other Transfer Pay,Bi-Borough Director of Integrated Care," 1,051.24 "
01/06/2023,1250674,PERSONAL PAYMENTS,Adult Social Care - Other Transfer Pay,Bi-Borough Director of Integrated Care," 2,652.16 "
09/06/2023,1291747,PERSONAL PAYMENTS,Adult Social Care - Other Transfer Pay,Bi-Borough Director of Integrated Care," 3,260.39 "
29/06/2023,1280973,PERSONAL PAYMENTS,Adult Social Care - Other Transfer Pay,Bi-Borough Director of Integrated Care," 6,394.48 "
29/06/2023,1246066,Barrie Bookkeeping & Payroll,Adult Social Care - Other Transfer Pay,Bi-Borough Director of Integrated Care," 2,854.04 "
29/06/2023,1246066,Barrie Bookkeeping & Payroll,Adult Social Care - Other Transfer Pay,Bi-Borough Director of Integrated Care," 2,452.20 "
29/06/2023,1246066,Barrie Bookkeeping & Payroll,Adult Social Care - Other Transfer Pay,Bi-Borough Director of Integrated Care," 2,056.84 "
29/06/2023,1268346,PERSONAL PAYMENTS,Adult Social Care - Other Transfer Pay,Bi-Borough Director of Integrated Care," 2,234.80 "
29/06/2023,1246066,Barrie Bookkeeping & Payroll,Adult Social Care - Other Transfer Pay,Bi-Borough Director of Integrated Care, 918.96 
29/06/2023,1292106,PERSONAL PAYMENTS,Adult Social Care - Other Transfer Pay,Bi-Borough Director of Integrated Care," 1,155.40 "
29/06/2023,1246066,Barrie Bookkeeping & Payroll,Adult Social Care - Other Transfer Pay,Bi-Borough Director of Integrated Care," 11,674.68 "
29/06/2023,1246066,Barrie Bookkeeping & Payroll,Adult Social Care - Other Transfer Pay,Bi-Borough Director of Integrated Care," 1,029.88 "
29/06/2023,1246066,Barrie Bookkeeping & Payroll,Adult Social Care - Other Transfer Pay,Bi-Borough Director of Integrated Care," 1,991.00 "
29/06/2023,1254540,PERSONAL PAYMENTS,Adult Social Care - Other Transfer Pay,Bi-Borough Director of Integrated Care, 939.92 
29/06/2023,1246066,Barrie Bookkeeping & Payroll,Adult Social Care - Other Transfer Pay,Bi-Borough Director of Integrated Care," 1,066.28 "
29/06/2023,1250656,PERSONAL PAYMENTS,Social Care - Direct Payments,Bi-Borough Director of Integrated Care," 1,118.36 "
29/06/2023,1246066,Barrie Bookkeeping & Payroll,Adult Social Care - Other Transfer Pay,Bi-Borough Director of Integrated Care," 2,618.28 "
29/06/2023,1269674,PERSONAL PAYMENTS,Adult Social Care - Other Transfer Pay,Bi-Borough Director of Integrated Care, 595.00 
29/06/2023,1269674,PERSONAL PAYMENTS,Adult Social Care - Other Transfer Pay,Bi-Borough Director of Integrated Care, 889.28 
29/06/2023,1291747,PERSONAL PAYMENTS,Adult Social Care - Other Transfer Pay,Bi-Borough Director of Integrated Care," 2,041.76 "
29/06/2023,1246066,Barrie Bookkeeping & Payroll,Adult Social Care - Other Transfer Pay,Bi-Borough Director of Integrated Care," 2,690.16 "
29/06/2023,1246066,Barrie Bookkeeping & Payroll,Adult Social Care - Other Transfer Pay,Bi-Borough Director of Integrated Care," 1,688.60 "
29/06/2023,1291747,PERSONAL PAYMENTS,Adult Social Care - Other Transfer Pay,Bi-Borough Director of Integrated Care," 1,201.80 "
29/06/2023,1247820,PERSONAL PAYMENTS,Adult Social Care - Other Transfer Pay,Bi-Borough Director of Integrated Care," 8,751.04 "
29/06/2023,1246066,Barrie Bookkeeping & Payroll,Adult Social Care - Other Transfer Pay,Bi-Borough Director of Integrated Care, 818.00 
29/06/2023,1249942,PERSONAL PAYMENTS,Adult Social Care - Other Transfer Pay,Bi-Borough Director of Integrated Care," 6,343.36 "
29/06/2023,1291747,PERSONAL PAYMENTS,Adult Social Care - Other Transfer Pay,Bi-Borough Director of Integrated Care," 1,682.52 "
29/06/2023,1250536,PERSONAL PAYMENTS,Adult Social Care - Other Transfer Pay,Bi-Borough Director of Integrated Care, 678.64 
29/06/2023,1246066,Barrie Bookkeeping & Payroll,Adult Social Care - Other Transfer Pay,Bi-Borough Director of Integrated Care, 733.80 
29/06/2023,1248354,PERSONAL PAYMENTS,Adult Social Care - Other Transfer Pay,Bi-Borough Director of Integrated Care," 2,425.36 "
29/06/2023,1250215,PERSONAL PAYMENTS,Adult Social Care - Other Transfer Pay,Bi-Borough Director of Integrated Care," 1,361.56 "
29/06/2023,1250037,PERSONAL PAYMENTS,Adult Social Care - Other Transfer Pay,Bi-Borough Director of Integrated Care," 2,383.72 "
29/06/2023,1247727,PERSONAL PAYMENTS,Social Care - Direct Payments,Bi-Borough Director of Integrated Care," 2,740.72 "
29/06/2023,1291747,PERSONAL PAYMENTS,Adult Social Care - Other Transfer Pay,Bi-Borough Director of Integrated Care," 1,480.36 "
29/06/2023,1246066,Barrie Bookkeeping & Payroll,Adult Social Care - Other Transfer Pay,Bi-Borough Director of Integrated Care," 5,914.56 "
29/06/2023,1246066,Barrie Bookkeeping & Payroll,Adult Social Care - Other Transfer Pay,Bi-Borough Director of Integrated Care," 5,754.04 "
29/06/2023,1246066,Barrie Bookkeeping & Payroll,Adult Social Care - Other Transfer Pay,Bi-Borough Director of Integrated Care, 544.00 
29/06/2023,1291747,PERSONAL PAYMENTS,Adult Social Care - Other Transfer Pay,Bi-Borough Director of Integrated Care," 1,531.32 "
29/06/2023,1278955,PERSONAL PAYMENTS,Social Care - Direct Payments,Bi-Borough Director of Integrated Care," 1,580.32 "
29/06/2023,1248010,PERSONAL PAYMENTS,Adult Social Care - Other Transfer Pay,Bi-Borough Director of Integrated Care, 646.16 
29/06/2023,1248154,PERSONAL PAYMENTS,Adult Social Care - Other Transfer Pay,Bi-Borough Director of Integrated Care, 829.52 
29/06/2023,1248148,PERSONAL PAYMENTS,Adult Social Care - Other Transfer Pay,Bi-Borough Director of Integrated Care," 1,638.96 "
29/06/2023,1291747,PERSONAL PAYMENTS,Adult Social Care - Other Transfer Pay,Bi-Borough Director of Integrated Care," 3,892.72 "
29/06/2023,1291747,PERSONAL PAYMENTS,Adult Social Care - Other Transfer Pay,Bi-Borough Director of Integrated Care," 4,521.00 "
29/06/2023,1291747,PERSONAL PAYMENTS,Adult Social Care - Other Transfer Pay,Bi-Borough Director of Integrated Care," 1,216.80 "
29/06/2023,1250074,PERSONAL PAYMENTS,Adult Social Care - Other Transfer Pay,Bi-Borough Director of Integrated Care," 6,904.80 "
29/06/2023,1246066,Barrie Bookkeeping & Payroll,Adult Social Care - Other Transfer Pay,Bi-Borough Director of Integrated Care," 2,585.32 "
29/06/2023,1257487,PERSONAL PAYMENTS,Adult Social Care - Other Transfer Pay,Bi-Borough Director of Integrated Care, 505.00 
29/06/2023,1249876,PERSONAL PAYMENTS,Adult Social Care - Other Transfer Pay,Bi-Borough Director of Integrated Care, 648.92 
29/06/2023,1247804,PERSONAL PAYMENTS,Adult Social Care - Other Transfer Pay,Bi-Borough Director of Integrated Care, 752.20 
29/06/2023,1250627,PERSONAL PAYMENTS,Adult Social Care - Other Transfer Pay,Bi-Borough Director of Integrated Care," 2,508.00 "
29/06/2023,1250012,PERSONAL PAYMENTS,Adult Social Care - Other Transfer Pay,Bi-Borough Director of Integrated Care, 838.60 
29/06/2023,1291747,PERSONAL PAYMENTS,Adult Social Care - Other Transfer Pay,Bi-Borough Director of Integrated Care," 2,552.20 "
29/06/2023,1250670,PERSONAL PAYMENTS,Adult Social Care - Other Transfer Pay,Bi-Borough Director of Integrated Care," 1,571.52 "
29/06/2023,1250138,PERSONAL PAYMENTS,Adult Social Care - Other Transfer Pay,Bi-Borough Director of Integrated Care, 916.00 
29/06/2023,1250044,PERSONAL PAYMENTS,Adult Social Care - Other Transfer Pay,Bi-Borough Director of Integrated Care, 724.04 
29/06/2023,1246066,Barrie Bookkeeping & Payroll,Adult Social Care - Other Transfer Pay,Bi-Borough Director of Integrated Care," 1,164.60 "
29/06/2023,1246066,Barrie Bookkeeping & Payroll,Adult Social Care - Other Transfer Pay,Bi-Borough Director of Integrated Care," 1,070.52 "
29/06/2023,1250674,PERSONAL PAYMENTS,Adult Social Care - Other Transfer Pay,Bi-Borough Director of Integrated Care," 2,652.16 "
29/06/2023,1246066,Barrie Bookkeeping & Payroll,Adult Social Care - Other Transfer Pay,Bi-Borough Director of Integrated Care, 843.96 
29/06/2023,1250186,PERSONAL PAYMENTS,Adult Social Care - Other Transfer Pay,Bi-Borough Director of Integrated Care," 3,404.96 "
29/06/2023,1272570,PERSONAL PAYMENTS,Adult Social Care - Other Transfer Pay,Bi-Borough Director of Integrated Care," 1,051.24 "
29/06/2023,1248828,PERSONAL PAYMENTS,Adult Social Care - Other Transfer Pay,Bi-Borough Director of Integrated Care, 868.76 
02/05/2023,1258049,PSS (UK),,Bi-Borough Director of Integrated Care," 2,280.82 "
24/05/2023,1258049,PSS (UK),,Bi-Borough Director of Integrated Care," 2,660.96 "
21/06/2023,1258049,PSS (UK),,Bi-Borough Director of Integrated Care," 3,031.58 "
02/05/2023,1245021,Paradise Community,,Bi-Borough Director of Integrated Care," 9,499.69 "
24/05/2023,1245021,Paradise Community,,Bi-Borough Director of Integrated Care," 11,143.72 "
21/06/2023,1245021,Paradise Community,,Bi-Borough Director of Integrated Care," 11,143.72 "
02/05/2023,1292143,Pathway for Care Ltd T/a Transformi,,Bi-Borough Director of Integrated Care," 8,942.57 "
24/05/2023,1292143,Pathway for Care Ltd T/a Transformi,,Bi-Borough Director of Integrated Care," 11,364.50 "
21/06/2023,1292143,Pathway for Care Ltd T/a Transformi,,Bi-Borough Director of Integrated Care," 10,954.64 "
02/05/2023,1250448,PERSONAL PAYMENTS,,Bi-Borough Director of Integrated Care," 1,216.49 "
24/05/2023,1250448,PERSONAL PAYMENTS,,Bi-Borough Director of Integrated Care," 1,419.24 "
21/06/2023,1250448,PERSONAL PAYMENTS,,Bi-Borough Director of Integrated Care," 1,419.24 "
02/05/2023,1245163,Poor Servants of the mother of,,Bi-Borough Director of Integrated Care," 2,467.61 "
24/05/2023,1245163,Poor Servants of the mother of,,Bi-Borough Director of Integrated Care," 2,878.88 "
21/06/2023,1245163,Poor Servants of the mother of,,Bi-Borough Director of Integrated Care," 2,878.88 "
02/05/2023,1245166,Precious Homes Support Ltd,,Bi-Borough Director of Integrated Care," 2,280.00 "
02/05/2023,1245166,Precious Homes Support Ltd,,Bi-Borough Director of Integrated Care," 2,280.00 "
24/05/2023,1245166,Precious Homes Support Ltd,,Bi-Borough Director of Integrated Care," 2,897.50 "
24/05/2023,1245166,Precious Homes Support Ltd,,Bi-Borough Director of Integrated Care," 2,897.50 "
21/06/2023,1245166,Precious Homes Support Ltd,,Bi-Borough Director of Integrated Care," 2,793.00 "
21/06/2023,1245166,Precious Homes Support Ltd,,Bi-Borough Director of Integrated Care," 2,793.00 "
02/05/2023,1248563,Pursuing Independent Paths,B*Voluntary-Spot-V Dep-Enhanced - do not u,Bi-Borough Director of Integrated Care," 1,020.88 "
02/05/2023,1248563,Pursuing Independent Paths,B*Voluntary-Spot-V Dep-Enhanced - do not u,Bi-Borough Director of Integrated Care," 1,276.10 "
02/05/2023,1248563,Pursuing Independent Paths,B*Voluntary-Spot-V Dep-Enhanced - do not u,Bi-Borough Director of Integrated Care," 1,531.32 "
02/05/2023,1248563,Pursuing Independent Paths,B*Voluntary-Spot-V Dep-Enhanced - do not u,Bi-Borough Director of Integrated Care," 1,786.54 "
02/05/2023,1248563,Pursuing Independent Paths,B*Voluntary-Spot-V Dep-Enhanced - do not u,Bi-Borough Director of Integrated Care," 1,289.32 "
02/05/2023,1248563,Pursuing Independent Paths,B*Voluntary-Spot-V Dep-Enhanced - do not u,Bi-Borough Director of Integrated Care, 510.44 
02/05/2023,1248563,Pursuing Independent Paths,B*Voluntary-Spot-V Dep-Enhanced - do not u,Bi-Borough Director of Integrated Care," 1,020.88 "
02/05/2023,1248563,Pursuing Independent Paths,B*Voluntary-Spot-V Dep-Enhanced - do not u,Bi-Borough Director of Integrated Care," 1,531.32 "
02/05/2023,1248563,Pursuing Independent Paths,B*Voluntary-Spot-V Dep-Enhanced - do not u,Bi-Borough Director of Integrated Care," 1,531.32 "
02/05/2023,1248563,Pursuing Independent Paths,B*Voluntary-Spot-V Dep-Enhanced - do not u,Bi-Borough Director of Integrated Care," 1,531.32 "
02/05/2023,1248563,Pursuing Independent Paths,B*Voluntary-Spot-V Dep-Enhanced - do not u,Bi-Borough Director of Integrated Care, 510.44 
02/05/2023,1248563,Pursuing Independent Paths,B*Voluntary-Spot-V Dep-Enhanced - do not u,Bi-Borough Director of Integrated Care," 1,531.32 "
02/05/2023,1248563,Pursuing Independent Paths,B*Voluntary-Spot-V Dep-Enhanced - do not u,Bi-Borough Director of Integrated Care," 1,531.32 "
02/05/2023,1248563,Pursuing Independent Paths,B*Voluntary-Spot-V Dep-Enhanced - do not u,Bi-Borough Director of Integrated Care," 1,276.10 "
02/05/2023,1248563,Pursuing Independent Paths,B*Voluntary-Spot-V Dep-Enhanced - do not u,Bi-Borough Director of Integrated Care," 2,552.20 "
02/05/2023,1248563,Pursuing Independent Paths,B*Voluntary-Spot-V Dep-Enhanced - do not u,Bi-Borough Director of Integrated Care," 1,531.32 "
02/05/2023,1248563,Pursuing Independent Paths,B*Voluntary-Spot-V Dep-Enhanced - do not u,Bi-Borough Director of Integrated Care," 1,531.32 "
02/05/2023,1248563,Pursuing Independent Paths,B*Voluntary-Spot-V Dep-Enhanced - do not u,Bi-Borough Director of Integrated Care, 510.44 
02/05/2023,1248563,Pursuing Independent Paths,B*Voluntary-Spot-V Dep-Enhanced - do not u,Bi-Borough Director of Integrated Care," 1,531.32 "
02/05/2023,1248563,Pursuing Independent Paths,B*Voluntary-Spot-V Dep-Enhanced - do not u,Bi-Borough Director of Integrated Care," 1,276.10 "
02/05/2023,1248563,Pursuing Independent Paths,B*Voluntary-Spot-V Dep-Enhanced - do not u,Bi-Borough Director of Integrated Care, 510.44 
02/05/2023,1248563,Pursuing Independent Paths,B*Voluntary-Spot-V Dep-Enhanced - do not u,Bi-Borough Director of Integrated Care," 1,252.72 "
02/05/2023,1248563,Pursuing Independent Paths,B*Voluntary-Spot-V Dep-Enhanced - do not u,Bi-Borough Director of Integrated Care, 510.44 
02/05/2023,1248563,Pursuing Independent Paths,B*Voluntary-Spot-V Dep-Enhanced - do not u,Bi-Borough Director of Integrated Care, 510.44 
02/05/2023,1248563,Pursuing Independent Paths,B*Voluntary-Spot-V Dep-Enhanced - do not u,Bi-Borough Director of Integrated Care," 1,879.08 "
02/05/2023,1248563,Pursuing Independent Paths,B*Voluntary-Spot-V Dep-Enhanced - do not u,Bi-Borough Director of Integrated Care," 1,531.32 "
02/05/2023,1248563,Pursuing Independent Paths,B*Voluntary-Spot-V Dep-Enhanced - do not u,Bi-Borough Director of Integrated Care, 510.44 
02/05/2023,1248563,Pursuing Independent Paths,B*Voluntary-Spot-V Dep-Enhanced - do not u,Bi-Borough Director of Integrated Care," 1,020.88 "
02/05/2023,1248563,Pursuing Independent Paths,B*Voluntary-Spot-V Dep-Enhanced - do not u,Bi-Borough Director of Integrated Care, 546.90 
02/05/2023,1248563,Pursuing Independent Paths,B*Voluntary-Spot-V Dep-Enhanced - do not u,Bi-Borough Director of Integrated Care, 583.36 
02/05/2023,1248563,Pursuing Independent Paths,B*Voluntary-Spot-V Dep-Enhanced - do not u,Bi-Borough Director of Integrated Care, 510.44 
02/05/2023,1248563,Pursuing Independent Paths,B*Voluntary-Spot-V Dep-Enhanced - do not u,Bi-Borough Director of Integrated Care," 1,531.32 "
02/05/2023,1248563,Pursuing Independent Paths,B*Voluntary-Spot-V Dep-Enhanced - do not u,Bi-Borough Director of Integrated Care," 1,020.88 "
02/05/2023,1248563,Pursuing Independent Paths,B*Voluntary-Spot-V Dep-Enhanced - do not u,Bi-Borough Director of Integrated Care," 1,020.88 "
02/05/2023,1248563,Pursuing Independent Paths,B*Voluntary-Spot-V Dep-Enhanced - do not u,Bi-Borough Director of Integrated Care," 1,531.32 "
02/05/2023,1248563,Pursuing Independent Paths,B*Voluntary-Spot-V Dep-Enhanced - do not u,Bi-Borough Director of Integrated Care, 510.44 
02/05/2023,1248563,Pursuing Independent Paths,B*Voluntary-Spot-V Dep-Enhanced - do not u,Bi-Borough Director of Integrated Care," 2,041.76 "
02/05/2023,1248563,Pursuing Independent Paths,B*Voluntary-Spot-V Dep-Enhanced - do not u,Bi-Borough Director of Integrated Care," 1,531.32 "
02/05/2023,1248563,Pursuing Independent Paths,B*Voluntary-Spot-V Dep-Enhanced - do not u,Bi-Borough Director of Integrated Care," 1,531.32 "
02/05/2023,1248563,Pursuing Independent Paths,B*Voluntary-Spot-V Dep-Enhanced - do not u,Bi-Borough Director of Integrated Care," 1,531.32 "
23/05/2023,1248563,Pursuing Independent Paths,B*Voluntary-Spot-V Dep-Enhanced - do not u,Bi-Borough Director of Integrated Care," 1,020.88 "
23/05/2023,1248563,Pursuing Independent Paths,B*Voluntary-Spot-V Dep-Enhanced - do not u,Bi-Borough Director of Integrated Care," 1,276.10 "
23/05/2023,1248563,Pursuing Independent Paths,B*Voluntary-Spot-V Dep-Enhanced - do not u,Bi-Borough Director of Integrated Care," 1,531.32 "
23/05/2023,1248563,Pursuing Independent Paths,B*Voluntary-Spot-V Dep-Enhanced - do not u,Bi-Borough Director of Integrated Care," 1,786.54 "
23/05/2023,1248563,Pursuing Independent Paths,B*Voluntary-Spot-V Dep-Enhanced - do not u,Bi-Borough Director of Integrated Care," 1,289.32 "
23/05/2023,1248563,Pursuing Independent Paths,B*Voluntary-Spot-V Dep-Enhanced - do not u,Bi-Borough Director of Integrated Care, 510.44 
23/05/2023,1248563,Pursuing Independent Paths,B*Voluntary-Spot-V Dep-Enhanced - do not u,Bi-Borough Director of Integrated Care," 1,020.88 "
23/05/2023,1248563,Pursuing Independent Paths,B*Voluntary-Spot-V Dep-Enhanced - do not u,Bi-Borough Director of Integrated Care," 1,531.32 "
23/05/2023,1248563,Pursuing Independent Paths,B*Voluntary-Spot-V Dep-Enhanced - do not u,Bi-Borough Director of Integrated Care," 1,531.32 "
23/05/2023,1248563,Pursuing Independent Paths,B*Voluntary-Spot-V Dep-Enhanced - do not u,Bi-Borough Director of Integrated Care," 1,531.32 "
23/05/2023,1248563,Pursuing Independent Paths,B*Voluntary-Spot-V Dep-Enhanced - do not u,Bi-Borough Director of Integrated Care, 510.44 
23/05/2023,1248563,Pursuing Independent Paths,B*Voluntary-Spot-V Dep-Enhanced - do not u,Bi-Borough Director of Integrated Care," 1,531.32 "
23/05/2023,1248563,Pursuing Independent Paths,B*Voluntary-Spot-V Dep-Enhanced - do not u,Bi-Borough Director of Integrated Care," 1,531.32 "
23/05/2023,1248563,Pursuing Independent Paths,B*Voluntary-Spot-V Dep-Enhanced - do not u,Bi-Borough Director of Integrated Care," 1,276.10 "
23/05/2023,1248563,Pursuing Independent Paths,B*Voluntary-Spot-V Dep-Enhanced - do not u,Bi-Borough Director of Integrated Care," 2,552.20 "
23/05/2023,1248563,Pursuing Independent Paths,B*Voluntary-Spot-V Dep-Enhanced - do not u,Bi-Borough Director of Integrated Care," 1,531.32 "
23/05/2023,1248563,Pursuing Independent Paths,B*Voluntary-Spot-V Dep-Enhanced - do not u,Bi-Borough Director of Integrated Care," 1,531.32 "
23/05/2023,1248563,Pursuing Independent Paths,B*Voluntary-Spot-V Dep-Enhanced - do not u,Bi-Borough Director of Integrated Care, 510.44 
23/05/2023,1248563,Pursuing Independent Paths,B*Voluntary-Spot-V Dep-Enhanced - do not u,Bi-Borough Director of Integrated Care," 1,531.32 "
23/05/2023,1248563,Pursuing Independent Paths,B*Voluntary-Spot-V Dep-Enhanced - do not u,Bi-Borough Director of Integrated Care," 1,276.10 "
23/05/2023,1248563,Pursuing Independent Paths,B*Voluntary-Spot-V Dep-Enhanced - do not u,Bi-Borough Director of Integrated Care, 510.44 
23/05/2023,1248563,Pursuing Independent Paths,B*Voluntary-Spot-V Dep-Enhanced - do not u,Bi-Borough Director of Integrated Care," 1,252.72 "
23/05/2023,1248563,Pursuing Independent Paths,B*Voluntary-Spot-V Dep-Enhanced - do not u,Bi-Borough Director of Integrated Care, 510.44 
23/05/2023,1248563,Pursuing Independent Paths,B*Voluntary-Spot-V Dep-Enhanced - do not u,Bi-Borough Director of Integrated Care, 510.44 
23/05/2023,1248563,Pursuing Independent Paths,B*Voluntary-Spot-V Dep-Enhanced - do not u,Bi-Borough Director of Integrated Care," 1,879.08 "
23/05/2023,1248563,Pursuing Independent Paths,B*Voluntary-Spot-V Dep-Enhanced - do not u,Bi-Borough Director of Integrated Care," 1,531.32 "
23/05/2023,1248563,Pursuing Independent Paths,B*Voluntary-Spot-V Dep-Enhanced - do not u,Bi-Borough Director of Integrated Care, 510.44 
23/05/2023,1248563,Pursuing Independent Paths,B*Voluntary-Spot-V Dep-Enhanced - do not u,Bi-Borough Director of Integrated Care," 1,020.88 "
23/05/2023,1248563,Pursuing Independent Paths,B*Voluntary-Spot-V Dep-Enhanced - do not u,Bi-Borough Director of Integrated Care, 546.90 
23/05/2023,1248563,Pursuing Independent Paths,B*Voluntary-Spot-V Dep-Enhanced - do not u,Bi-Borough Director of Integrated Care, 583.36 
23/05/2023,1248563,Pursuing Independent Paths,B*Voluntary-Spot-V Dep-Enhanced - do not u,Bi-Borough Director of Integrated Care, 510.44 
23/05/2023,1248563,Pursuing Independent Paths,B*Voluntary-Spot-V Dep-Enhanced - do not u,Bi-Borough Director of Integrated Care," 1,531.32 "
23/05/2023,1248563,Pursuing Independent Paths,B*Voluntary-Spot-V Dep-Enhanced - do not u,Bi-Borough Director of Integrated Care," 1,020.88 "
23/05/2023,1248563,Pursuing Independent Paths,B*Voluntary-Spot-V Dep-Enhanced - do not u,Bi-Borough Director of Integrated Care," 1,020.88 "
23/05/2023,1248563,Pursuing Independent Paths,B*Voluntary-Spot-V Dep-Enhanced - do not u,Bi-Borough Director of Integrated Care," 1,531.32 "
23/05/2023,1248563,Pursuing Independent Paths,B*Voluntary-Spot-V Dep-Enhanced - do not u,Bi-Borough Director of Integrated Care, 510.44 
23/05/2023,1248563,Pursuing Independent Paths,B*Voluntary-Spot-V Dep-Enhanced - do not u,Bi-Borough Director of Integrated Care," 1,531.32 "
23/05/2023,1248563,Pursuing Independent Paths,B*Voluntary-Spot-V Dep-Enhanced - do not u,Bi-Borough Director of Integrated Care," 1,020.88 "
23/05/2023,1248563,Pursuing Independent Paths,B*Voluntary-Spot-V Dep-Enhanced - do not u,Bi-Borough Director of Integrated Care," 2,041.76 "
23/05/2023,1248563,Pursuing Independent Paths,B*Voluntary-Spot-V Dep-Enhanced - do not u,Bi-Borough Director of Integrated Care," 1,531.32 "
23/05/2023,1248563,Pursuing Independent Paths,B*Voluntary-Spot-V Dep-Enhanced - do not u,Bi-Borough Director of Integrated Care," 1,531.32 "
23/05/2023,1248563,Pursuing Independent Paths,B*Voluntary-Spot-V Dep-Enhanced - do not u,Bi-Borough Director of Integrated Care," 1,531.32 "
22/06/2023,1248563,Pursuing Independent Paths,B*Voluntary-Spot-V Dep-Enhanced - do not u,Bi-Borough Director of Integrated Care," 1,020.88 "
22/06/2023,1248563,Pursuing Independent Paths,B*Voluntary-Spot-V Dep-Enhanced - do not u,Bi-Borough Director of Integrated Care," 1,276.10 "
22/06/2023,1248563,Pursuing Independent Paths,B*Voluntary-Spot-V Dep-Enhanced - do not u,Bi-Borough Director of Integrated Care," 1,531.32 "
22/06/2023,1248563,Pursuing Independent Paths,B*Voluntary-Spot-V Dep-Enhanced - do not u,Bi-Borough Director of Integrated Care," 1,786.54 "
22/06/2023,1248563,Pursuing Independent Paths,B*Voluntary-Spot-V Dep-Enhanced - do not u,Bi-Borough Director of Integrated Care," 1,289.32 "
22/06/2023,1248563,Pursuing Independent Paths,B*Voluntary-Spot-V Dep-Enhanced - do not u,Bi-Borough Director of Integrated Care, 510.44 
22/06/2023,1248563,Pursuing Independent Paths,B*Voluntary-Spot-V Dep-Enhanced - do not u,Bi-Borough Director of Integrated Care," 1,020.88 "
22/06/2023,1248563,Pursuing Independent Paths,B*Voluntary-Spot-V Dep-Enhanced - do not u,Bi-Borough Director of Integrated Care, 649.67 
22/06/2023,1248563,Pursuing Independent Paths,B*Voluntary-Spot-V Dep-Enhanced - do not u,Bi-Borough Director of Integrated Care, 626.43 
22/06/2023,1248563,Pursuing Independent Paths,B*Voluntary-Spot-V Dep-Enhanced - do not u,Bi-Borough Director of Integrated Care," 1,531.32 "
22/06/2023,1248563,Pursuing Independent Paths,B*Voluntary-Spot-V Dep-Enhanced - do not u,Bi-Borough Director of Integrated Care," 1,531.32 "
22/06/2023,1248563,Pursuing Independent Paths,B*Voluntary-Spot-V Dep-Enhanced - do not u,Bi-Borough Director of Integrated Care, 510.44 
22/06/2023,1248563,Pursuing Independent Paths,B*Voluntary-Spot-V Dep-Enhanced - do not u,Bi-Borough Director of Integrated Care," 1,531.32 "
22/06/2023,1248563,Pursuing Independent Paths,B*Voluntary-Spot-V Dep-Enhanced - do not u,Bi-Borough Director of Integrated Care," 1,531.32 "
22/06/2023,1248563,Pursuing Independent Paths,B*Voluntary-Spot-V Dep-Enhanced - do not u,Bi-Borough Director of Integrated Care," 1,276.10 "
22/06/2023,1248563,Pursuing Independent Paths,B*Voluntary-Spot-V Dep-Enhanced - do not u,Bi-Borough Director of Integrated Care," 2,552.20 "
22/06/2023,1248563,Pursuing Independent Paths,B*Voluntary-Spot-V Dep-Enhanced - do not u,Bi-Borough Director of Integrated Care," 1,531.32 "
22/06/2023,1248563,Pursuing Independent Paths,B*Voluntary-Spot-V Dep-Enhanced - do not u,Bi-Borough Director of Integrated Care," 1,531.32 "
22/06/2023,1248563,Pursuing Independent Paths,B*Voluntary-Spot-V Dep-Enhanced - do not u,Bi-Borough Director of Integrated Care, 510.44 
22/06/2023,1248563,Pursuing Independent Paths,B*Voluntary-Spot-V Dep-Enhanced - do not u,Bi-Borough Director of Integrated Care," 1,531.32 "
22/06/2023,1248563,Pursuing Independent Paths,B*Voluntary-Spot-V Dep-Enhanced - do not u,Bi-Borough Director of Integrated Care," 1,276.10 "
22/06/2023,1248563,Pursuing Independent Paths,B*Voluntary-Spot-V Dep-Enhanced - do not u,Bi-Borough Director of Integrated Care, 510.44 
22/06/2023,1248563,Pursuing Independent Paths,B*Voluntary-Spot-V Dep-Enhanced - do not u,Bi-Borough Director of Integrated Care," 1,252.72 "
22/06/2023,1248563,Pursuing Independent Paths,B*Voluntary-Spot-V Dep-Enhanced - do not u,Bi-Borough Director of Integrated Care, 510.44 
22/06/2023,1248563,Pursuing Independent Paths,B*Voluntary-Spot-V Dep-Enhanced - do not u,Bi-Borough Director of Integrated Care, 510.44 
22/06/2023,1248563,Pursuing Independent Paths,B*Voluntary-Spot-V Dep-Enhanced - do not u,Bi-Borough Director of Integrated Care," 1,879.08 "
22/06/2023,1248563,Pursuing Independent Paths,B*Voluntary-Spot-V Dep-Enhanced - do not u,Bi-Borough Director of Integrated Care," 1,531.32 "
22/06/2023,1248563,Pursuing Independent Paths,B*Voluntary-Spot-V Dep-Enhanced - do not u,Bi-Borough Director of Integrated Care, 510.44 
22/06/2023,1248563,Pursuing Independent Paths,B*Voluntary-Spot-V Dep-Enhanced - do not u,Bi-Borough Director of Integrated Care," 1,020.88 "
22/06/2023,1248563,Pursuing Independent Paths,B*Voluntary-Spot-V Dep-Enhanced - do not u,Bi-Borough Director of Integrated Care, 546.90 
22/06/2023,1248563,Pursuing Independent Paths,B*Voluntary-Spot-V Dep-Enhanced - do not u,Bi-Borough Director of Integrated Care, 583.36 
22/06/2023,1248563,Pursuing Independent Paths,B*Voluntary-Spot-V Dep-Enhanced - do not u,Bi-Borough Director of Integrated Care, 510.44 
22/06/2023,1248563,Pursuing Independent Paths,B*Voluntary-Spot-V Dep-Enhanced - do not u,Bi-Borough Director of Integrated Care," 1,531.32 "
22/06/2023,1248563,Pursuing Independent Paths,B*Voluntary-Spot-V Dep-Enhanced - do not u,Bi-Borough Director of Integrated Care," 1,020.88 "
22/06/2023,1248563,Pursuing Independent Paths,B*Voluntary-Spot-V Dep-Enhanced - do not u,Bi-Borough Director of Integrated Care," 1,020.88 "
22/06/2023,1248563,Pursuing Independent Paths,B*Voluntary-Spot-V Dep-Enhanced - do not u,Bi-Borough Director of Integrated Care," 1,531.32 "
22/06/2023,1248563,Pursuing Independent Paths,B*Voluntary-Spot-V Dep-Enhanced - do not u,Bi-Borough Director of Integrated Care, 510.44 
22/06/2023,1248563,Pursuing Independent Paths,B*Voluntary-Spot-V Dep-Enhanced - do not u,Bi-Borough Director of Integrated Care," 1,531.32 "
22/06/2023,1248563,Pursuing Independent Paths,B*Voluntary-Spot-V Dep-Enhanced - do not u,Bi-Borough Director of Integrated Care," 1,020.88 "
22/06/2023,1248563,Pursuing Independent Paths,B*Voluntary-Spot-V Dep-Enhanced - do not u,Bi-Borough Director of Integrated Care," 2,041.76 "
22/06/2023,1248563,Pursuing Independent Paths,B*Voluntary-Spot-V Dep-Enhanced - do not u,Bi-Borough Director of Integrated Care," 1,531.32 "
22/06/2023,1248563,Pursuing Independent Paths,B*Voluntary-Spot-V Dep-Enhanced - do not u,Bi-Borough Director of Integrated Care," 1,531.32 "
22/06/2023,1248563,Pursuing Independent Paths,B*Voluntary-Spot-V Dep-Enhanced - do not u,Bi-Borough Director of Integrated Care," 1,531.32 "
02/05/2023,1245169,Rcp Residential Care Providers Ltd,,Bi-Borough Director of Integrated Care," 6,908.86 "
24/05/2023,1245169,Rcp Residential Care Providers Ltd,,Bi-Borough Director of Integrated Care," 8,092.44 "
21/06/2023,1245169,Rcp Residential Care Providers Ltd,,Bi-Borough Director of Integrated Care," 8,092.44 "
02/05/2023,1269718,Reliant Care Limited,,Bi-Borough Director of Integrated Care," 6,006.86 "
02/05/2023,1269718,Reliant Care Limited,,Bi-Borough Director of Integrated Care," 3,181.71 "
02/05/2023,1269718,Reliant Care Limited,,Bi-Borough Director of Integrated Care," 3,181.71 "
02/05/2023,1269718,Reliant Care Limited,,Bi-Borough Director of Integrated Care," 7,512.00 "
24/05/2023,1269718,Reliant Care Limited,,Bi-Borough Director of Integrated Care," 7,008.00 "
24/05/2023,1269718,Reliant Care Limited,,Bi-Borough Director of Integrated Care," 3,712.00 "
24/05/2023,1269718,Reliant Care Limited,,Bi-Borough Director of Integrated Care," 3,712.00 "
24/05/2023,1269718,Reliant Care Limited,,Bi-Borough Director of Integrated Care," 8,764.00 "
21/06/2023,1269718,Reliant Care Limited,,Bi-Borough Director of Integrated Care," 7,008.00 "
21/06/2023,1269718,Reliant Care Limited,,Bi-Borough Director of Integrated Care," 8,764.00 "
21/06/2023,1269718,Reliant Care Limited,,Bi-Borough Director of Integrated Care," 3,712.00 "
21/06/2023,1269718,Reliant Care Limited,,Bi-Borough Director of Integrated Care," 3,712.00 "
18/05/2023,1298287,Residential Care Services Ltd,B*Voluntary-Spot-V Dep-Enhanced - do not u,Bi-Borough Director of Integrated Care," 1,653.84 "
13/04/2023,1245316,Respect Care Services Ltd,,Bi-Borough Director of Integrated Care, 889.50 
05/05/2023,1245316,Respect Care Services Ltd,,Bi-Borough Director of Integrated Care, 889.50 
18/05/2023,1245316,Respect Care Services Ltd,,Bi-Borough Director of Integrated Care, 889.50 
30/05/2023,1245316,Respect Care Services Ltd,,Bi-Borough Director of Integrated Care, 960.50 
30/05/2023,1245316,Respect Care Services Ltd,,Bi-Borough Director of Integrated Care, 889.50 
12/06/2023,1245316,Respect Care Services Ltd,,Bi-Borough Director of Integrated Care, 672.35 
04/04/2023,1248843,Sage Care Ltd,,Bi-Borough Director of Integrated Care, 568.58 
04/04/2023,1248843,Sage Care Ltd,,Bi-Borough Director of Integrated Care, 577.74 
04/04/2023,1248843,Sage Care Ltd,,Bi-Borough Director of Integrated Care," 1,731.27 "
04/04/2023,1248843,Sage Care Ltd,,Bi-Borough Director of Integrated Care, 883.80 
04/04/2023,1248843,Sage Care Ltd,,Bi-Borough Director of Integrated Care, 549.92 
04/04/2023,1248843,Sage Care Ltd,,Bi-Borough Director of Integrated Care," 1,577.12 "
12/04/2023,1248843,Sage Care Ltd,,Bi-Borough Director of Integrated Care, 589.20 
12/04/2023,1248843,Sage Care Ltd,,Bi-Borough Director of Integrated Care, 589.20 
12/04/2023,1248843,Sage Care Ltd,,Bi-Borough Director of Integrated Care," 1,767.60 "
12/04/2023,1248843,Sage Care Ltd,,Bi-Borough Director of Integrated Care, 549.92 
12/04/2023,1248843,Sage Care Ltd,,Bi-Borough Director of Integrated Care, 639.62 
05/05/2023,1248843,Sage Care Ltd,,Bi-Borough Director of Integrated Care, 530.28 
05/05/2023,1248843,Sage Care Ltd,,Bi-Borough Director of Integrated Care, 589.20 
05/05/2023,1248843,Sage Care Ltd,,Bi-Borough Director of Integrated Care," 1,767.60 "
05/05/2023,1248843,Sage Care Ltd,,Bi-Borough Director of Integrated Care, 549.92 
09/06/2023,1248843,Sage Care Ltd,,Bi-Borough Director of Integrated Care, 589.20 
09/06/2023,1248843,Sage Care Ltd,,Bi-Borough Director of Integrated Care," 1,762.69 "
09/06/2023,1248843,Sage Care Ltd,,Bi-Borough Director of Integrated Care," 1,665.16 "
09/06/2023,1248843,Sage Care Ltd,,Bi-Borough Director of Integrated Care, 545.01 
02/05/2023,1262057,Sense - The National Deafbllind,,Bi-Borough Director of Integrated Care," 4,150.27 "
02/05/2023,1262057,Sense - The National Deafbllind,,Bi-Borough Director of Integrated Care," 4,150.27 "
24/05/2023,1262057,Sense - The National Deafbllind,,Bi-Borough Director of Integrated Care," 4,868.52 "
24/05/2023,1262057,Sense - The National Deafbllind,,Bi-Borough Director of Integrated Care," 4,868.52 "
21/06/2023,1262057,Sense - The National Deafbllind,,Bi-Borough Director of Integrated Care," 4,868.52 "
21/06/2023,1262057,Sense - The National Deafbllind,,Bi-Borough Director of Integrated Care," 4,868.52 "
02/05/2023,1245566,Shaw Care Uk Ltd,,Bi-Borough Director of Integrated Care," 4,158.86 "
02/05/2023,1245566,Shaw Care Uk Ltd,,Bi-Borough Director of Integrated Care," 4,158.86 "
24/05/2023,1245566,Shaw Care Uk Ltd,,Bi-Borough Director of Integrated Care," 4,852.00 "
24/05/2023,1245566,Shaw Care Uk Ltd,,Bi-Borough Director of Integrated Care," 4,852.00 "
21/06/2023,1245566,Shaw Care Uk Ltd,,Bi-Borough Director of Integrated Care," 5,822.40 "
21/06/2023,1245566,Shaw Care Uk Ltd,,Bi-Borough Director of Integrated Care," 5,822.40 "
02/05/2023,1286751,Shine Partnerships Limited,,Bi-Borough Director of Integrated Care," 1,457.14 "
24/05/2023,1286751,Shine Partnerships Limited,,Bi-Borough Director of Integrated Care," 1,700.00 "
21/06/2023,1286751,Shine Partnerships Limited,,Bi-Borough Director of Integrated Care," 1,700.00 "
06/04/2023,1302889,Solitions Social Care,B*Voluntary-Spot-V Dep-Enhanced - do not u,Bi-Borough Director of Integrated Care," 7,733.75 "
18/05/2023,1302889,Solitions Social Care,B*Voluntary-Spot-V Dep-Enhanced - do not u,Bi-Borough Director of Integrated Care," 6,187.00 "
20/06/2023,1302889,Solitions Social Care,B*Voluntary-Spot-V Dep-Enhanced - do not u,Bi-Borough Director of Integrated Care," 6,187.00 "
06/04/2023,1294228,Solutions Logistics Ltd,B*Voluntary-Spot-V Dep-Enhanced - do not u,Bi-Borough Director of Integrated Care," 1,725.00 "
18/05/2023,1294228,Solutions Logistics Ltd,B*Voluntary-Spot-V Dep-Enhanced - do not u,Bi-Borough Director of Integrated Care," 1,500.00 "
27/06/2023,1294228,Solutions Logistics Ltd,B*Voluntary-Spot-V Dep-Enhanced - do not u,Bi-Borough Director of Integrated Care," 1,725.00 "
02/05/2023,1248935,Southside Partnership,,Bi-Borough Director of Integrated Care," 3,079.54 "
02/05/2023,1248935,Southside Partnership,,Bi-Borough Director of Integrated Care, 685.71 
02/05/2023,1248935,Southside Partnership,,Bi-Borough Director of Integrated Care, 685.71 
02/05/2023,1248935,Southside Partnership,,Bi-Borough Director of Integrated Care," 2,182.87 "
24/05/2023,1248935,Southside Partnership,,Bi-Borough Director of Integrated Care, 800.00 
24/05/2023,1248935,Southside Partnership,,Bi-Borough Director of Integrated Care," 3,592.80 "
24/05/2023,1248935,Southside Partnership,,Bi-Borough Director of Integrated Care," 2,546.68 "
24/05/2023,1248935,Southside Partnership,,Bi-Borough Director of Integrated Care, 800.00 
21/06/2023,1248935,Southside Partnership,,Bi-Borough Director of Integrated Care," 2,546.68 "
21/06/2023,1248935,Southside Partnership,,Bi-Borough Director of Integrated Care, 800.00 
21/06/2023,1248935,Southside Partnership,,Bi-Borough Director of Integrated Care," 3,592.80 "
21/06/2023,1248935,Southside Partnership,,Bi-Borough Director of Integrated Care, 800.00 
12/04/2023,1248940,Special People,B*Voluntary-Spot-V Dep-Enhanced - do not u,Bi-Borough Director of Integrated Care, 786.60 
12/04/2023,1248940,Special People,B*Voluntary-Spot-V Dep-Enhanced - do not u,Bi-Borough Director of Integrated Care," 4,788.57 "
13/04/2023,1248940,Special People,B*Voluntary-Spot-V Dep-Enhanced - do not u,Bi-Borough Director of Integrated Care, 633.60 
13/04/2023,1248940,Special People,B*Voluntary-Spot-V Dep-Enhanced - do not u,Bi-Borough Director of Integrated Care," 1,168.92 "
18/05/2023,1248940,Special People,B*Voluntary-Spot-V Dep-Enhanced - do not u,Bi-Borough Director of Integrated Care," 5,472.00 "
07/06/2023,1248940,Special People,B*Voluntary-Spot-V Dep-Enhanced - do not u,Bi-Borough Director of Integrated Care," 5,504.00 "
20/06/2023,1248940,Special People,B*Voluntary-Spot-V Dep-Enhanced - do not u,Bi-Borough Director of Integrated Care, 628.66 
29/06/2023,1248940,Special People,B*Voluntary-Spot-V Dep-Enhanced - do not u,Bi-Borough Director of Integrated Care, 764.64 
02/05/2023,1245620,Spencer & Arlington,,Bi-Borough Director of Integrated Care," 7,770.86 "
02/05/2023,1245620,Spencer & Arlington,,Bi-Borough Director of Integrated Care," 7,770.86 "
24/05/2023,1245620,Spencer & Arlington,,Bi-Borough Director of Integrated Care," 10,199.28 "
24/05/2023,1245620,Spencer & Arlington,,Bi-Borough Director of Integrated Care," 10,199.28 "
21/06/2023,1245620,Spencer & Arlington,,Bi-Borough Director of Integrated Care," 9,700.64 "
21/06/2023,1245620,Spencer & Arlington,,Bi-Borough Director of Integrated Care," 9,700.64 "
02/05/2023,1243543,Springlake Care Home Ltd,,Bi-Borough Director of Integrated Care," 5,142.86 "
02/05/2023,1243543,Springlake Care Home Ltd,,Bi-Borough Director of Integrated Care," 5,828.57 "
02/05/2023,1243543,Springlake Care Home Ltd,,Bi-Borough Director of Integrated Care," 4,628.57 "
24/05/2023,1243543,Springlake Care Home Ltd,,Bi-Borough Director of Integrated Care," 6,000.00 "
24/05/2023,1243543,Springlake Care Home Ltd,,Bi-Borough Director of Integrated Care," 5,400.00 "
24/05/2023,1243543,Springlake Care Home Ltd,,Bi-Borough Director of Integrated Care," 6,800.00 "
21/06/2023,1243543,Springlake Care Home Ltd,,Bi-Borough Director of Integrated Care," 5,400.00 "
21/06/2023,1243543,Springlake Care Home Ltd,,Bi-Borough Director of Integrated Care," 6,800.00 "
21/06/2023,1243543,Springlake Care Home Ltd,,Bi-Borough Director of Integrated Care," 6,000.00 "
02/05/2023,1248948,St Davids Care In The Community,,Bi-Borough Director of Integrated Care," 2,948.57 "
02/05/2023,1248948,St Davids Care In The Community,,Bi-Borough Director of Integrated Care," 2,685.05 "
24/05/2023,1248948,St Davids Care In The Community,,Bi-Borough Director of Integrated Care," 3,132.56 "
24/05/2023,1248948,St Davids Care In The Community,,Bi-Borough Director of Integrated Care," 3,440.00 "
21/06/2023,1248948,St Davids Care In The Community,,Bi-Borough Director of Integrated Care," 3,132.56 "
21/06/2023,1248948,St Davids Care In The Community,,Bi-Borough Director of Integrated Care," 3,440.00 "
29/06/2023,1307154,Surrey Choices Ltd,B*Voluntary-Spot-V Dep-Enhanced - do not u,Bi-Borough Director of Integrated Care," 1,134.00 "
29/06/2023,1307154,Surrey Choices Ltd,B*Voluntary-Spot-V Dep-Enhanced - do not u,Bi-Borough Director of Integrated Care," 1,134.00 "
29/06/2023,1307154,Surrey Choices Ltd,B*Voluntary-Spot-V Dep-Enhanced - do not u,Bi-Borough Director of Integrated Care," 1,374.24 "
29/06/2023,1307154,Surrey Choices Ltd,B*Voluntary-Spot-V Dep-Enhanced - do not u,Bi-Borough Director of Integrated Care," 1,374.24 "
29/06/2023,1307154,Surrey Choices Ltd,B*Voluntary-Spot-V Dep-Enhanced - do not u,Bi-Borough Director of Integrated Care," 1,374.24 "
29/06/2023,1307154,Surrey Choices Ltd,B*Voluntary-Spot-V Dep-Enhanced - do not u,Bi-Borough Director of Integrated Care, 687.12 
29/06/2023,1307154,Surrey Choices Ltd,B*Voluntary-Spot-V Dep-Enhanced - do not u,Bi-Borough Director of Integrated Care, 858.90 
29/06/2023,1307154,Surrey Choices Ltd,B*Voluntary-Spot-V Dep-Enhanced - do not u,Bi-Borough Director of Integrated Care, 687.12 
04/04/2023,1245825,Sweet Tree Home Care Services,,Bi-Borough Director of Integrated Care," 5,551.32 "
12/04/2023,1245825,Sweet Tree Home Care Services,,Bi-Borough Director of Integrated Care," 6,948.52 "
02/06/2023,1245825,Sweet Tree Home Care Services,,Bi-Borough Director of Integrated Care," 5,524.31 "
15/06/2023,1245825,Sweet Tree Home Care Services,,Bi-Borough Director of Integrated Care," 4,486.81 "
05/04/2023,1249077,The Advocacy Project,B* Testing Purch und Weights & Measures Leg,Bi-Borough Director of Integrated Care," 1,560.00 "
02/05/2023,1305461,The Frances Taylor Foundation,,Bi-Borough Director of Integrated Care," 30,237.39 "
24/05/2023,1305461,The Frances Taylor Foundation,,Bi-Borough Director of Integrated Care," 3,901.60 "
21/06/2023,1305461,The Frances Taylor Foundation,,Bi-Borough Director of Integrated Care," 3,901.60 "
02/05/2023,1245900,The Grace Eyre Foundation,,Bi-Borough Director of Integrated Care," 3,630.82 "
02/05/2023,1245900,The Grace Eyre Foundation,,Bi-Borough Director of Integrated Care," 2,820.14 "
24/05/2023,1245900,The Grace Eyre Foundation,,Bi-Borough Director of Integrated Care," 3,290.16 "
24/05/2023,1245900,The Grace Eyre Foundation,,Bi-Borough Director of Integrated Care," 4,235.96 "
21/06/2023,1245900,The Grace Eyre Foundation,,Bi-Borough Director of Integrated Care," 3,290.16 "
21/06/2023,1245900,The Grace Eyre Foundation,,Bi-Borough Director of Integrated Care," 4,235.96 "
02/05/2023,1249156,The Wirral Autistic Society,,Bi-Borough Director of Integrated Care," 4,369.10 "
24/05/2023,1249156,The Wirral Autistic Society,,Bi-Borough Director of Integrated Care," 5,097.28 "
21/06/2023,1249156,The Wirral Autistic Society,,Bi-Borough Director of Integrated Care," 5,097.28 "
02/05/2023,1246095,Theana Ltd T/a Enlighten Homes,,Bi-Borough Director of Integrated Care," 2,525.14 "
02/05/2023,1246095,Theana Ltd T/a Enlighten Homes,,Bi-Borough Director of Integrated Care," 2,525.14 "
24/05/2023,1246095,Theana Ltd T/a Enlighten Homes,,Bi-Borough Director of Integrated Care," 2,946.00 "
24/05/2023,1246095,Theana Ltd T/a Enlighten Homes,,Bi-Borough Director of Integrated Care," 2,946.00 "
21/06/2023,1246095,Theana Ltd T/a Enlighten Homes,,Bi-Borough Director of Integrated Care," 2,946.00 "
21/06/2023,1246095,Theana Ltd T/a Enlighten Homes,,Bi-Borough Director of Integrated Care," 2,946.00 "
23/04/2023,1287831,Touchstone Corporate Property Servi,Rent,Bi-Borough Director of Integrated Care," 2,209.35 "
24/04/2023,1287831,Touchstone Corporate Property Servi,Rent,Bi-Borough Director of Integrated Care," 2,209.35 "
02/05/2023,1287640,VIVID COMMUNITY CARE LTD,,Bi-Borough Director of Integrated Care," 13,124.16 "
24/05/2023,1287640,VIVID COMMUNITY CARE LTD,,Bi-Borough Director of Integrated Care," 15,311.52 "
21/06/2023,1287640,VIVID COMMUNITY CARE LTD,,Bi-Borough Director of Integrated Care," 15,311.52 "
02/05/2023,1243552,Vision Homes Association,,Bi-Borough Director of Integrated Care," 6,651.43 "
24/05/2023,1243552,Vision Homes Association,,Bi-Borough Director of Integrated Care," 7,760.00 "
21/06/2023,1243552,Vision Homes Association,,Bi-Borough Director of Integrated Care," 7,760.00 "
02/05/2023,1243553,Voyage Care (Bridge House),,Bi-Borough Director of Integrated Care," 4,353.60 "
02/05/2023,1243553,Voyage Care (Bridge House),,Bi-Borough Director of Integrated Care," 5,964.27 "
02/05/2023,1243553,Voyage Care (Bridge House),,Bi-Borough Director of Integrated Care," 6,457.20 "
24/05/2023,1243553,Voyage Care (Bridge House),,Bi-Borough Director of Integrated Care," 7,533.40 "
24/05/2023,1243553,Voyage Care (Bridge House),,Bi-Borough Director of Integrated Care," 5,079.20 "
24/05/2023,1243553,Voyage Care (Bridge House),,Bi-Borough Director of Integrated Care," 6,958.32 "
21/06/2023,1243553,Voyage Care (Bridge House),,Bi-Borough Director of Integrated Care," 5,079.20 "
21/06/2023,1243553,Voyage Care (Bridge House),,Bi-Borough Director of Integrated Care," 6,958.32 "
21/06/2023,1243553,Voyage Care (Bridge House),,Bi-Borough Director of Integrated Care," 7,533.40 "
02/05/2023,1243554,Voyage Care (Kenton House),,Bi-Borough Director of Integrated Care," 5,485.92 "
24/05/2023,1243554,Voyage Care (Kenton House),,Bi-Borough Director of Integrated Care," 6,400.24 "
21/06/2023,1243554,Voyage Care (Kenton House),,Bi-Borough Director of Integrated Care," 6,400.24 "
01/04/2023,1249291,Westminster Society,Rent,Bi-Borough Director of Integrated Care," 4,250.40 "
06/04/2023,1249291,Westminster Society,B*Voluntary-Spot-V Dep-Enhanced - do not u,Bi-Borough Director of Integrated Care, 971.52 
06/04/2023,1249291,Westminster Society,B*Voluntary-Spot-V Dep-Enhanced - do not u,Bi-Borough Director of Integrated Care," 2,104.96 "
06/04/2023,1249291,Westminster Society,B*Voluntary-Spot-V Dep-Enhanced - do not u,Bi-Borough Director of Integrated Care, 728.64 
06/04/2023,1249291,Westminster Society,B*Voluntary-Spot-V Dep-Enhanced - do not u,Bi-Borough Director of Integrated Care," 1,133.44 "
06/04/2023,1249291,Westminster Society,B*Voluntary-Spot-V Dep-Enhanced - do not u,Bi-Borough Director of Integrated Care," 1,133.44 "
06/04/2023,1249291,Westminster Society,B*Voluntary-Spot-V Dep-Enhanced - do not u,Bi-Borough Director of Integrated Care, 647.68 
06/04/2023,1249291,Westminster Society,B*Voluntary-Spot-V Dep-Enhanced - do not u,Bi-Borough Director of Integrated Care, 566.72 
06/04/2023,1249291,Westminster Society,B*Voluntary-Spot-V Dep-Enhanced - do not u,Bi-Borough Director of Integrated Care," 2,024.00 "
06/04/2023,1249291,Westminster Society,B*Voluntary-Spot-V Dep-Enhanced - do not u,Bi-Borough Director of Integrated Care," 1,538.24 "
06/04/2023,1249291,Westminster Society,B*Voluntary-Spot-V Dep-Enhanced - do not u,Bi-Borough Director of Integrated Care, 647.68 
06/04/2023,1249291,Westminster Society,B*Voluntary-Spot-V Dep-Enhanced - do not u,Bi-Borough Director of Integrated Care, 728.64 
06/04/2023,1249291,Westminster Society,B*Voluntary-Spot-V Dep-Enhanced - do not u,Bi-Borough Director of Integrated Care, 890.56 
06/04/2023,1249291,Westminster Society,B*Voluntary-Spot-V Dep-Enhanced - do not u,Bi-Borough Director of Integrated Care," 2,428.80 "
06/04/2023,1249291,Westminster Society,B*Voluntary-Spot-V Dep-Enhanced - do not u,Bi-Borough Director of Integrated Care, 647.68 
06/04/2023,1249291,Westminster Society,B*Voluntary-Spot-V Dep-Enhanced - do not u,Bi-Borough Director of Integrated Care," 2,024.00 "
06/04/2023,1249291,Westminster Society,B*Voluntary-Spot-V Dep-Enhanced - do not u,Bi-Borough Director of Integrated Care, 809.60 
06/04/2023,1249291,Westminster Society,B*Voluntary-Spot-V Dep-Enhanced - do not u,Bi-Borough Director of Integrated Care, 647.68 
06/04/2023,1249291,Westminster Society,B*Voluntary-Spot-V Dep-Enhanced - do not u,Bi-Borough Director of Integrated Care," 1,052.48 "
12/04/2023,1249291,Westminster Society,B*Voluntary-Spot-V Dep-Enhanced - do not u,Bi-Borough Director of Integrated Care," 1,315.60 "
12/04/2023,1249291,Westminster Society,B*Voluntary-Spot-V Dep-Enhanced - do not u,Bi-Borough Director of Integrated Care," 2,530.00 "
12/04/2023,1249291,Westminster Society,B*Voluntary-Spot-V Dep-Enhanced - do not u,Bi-Borough Director of Integrated Care, 708.40 
12/04/2023,1249291,Westminster Society,B*Voluntary-Spot-V Dep-Enhanced - do not u,Bi-Borough Director of Integrated Care, 809.60 
12/04/2023,1249291,Westminster Society,B*Voluntary-Spot-V Dep-Enhanced - do not u,Bi-Borough Director of Integrated Care, 910.80 
12/04/2023,1249291,Westminster Society,B*Voluntary-Spot-V Dep-Enhanced - do not u,Bi-Borough Director of Integrated Care," 2,530.00 "
12/04/2023,1249291,Westminster Society,B*Voluntary-Spot-V Dep-Enhanced - do not u,Bi-Borough Director of Integrated Care, 910.80 
12/04/2023,1249291,Westminster Society,B*Voluntary-Spot-V Dep-Enhanced - do not u,Bi-Borough Director of Integrated Care," 1,416.80 "
12/04/2023,1249291,Westminster Society,B*Voluntary-Spot-V Dep-Enhanced - do not u,Bi-Borough Director of Integrated Care, 607.20 
12/04/2023,1249291,Westminster Society,B*Voluntary-Spot-V Dep-Enhanced - do not u,Bi-Borough Director of Integrated Care," 2,651.44 "
12/04/2023,1249291,Westminster Society,B*Voluntary-Spot-V Dep-Enhanced - do not u,Bi-Borough Director of Integrated Care," 1,214.40 "
12/04/2023,1249291,Westminster Society,B*Voluntary-Spot-V Dep-Enhanced - do not u,Bi-Borough Director of Integrated Care, 809.60 
12/04/2023,1249291,Westminster Society,B*Voluntary-Spot-V Dep-Enhanced - do not u,Bi-Borough Director of Integrated Care," 1,416.80 "
12/04/2023,1249291,Westminster Society,B*Voluntary-Spot-V Dep-Enhanced - do not u,Bi-Borough Director of Integrated Care," 2,530.00 "
12/04/2023,1249291,Westminster Society,B*Voluntary-Spot-V Dep-Enhanced - do not u,Bi-Borough Director of Integrated Care, 809.60 
12/04/2023,1249291,Westminster Society,B*Voluntary-Spot-V Dep-Enhanced - do not u,Bi-Borough Director of Integrated Care, 809.60 
12/04/2023,1249291,Westminster Society,B*Voluntary-Spot-V Dep-Enhanced - do not u,Bi-Borough Director of Integrated Care," 1,922.80 "
12/04/2023,1249291,Westminster Society,B*Voluntary-Spot-V Dep-Enhanced - do not u,Bi-Borough Director of Integrated Care," 1,113.20 "
12/04/2023,1249291,Westminster Society,B*Voluntary-Spot-V Dep-Enhanced - do not u,Bi-Borough Director of Integrated Care," 1,012.00 "
27/04/2023,1249291,Westminster Society,Rent,Bi-Borough Director of Integrated Care," 17,806.57 "
02/05/2023,1249291,Westminster Society,,Bi-Borough Director of Integrated Care," 2,671.68 "
02/05/2023,1249291,Westminster Society,,Bi-Borough Director of Integrated Care," 5,343.36 "
02/05/2023,1249291,Westminster Society,,Bi-Borough Director of Integrated Care," 1,269.91 "
02/05/2023,1249291,Westminster Society,,Bi-Borough Director of Integrated Care," 1,269.91 "
02/05/2023,1249291,Westminster Society,,Bi-Borough Director of Integrated Care," 3,747.29 "
02/05/2023,1249291,Westminster Society,,Bi-Borough Director of Integrated Care," 1,943.04 "
02/05/2023,1249291,Westminster Society,,Bi-Borough Director of Integrated Care," 5,655.63 "
02/05/2023,1249291,Westminster Society,,Bi-Borough Director of Integrated Care, 811.92 
02/05/2023,1249291,Westminster Society,,Bi-Borough Director of Integrated Care," 3,539.11 "
02/05/2023,1249291,Westminster Society,,Bi-Borough Director of Integrated Care," 2,775.77 "
02/05/2023,1249291,Westminster Society,,Bi-Borough Director of Integrated Care," 2,671.68 "
02/05/2023,1249291,Westminster Society,,Bi-Borough Director of Integrated Care," 1,427.04 "
02/05/2023,1249291,Westminster Society,,Bi-Borough Director of Integrated Care," 8,604.89 "
02/05/2023,1249291,Westminster Society,,Bi-Borough Director of Integrated Care," 1,943.04 "
02/05/2023,1249291,Westminster Society,,Bi-Borough Director of Integrated Care, 555.15 
02/05/2023,1249291,Westminster Society,,Bi-Borough Director of Integrated Care," 2,151.22 "
02/05/2023,1249291,Westminster Society,,Bi-Borough Director of Integrated Care, 798.03 
02/05/2023,1249291,Westminster Society,,Bi-Borough Director of Integrated Care," 2,636.98 "
02/05/2023,1249291,Westminster Society,,Bi-Borough Director of Integrated Care," 4,392.65 "
02/05/2023,1249291,Westminster Society,,Bi-Borough Director of Integrated Care, 811.92 
02/05/2023,1249291,Westminster Society,,Bi-Borough Director of Integrated Care," 3,893.01 "
02/05/2023,1249291,Westminster Society,,Bi-Borough Director of Integrated Care, 811.92 
02/05/2023,1249291,Westminster Society,,Bi-Borough Director of Integrated Care," 4,357.95 "
02/05/2023,1249291,Westminster Society,,Bi-Borough Director of Integrated Care," 3,886.08 "
02/05/2023,1249291,Westminster Society,,Bi-Borough Director of Integrated Care," 7,563.98 "
02/05/2023,1249291,Westminster Society,,Bi-Borough Director of Integrated Care," 1,427.04 "
02/05/2023,1249291,Westminster Society,,Bi-Borough Director of Integrated Care," 2,151.22 "
02/05/2023,1249291,Westminster Society,,Bi-Borough Director of Integrated Care," 2,567.59 "
02/05/2023,1249291,Westminster Society,,Bi-Borough Director of Integrated Care," 2,290.01 "
02/05/2023,1249291,Westminster Society,,Bi-Borough Director of Integrated Care," 2,290.01 "
02/05/2023,1249291,Westminster Society,,Bi-Borough Director of Integrated Care," 2,012.43 "
02/05/2023,1249291,Westminster Society,,Bi-Borough Director of Integrated Care," 5,586.24 "
02/05/2023,1249291,Westminster Society,,Bi-Borough Director of Integrated Care, 971.52 
02/05/2023,1249291,Westminster Society,,Bi-Borough Director of Integrated Care," 1,214.40 "
02/05/2023,1249291,Westminster Society,,Bi-Borough Director of Integrated Care," 4,371.84 "
02/05/2023,1249291,Westminster Society,,Bi-Borough Director of Integrated Care, 811.92 
02/05/2023,1249291,Westminster Society,,Bi-Borough Director of Integrated Care," 3,764.64 "
02/05/2023,1249291,Westminster Society,,Bi-Borough Director of Integrated Care," 1,873.65 "
02/05/2023,1249291,Westminster Society,,Bi-Borough Director of Integrated Care, 971.52 
02/05/2023,1249291,Westminster Society,,Bi-Borough Director of Integrated Care," 5,499.50 "
02/05/2023,1249291,Westminster Society,,Bi-Borough Director of Integrated Care," 3,625.85 "
02/05/2023,1249291,Westminster Society,,Bi-Borough Director of Integrated Care, 971.52 
02/05/2023,1249291,Westminster Society,,Bi-Borough Director of Integrated Care, 971.52 
02/05/2023,1249291,Westminster Society,,Bi-Borough Director of Integrated Care, 555.15 
02/05/2023,1249291,Westminster Society,,Bi-Borough Director of Integrated Care, 555.15 
02/05/2023,1249291,Westminster Society,,Bi-Borough Director of Integrated Care," 2,636.98 "
02/05/2023,1249291,Westminster Society,,Bi-Borough Director of Integrated Care," 1,943.04 "
02/05/2023,1249291,Westminster Society,,Bi-Borough Director of Integrated Care, 811.92 
02/05/2023,1249291,Westminster Society,,Bi-Borough Director of Integrated Care," 1,145.01 "
02/05/2023,1249291,Westminster Society,,Bi-Borough Director of Integrated Care," 3,157.44 "
02/05/2023,1249291,Westminster Society,,Bi-Borough Director of Integrated Care, 811.92 
02/05/2023,1249291,Westminster Society,,Bi-Borough Director of Integrated Care, 633.39 
02/05/2023,1249291,Westminster Society,,Bi-Borough Director of Integrated Care," 2,428.80 "
02/05/2023,1249291,Westminster Society,,Bi-Borough Director of Integrated Care," 7,331.52 "
02/05/2023,1249291,Westminster Society,,Bi-Borough Director of Integrated Care," 4,857.60 "
02/05/2023,1249291,Westminster Society,,Bi-Borough Director of Integrated Care," 2,636.98 "
02/05/2023,1249291,Westminster Society,,Bi-Borough Director of Integrated Care," 3,469.71 "
02/05/2023,1249291,Westminster Society,,Bi-Borough Director of Integrated Care," 1,427.04 "
02/05/2023,1249291,Westminster Society,,Bi-Borough Director of Integrated Care, 555.15 
02/05/2023,1249291,Westminster Society,,Bi-Borough Director of Integrated Care, 811.92 
02/05/2023,1249291,Westminster Society,,Bi-Borough Director of Integrated Care," 8,257.92 "
02/05/2023,1249291,Westminster Society,,Bi-Borough Director of Integrated Care," 1,873.65 "
02/05/2023,1249291,Westminster Society,,Bi-Borough Director of Integrated Care, 971.52 
02/05/2023,1249291,Westminster Society,,Bi-Borough Director of Integrated Care," 2,498.19 "
02/05/2023,1249291,Westminster Society,,Bi-Borough Director of Integrated Care," 3,157.44 "
02/05/2023,1249291,Westminster Society,,Bi-Borough Director of Integrated Care," 2,845.17 "
02/05/2023,1249291,Westminster Society,,Bi-Borough Director of Integrated Care," 3,330.93 "
02/05/2023,1249291,Westminster Society,,Bi-Borough Director of Integrated Care," 3,955.47 "
02/05/2023,1249291,Westminster Society,,Bi-Borough Director of Integrated Care," 1,943.04 "
02/05/2023,1249291,Westminster Society,,Bi-Borough Director of Integrated Care," 6,231.60 "
02/05/2023,1249291,Westminster Society,,Bi-Borough Director of Integrated Care," 2,428.80 "
02/05/2023,1249291,Westminster Society,,Bi-Borough Director of Integrated Care, 811.92 
02/05/2023,1249291,Westminster Society,,Bi-Borough Director of Integrated Care," 8,327.31 "
02/05/2023,1249291,Westminster Society,,Bi-Borough Director of Integrated Care," 5,884.63 "
02/05/2023,1249291,Westminster Society,,Bi-Borough Director of Integrated Care, 811.92 
02/05/2023,1249291,Westminster Society,,Bi-Borough Director of Integrated Care," 4,302.45 "
02/05/2023,1249291,Westminster Society,,Bi-Borough Director of Integrated Care," 4,441.23 "
02/05/2023,1249291,Westminster Society,,Bi-Borough Director of Integrated Care," 1,006.22 "
02/05/2023,1249291,Westminster Society,,Bi-Borough Director of Integrated Care," 2,428.80 "
02/05/2023,1249291,Westminster Society,,Bi-Borough Director of Integrated Care," 2,359.41 "
02/05/2023,1249291,Westminster Society,,Bi-Borough Director of Integrated Care," 5,829.12 "
02/05/2023,1249291,Westminster Society,,Bi-Borough Director of Integrated Care, 633.39 
02/05/2023,1249291,Westminster Society,,Bi-Borough Director of Integrated Care," 1,943.04 "
02/05/2023,1249291,Westminster Society,,Bi-Borough Director of Integrated Care," 7,966.46 "
02/05/2023,1249291,Westminster Society,,Bi-Borough Director of Integrated Care," 8,382.82 "
02/05/2023,1249291,Westminster Society,,Bi-Borough Director of Integrated Care," 1,943.04 "
02/05/2023,1249291,Westminster Society,,Bi-Borough Director of Integrated Care, 633.39 
02/05/2023,1249291,Westminster Society,,Bi-Borough Director of Integrated Care, 633.39 
02/05/2023,1249291,Westminster Society,,Bi-Borough Director of Integrated Care," 2,428.80 "
02/05/2023,1249291,Westminster Society,,Bi-Borough Director of Integrated Care," 7,432.11 "
02/05/2023,1249291,Westminster Society,,Bi-Borough Director of Integrated Care," 3,539.11 "
02/05/2023,1249291,Westminster Society,,Bi-Borough Director of Integrated Care, 971.52 
02/05/2023,1249291,Westminster Society,,Bi-Borough Director of Integrated Care, 971.52 
02/05/2023,1249291,Westminster Society,,Bi-Borough Director of Integrated Care," 2,081.83 "
02/05/2023,1249291,Westminster Society,,Bi-Borough Director of Integrated Care," 1,526.67 "
02/05/2023,1249291,Westminster Society,,Bi-Borough Director of Integrated Care," 3,893.01 "
02/05/2023,1249291,Westminster Society,,Bi-Borough Director of Integrated Care, 811.92 
02/05/2023,1249291,Westminster Society,,Bi-Borough Director of Integrated Care," 1,734.86 "
02/05/2023,1249291,Westminster Society,,Bi-Borough Director of Integrated Care," 1,943.04 "
18/05/2023,1249291,Westminster Society,Rent,Bi-Borough Director of Integrated Care," 15,412.85 "
18/05/2023,1249291,Westminster Society,Rent,Bi-Borough Director of Integrated Care," 21,171.04 "
24/05/2023,1249291,Westminster Society,,Bi-Borough Director of Integrated Care," 5,189.76 "
24/05/2023,1249291,Westminster Society,,Bi-Borough Director of Integrated Care," 8,824.64 "
24/05/2023,1249291,Westminster Society,,Bi-Borough Director of Integrated Care," 1,664.88 "
24/05/2023,1249291,Westminster Society,,Bi-Borough Director of Integrated Care," 3,428.95 "
24/05/2023,1249291,Westminster Society,,Bi-Borough Director of Integrated Care," 2,872.91 "
24/05/2023,1249291,Westminster Society,,Bi-Borough Director of Integrated Care," 2,502.20 "
24/05/2023,1249291,Westminster Society,,Bi-Borough Director of Integrated Care, 648.72 
24/05/2023,1249291,Westminster Society,,Bi-Borough Director of Integrated Care," 7,344.43 "
24/05/2023,1249291,Westminster Society,,Bi-Borough Director of Integrated Care," 1,133.44 "
24/05/2023,1249291,Westminster Society,,Bi-Borough Director of Integrated Care," 1,133.44 "
24/05/2023,1249291,Westminster Society,,Bi-Borough Director of Integrated Care," 5,779.95 "
24/05/2023,1249291,Westminster Society,,Bi-Borough Director of Integrated Care, 741.40 
24/05/2023,1249291,Westminster Society,,Bi-Borough Director of Integrated Care," 1,297.44 "
24/05/2023,1249291,Westminster Society,,Bi-Borough Director of Integrated Care, 741.40 
24/05/2023,1249291,Westminster Society,,Bi-Borough Director of Integrated Care, 857.62 
24/05/2023,1249291,Westminster Society,,Bi-Borough Director of Integrated Care," 2,594.88 "
24/05/2023,1249291,Westminster Society,,Bi-Borough Director of Integrated Care, 947.24 
24/05/2023,1249291,Westminster Society,,Bi-Borough Director of Integrated Care," 1,529.12 "
24/05/2023,1249291,Westminster Society,,Bi-Borough Director of Integrated Care, 857.62 
24/05/2023,1249291,Westminster Society,,Bi-Borough Director of Integrated Care," 4,216.68 "
24/05/2023,1249291,Westminster Society,,Bi-Borough Director of Integrated Care, 947.24 
24/05/2023,1249291,Westminster Society,,Bi-Borough Director of Integrated Care," 2,502.20 "
24/05/2023,1249291,Westminster Society,,Bi-Borough Director of Integrated Care," 1,297.44 "
24/05/2023,1249291,Westminster Society,,Bi-Borough Director of Integrated Care," 3,336.28 "
24/05/2023,1249291,Westminster Society,,Bi-Borough Director of Integrated Care," 3,799.64 "
24/05/2023,1249291,Westminster Society,,Bi-Borough Director of Integrated Care," 4,216.68 "
24/05/2023,1249291,Westminster Society,,Bi-Borough Director of Integrated Care," 4,448.36 "
24/05/2023,1249291,Westminster Society,,Bi-Borough Director of Integrated Care," 5,282.44 "
24/05/2023,1249291,Westminster Society,,Bi-Borough Director of Integrated Care," 8,322.13 "
24/05/2023,1249291,Westminster Society,,Bi-Borough Director of Integrated Care," 2,266.88 "
24/05/2023,1249291,Westminster Society,,Bi-Borough Director of Integrated Care," 3,243.60 "
24/05/2023,1249291,Westminster Society,,Bi-Borough Director of Integrated Care," 3,521.63 "
24/05/2023,1249291,Westminster Society,,Bi-Borough Director of Integrated Care," 5,494.65 "
24/05/2023,1249291,Westminster Society,,Bi-Borough Director of Integrated Care," 5,745.80 "
24/05/2023,1249291,Westminster Society,,Bi-Borough Director of Integrated Care," 5,931.16 "
24/05/2023,1249291,Westminster Society,,Bi-Borough Director of Integrated Care," 1,343.77 "
24/05/2023,1249291,Westminster Society,,Bi-Borough Director of Integrated Care," 3,243.60 "
24/05/2023,1249291,Westminster Society,,Bi-Borough Director of Integrated Care," 3,150.92 "
24/05/2023,1249291,Westminster Society,,Bi-Borough Director of Integrated Care," 7,784.64 "
24/05/2023,1249291,Westminster Society,,Bi-Borough Director of Integrated Care," 10,638.98 "
24/05/2023,1249291,Westminster Society,,Bi-Borough Director of Integrated Care, 845.82 
24/05/2023,1249291,Westminster Society,,Bi-Borough Director of Integrated Care," 2,266.88 "
24/05/2023,1249291,Westminster Society,,Bi-Borough Director of Integrated Care," 2,266.88 "
24/05/2023,1249291,Westminster Society,,Bi-Borough Director of Integrated Care, 845.82 
24/05/2023,1249291,Westminster Society,,Bi-Borough Director of Integrated Care," 11,195.04 "
24/05/2023,1249291,Westminster Society,,Bi-Borough Director of Integrated Care," 9,925.44 "
24/05/2023,1249291,Westminster Society,,Bi-Borough Director of Integrated Care, 845.82 
24/05/2023,1249291,Westminster Society,,Bi-Borough Director of Integrated Care," 2,833.60 "
24/05/2023,1249291,Westminster Society,,Bi-Borough Director of Integrated Care," 4,726.39 "
24/05/2023,1249291,Westminster Society,,Bi-Borough Director of Integrated Care," 1,133.44 "
24/05/2023,1249291,Westminster Society,,Bi-Borough Director of Integrated Care," 1,297.44 "
24/05/2023,1249291,Westminster Society,,Bi-Borough Director of Integrated Care," 11,623.54 "
24/05/2023,1249291,Westminster Society,,Bi-Borough Director of Integrated Care," 2,780.23 "
24/05/2023,1249291,Westminster Society,,Bi-Borough Director of Integrated Care," 2,038.84 "
24/05/2023,1249291,Westminster Society,,Bi-Borough Director of Integrated Care," 5,199.05 "
24/05/2023,1249291,Westminster Society,,Bi-Borough Director of Integrated Care, 857.62 
24/05/2023,1249291,Westminster Society,,Bi-Borough Director of Integrated Care, 947.24 
24/05/2023,1249291,Westminster Society,,Bi-Borough Director of Integrated Care," 2,316.85 "
24/05/2023,1249291,Westminster Society,,Bi-Borough Director of Integrated Care, 634.38 
24/05/2023,1249291,Westminster Society,,Bi-Borough Director of Integrated Care," 2,594.88 "
24/05/2023,1249291,Westminster Society,,Bi-Borough Director of Integrated Care, 634.38 
24/05/2023,1249291,Westminster Society,,Bi-Borough Director of Integrated Care," 3,567.96 "
24/05/2023,1249291,Westminster Society,,Bi-Borough Director of Integrated Care, 634.38 
24/05/2023,1249291,Westminster Society,,Bi-Borough Director of Integrated Care," 7,135.92 "
24/05/2023,1249291,Westminster Society,,Bi-Borough Director of Integrated Care," 1,481.56 "
24/05/2023,1249291,Westminster Society,,Bi-Borough Director of Integrated Care," 1,695.92 "
24/05/2023,1249291,Westminster Society,,Bi-Borough Director of Integrated Care, 566.72 
24/05/2023,1249291,Westminster Society,,Bi-Borough Director of Integrated Care, 648.72 
24/05/2023,1249291,Westminster Society,,Bi-Borough Director of Integrated Care," 2,266.88 "
24/05/2023,1249291,Westminster Society,,Bi-Borough Director of Integrated Care," 5,004.41 "
24/05/2023,1249291,Westminster Society,,Bi-Borough Director of Integrated Care, 857.62 
24/05/2023,1249291,Westminster Society,,Bi-Borough Director of Integrated Care," 7,552.96 "
24/05/2023,1249291,Westminster Society,,Bi-Borough Director of Integrated Care, 947.24 
24/05/2023,1249291,Westminster Society,,Bi-Borough Director of Integrated Care," 5,494.65 "
24/05/2023,1249291,Westminster Society,,Bi-Borough Director of Integrated Care," 3,521.63 "
24/05/2023,1249291,Westminster Society,,Bi-Borough Director of Integrated Care," 4,726.39 "
24/05/2023,1249291,Westminster Society,,Bi-Borough Director of Integrated Care," 3,706.97 "
24/05/2023,1249291,Westminster Society,,Bi-Borough Director of Integrated Care," 3,567.96 "
24/05/2023,1249291,Westminster Society,,Bi-Borough Director of Integrated Care," 1,664.88 "
24/05/2023,1249291,Westminster Society,,Bi-Borough Director of Integrated Care," 11,491.61 "
24/05/2023,1249291,Westminster Society,,Bi-Borough Director of Integrated Care, 634.38 
24/05/2023,1249291,Westminster Society,,Bi-Borough Director of Integrated Care," 2,594.88 "
24/05/2023,1249291,Westminster Society,,Bi-Borough Director of Integrated Care, 741.40 
24/05/2023,1249291,Westminster Society,,Bi-Borough Director of Integrated Care," 2,872.91 "
24/05/2023,1249291,Westminster Society,,Bi-Borough Director of Integrated Care," 1,065.76 "
24/05/2023,1249291,Westminster Society,,Bi-Borough Director of Integrated Care," 5,866.26 "
24/05/2023,1249291,Westminster Society,,Bi-Borough Director of Integrated Care, 947.24 
24/05/2023,1249291,Westminster Society,,Bi-Borough Director of Integrated Care, 857.62 
24/05/2023,1249291,Westminster Society,,Bi-Borough Director of Integrated Care," 5,289.70 "
24/05/2023,1249291,Westminster Society,,Bi-Borough Director of Integrated Care," 5,819.92 "
24/05/2023,1249291,Westminster Society,,Bi-Borough Director of Integrated Care," 2,626.47 "
24/05/2023,1249291,Westminster Society,,Bi-Borough Director of Integrated Care, 947.24 
24/05/2023,1249291,Westminster Society,,Bi-Borough Director of Integrated Care," 3,058.25 "
24/05/2023,1249291,Westminster Society,,Bi-Borough Director of Integrated Care," 3,058.25 "
24/05/2023,1249291,Westminster Society,,Bi-Borough Director of Integrated Care," 2,687.56 "
24/05/2023,1249291,Westminster Society,,Bi-Borough Director of Integrated Care," 1,133.44 "
24/05/2023,1249291,Westminster Society,,Bi-Borough Director of Integrated Care," 7,460.28 "
24/05/2023,1249291,Westminster Society,,Bi-Borough Director of Integrated Care," 1,621.80 "
24/05/2023,1249291,Westminster Society,,Bi-Borough Director of Integrated Care," 2,619.01 "
24/05/2023,1249291,Westminster Society,,Bi-Borough Director of Integrated Care, 857.62 
24/05/2023,1249291,Westminster Society,,Bi-Borough Director of Integrated Care," 5,838.48 "
24/05/2023,1249291,Westminster Society,,Bi-Borough Director of Integrated Care, 947.24 
24/05/2023,1249291,Westminster Society,,Bi-Borough Director of Integrated Care," 5,027.58 "
24/05/2023,1249291,Westminster Society,,Bi-Borough Director of Integrated Care," 2,833.60 "
24/05/2023,1249291,Westminster Society,,Bi-Borough Director of Integrated Care, 845.82 
24/05/2023,1249291,Westminster Society,,Bi-Borough Director of Integrated Care," 9,791.01 "
24/05/2023,1249291,Westminster Society,,Bi-Borough Director of Integrated Care," 6,487.20 "
24/05/2023,1249291,Westminster Society,,Bi-Borough Director of Integrated Care, 634.38 
24/05/2023,1249291,Westminster Society,,Bi-Borough Director of Integrated Care, 634.38 
24/05/2023,1249291,Westminster Society,,Bi-Borough Director of Integrated Care," 3,521.63 "
24/05/2023,1249291,Westminster Society,,Bi-Borough Director of Integrated Care," 1,664.88 "
24/05/2023,1249291,Westminster Society,,Bi-Borough Director of Integrated Care," 4,633.72 "
24/05/2023,1249291,Westminster Society,,Bi-Borough Director of Integrated Care, 647.68 
24/05/2023,1249291,Westminster Society,,Bi-Borough Director of Integrated Care, 857.62 
24/05/2023,1249291,Westminster Society,,Bi-Borough Director of Integrated Care," 11,028.24 "
24/05/2023,1249291,Westminster Society,,Bi-Borough Director of Integrated Care, 947.24 
24/05/2023,1249291,Westminster Society,,Bi-Borough Director of Integrated Care, 947.24 
24/05/2023,1249291,Westminster Society,,Bi-Borough Director of Integrated Care," 11,120.92 "
24/05/2023,1249291,Westminster Society,,Bi-Borough Director of Integrated Care, 857.62 
24/05/2023,1249291,Westminster Society,,Bi-Borough Director of Integrated Care," 7,858.76 "
24/05/2023,1249291,Westminster Society,,Bi-Borough Director of Integrated Care, 857.62 
24/05/2023,1249291,Westminster Society,,Bi-Borough Director of Integrated Care, 947.24 
30/05/2023,1249291,Westminster Society,B*Voluntary-Spot-V Dep-Enhanced - do not u,Bi-Borough Director of Integrated Care," 1,225.28 "
30/05/2023,1249291,Westminster Society,B*Voluntary-Spot-V Dep-Enhanced - do not u,Bi-Borough Director of Integrated Care," 2,625.60 "
30/05/2023,1249291,Westminster Society,B*Voluntary-Spot-V Dep-Enhanced - do not u,Bi-Borough Director of Integrated Care," 2,363.04 "
30/05/2023,1249291,Westminster Society,B*Voluntary-Spot-V Dep-Enhanced - do not u,Bi-Borough Director of Integrated Care, 700.16 
30/05/2023,1249291,Westminster Society,B*Voluntary-Spot-V Dep-Enhanced - do not u,Bi-Borough Director of Integrated Care, 787.68 
30/05/2023,1249291,Westminster Society,B*Voluntary-Spot-V Dep-Enhanced - do not u,Bi-Borough Director of Integrated Care, 700.16 
30/05/2023,1249291,Westminster Society,B*Voluntary-Spot-V Dep-Enhanced - do not u,Bi-Borough Director of Integrated Care, 787.68 
30/05/2023,1249291,Westminster Society,B*Voluntary-Spot-V Dep-Enhanced - do not u,Bi-Borough Director of Integrated Care, 875.20 
30/05/2023,1249291,Westminster Society,B*Voluntary-Spot-V Dep-Enhanced - do not u,Bi-Borough Director of Integrated Care," 1,750.40 "
30/05/2023,1249291,Westminster Society,B*Voluntary-Spot-V Dep-Enhanced - do not u,Bi-Borough Director of Integrated Care, 962.72 
30/05/2023,1249291,Westminster Society,B*Voluntary-Spot-V Dep-Enhanced - do not u,Bi-Borough Director of Integrated Care," 1,050.24 "
30/05/2023,1249291,Westminster Society,B*Voluntary-Spot-V Dep-Enhanced - do not u,Bi-Borough Director of Integrated Care, 525.12 
30/05/2023,1249291,Westminster Society,B*Voluntary-Spot-V Dep-Enhanced - do not u,Bi-Borough Director of Integrated Care," 2,188.00 "
30/05/2023,1249291,Westminster Society,B*Voluntary-Spot-V Dep-Enhanced - do not u,Bi-Borough Director of Integrated Care, 612.64 
30/05/2023,1249291,Westminster Society,B*Voluntary-Spot-V Dep-Enhanced - do not u,Bi-Borough Director of Integrated Care, 700.16 
30/05/2023,1249291,Westminster Society,B*Voluntary-Spot-V Dep-Enhanced - do not u,Bi-Borough Director of Integrated Care," 1,662.88 "
30/05/2023,1249291,Westminster Society,B*Voluntary-Spot-V Dep-Enhanced - do not u,Bi-Borough Director of Integrated Care," 1,225.28 "
30/05/2023,1249291,Westminster Society,B*Voluntary-Spot-V Dep-Enhanced - do not u,Bi-Borough Director of Integrated Care," 1,137.76 "
30/05/2023,1249291,Westminster Society,B*Voluntary-Spot-V Dep-Enhanced - do not u,Bi-Borough Director of Integrated Care, 700.16 
21/06/2023,1249291,Westminster Society,,Bi-Borough Director of Integrated Care," 3,238.24 "
21/06/2023,1249291,Westminster Society,,Bi-Borough Director of Integrated Care," 1,133.44 "
21/06/2023,1249291,Westminster Society,,Bi-Borough Director of Integrated Care," 6,760.92 "
21/06/2023,1249291,Westminster Society,,Bi-Borough Director of Integrated Care, 601.68 
21/06/2023,1249291,Westminster Society,,Bi-Borough Director of Integrated Care, 947.24 
21/06/2023,1249291,Westminster Society,,Bi-Borough Director of Integrated Care," 3,982.16 "
21/06/2023,1249291,Westminster Society,,Bi-Borough Director of Integrated Care," 1,444.08 "
21/06/2023,1249291,Westminster Society,,Bi-Borough Director of Integrated Care," 1,133.44 "
21/06/2023,1249291,Westminster Society,,Bi-Borough Director of Integrated Care," 6,935.96 "
21/06/2023,1249291,Westminster Society,,Bi-Borough Director of Integrated Care, 700.16 
21/06/2023,1249291,Westminster Society,,Bi-Borough Director of Integrated Care," 4,901.12 "
21/06/2023,1249291,Westminster Society,,Bi-Borough Director of Integrated Care," 1,225.28 "
21/06/2023,1249291,Westminster Society,,Bi-Borough Director of Integrated Care," 8,824.64 "
21/06/2023,1249291,Westminster Society,,Bi-Borough Director of Integrated Care," 1,664.88 "
21/06/2023,1249291,Westminster Society,,Bi-Borough Director of Integrated Care, 612.64 
21/06/2023,1249291,Westminster Society,,Bi-Borough Director of Integrated Care," 4,292.32 "
21/06/2023,1249291,Westminster Society,,Bi-Borough Director of Integrated Care, 947.24 
21/06/2023,1249291,Westminster Society,,Bi-Borough Director of Integrated Care," 2,450.56 "
21/06/2023,1249291,Westminster Society,,Bi-Borough Director of Integrated Care, 601.68 
21/06/2023,1249291,Westminster Society,,Bi-Borough Director of Integrated Care, 700.16 
21/06/2023,1249291,Westminster Society,,Bi-Borough Director of Integrated Care," 2,713.12 "
21/06/2023,1249291,Westminster Society,,Bi-Borough Director of Integrated Care," 2,363.04 "
21/06/2023,1249291,Westminster Society,,Bi-Borough Director of Integrated Care," 3,588.32 "
21/06/2023,1249291,Westminster Society,,Bi-Borough Director of Integrated Care," 3,982.16 "
21/06/2023,1249291,Westminster Society,,Bi-Borough Director of Integrated Care," 1,225.28 "
21/06/2023,1249291,Westminster Society,,Bi-Borough Director of Integrated Care," 4,988.64 "
21/06/2023,1249291,Westminster Society,,Bi-Borough Director of Integrated Care," 3,063.20 "
21/06/2023,1249291,Westminster Society,,Bi-Borough Director of Integrated Care," 4,200.96 "
21/06/2023,1249291,Westminster Society,,Bi-Borough Director of Integrated Care," 3,150.72 "
21/06/2023,1249291,Westminster Society,,Bi-Borough Director of Integrated Care," 2,266.88 "
21/06/2023,1249291,Westminster Society,,Bi-Borough Director of Integrated Care," 7,859.28 "
21/06/2023,1249291,Westminster Society,,Bi-Borough Director of Integrated Care," 3,325.76 "
21/06/2023,1249291,Westminster Society,,Bi-Borough Director of Integrated Care," 9,373.40 "
21/06/2023,1249291,Westminster Society,,Bi-Borough Director of Integrated Care," 2,833.60 "
21/06/2023,1249291,Westminster Society,,Bi-Borough Director of Integrated Care, 798.80 
21/06/2023,1249291,Westminster Society,,Bi-Borough Director of Integrated Care," 5,601.28 "
21/06/2023,1249291,Westminster Society,,Bi-Borough Director of Integrated Care," 3,063.20 "
21/06/2023,1249291,Westminster Society,,Bi-Borough Director of Integrated Care," 7,351.68 "
21/06/2023,1249291,Westminster Society,,Bi-Borough Director of Integrated Care," 10,572.40 "
21/06/2023,1249291,Westminster Society,,Bi-Borough Director of Integrated Care, 798.80 
21/06/2023,1249291,Westminster Society,,Bi-Borough Director of Integrated Care," 2,266.88 "
21/06/2023,1249291,Westminster Society,,Bi-Borough Director of Integrated Care," 5,426.24 "
21/06/2023,1249291,Westminster Society,,Bi-Borough Director of Integrated Care," 10,047.28 "
21/06/2023,1249291,Westminster Society,,Bi-Borough Director of Integrated Care, 798.80 
21/06/2023,1249291,Westminster Society,,Bi-Borough Director of Integrated Care," 2,266.88 "
21/06/2023,1249291,Westminster Society,,Bi-Borough Director of Integrated Care," 1,269.04 "
21/06/2023,1249291,Westminster Society,,Bi-Borough Director of Integrated Care," 9,310.40 "
21/06/2023,1249291,Westminster Society,,Bi-Borough Director of Integrated Care," 9,894.47 "
21/06/2023,1249291,Westminster Society,,Bi-Borough Director of Integrated Care," 1,925.44 "
21/06/2023,1249291,Westminster Society,,Bi-Borough Director of Integrated Care," 2,450.56 "
21/06/2023,1249291,Westminster Society,,Bi-Borough Director of Integrated Care, 599.08 
21/06/2023,1249291,Westminster Society,,Bi-Borough Director of Integrated Care," 1,225.28 "
21/06/2023,1249291,Westminster Society,,Bi-Borough Director of Integrated Care, 601.68 
21/06/2023,1249291,Westminster Society,,Bi-Borough Director of Integrated Care," 4,909.88 "
21/06/2023,1249291,Westminster Society,,Bi-Borough Director of Integrated Care, 947.24 
21/06/2023,1249291,Westminster Society,,Bi-Borough Director of Integrated Care," 2,625.60 "
21/06/2023,1249291,Westminster Society,,Bi-Borough Director of Integrated Care," 2,188.00 "
21/06/2023,1249291,Westminster Society,,Bi-Borough Director of Integrated Care, 599.08 
21/06/2023,1249291,Westminster Society,,Bi-Borough Director of Integrated Care," 4,463.52 "
21/06/2023,1249291,Westminster Society,,Bi-Borough Director of Integrated Care," 1,133.44 "
21/06/2023,1249291,Westminster Society,,Bi-Borough Director of Integrated Care," 7,132.88 "
21/06/2023,1249291,Westminster Society,,Bi-Borough Director of Integrated Care, 947.24 
21/06/2023,1249291,Westminster Society,,Bi-Borough Director of Integrated Care, 601.68 
21/06/2023,1249291,Westminster Society,,Bi-Borough Director of Integrated Care," 6,739.04 "
21/06/2023,1249291,Westminster Society,,Bi-Borough Director of Integrated Care, 599.08 
21/06/2023,1249291,Westminster Society,,Bi-Borough Director of Integrated Care, 566.72 
21/06/2023,1249291,Westminster Society,,Bi-Borough Director of Integrated Care, 612.64 
21/06/2023,1249291,Westminster Society,,Bi-Borough Director of Integrated Care," 4,726.08 "
21/06/2023,1249291,Westminster Society,,Bi-Borough Director of Integrated Care," 2,266.88 "
21/06/2023,1249291,Westminster Society,,Bi-Borough Director of Integrated Care," 3,369.52 "
21/06/2023,1249291,Westminster Society,,Bi-Borough Director of Integrated Care," 1,601.60 "
21/06/2023,1249291,Westminster Society,,Bi-Borough Director of Integrated Care," 1,481.56 "
21/06/2023,1249291,Westminster Society,,Bi-Borough Director of Integrated Care," 3,325.76 "
21/06/2023,1249291,Westminster Society,,Bi-Borough Director of Integrated Care," 3,500.80 "
21/06/2023,1249291,Westminster Society,,Bi-Borough Director of Integrated Care, 947.24 
21/06/2023,1249291,Westminster Society,,Bi-Borough Director of Integrated Care," 5,496.24 "
21/06/2023,1249291,Westminster Society,,Bi-Borough Director of Integrated Care, 601.68 
21/06/2023,1249291,Westminster Society,,Bi-Borough Director of Integrated Care," 5,540.00 "
21/06/2023,1249291,Westminster Society,,Bi-Borough Director of Integrated Care," 4,463.52 "
21/06/2023,1249291,Westminster Society,,Bi-Borough Director of Integrated Care," 2,713.12 "
21/06/2023,1249291,Westminster Society,,Bi-Borough Director of Integrated Care, 599.08 
21/06/2023,1249291,Westminster Society,,Bi-Borough Director of Integrated Care," 10,852.48 "
21/06/2023,1249291,Westminster Society,,Bi-Borough Director of Integrated Care," 1,664.88 "
21/06/2023,1249291,Westminster Society,,Bi-Borough Director of Integrated Care," 2,450.56 "
21/06/2023,1249291,Westminster Society,,Bi-Borough Director of Integrated Care, 601.68 
21/06/2023,1249291,Westminster Society,,Bi-Borough Director of Integrated Care, 947.24 
21/06/2023,1249291,Westminster Society,,Bi-Borough Director of Integrated Care," 7,447.96 "
21/06/2023,1249291,Westminster Society,,Bi-Borough Director of Integrated Care," 1,006.48 "
21/06/2023,1249291,Westminster Society,,Bi-Borough Director of Integrated Care, 700.16 
21/06/2023,1249291,Westminster Society,,Bi-Borough Director of Integrated Care," 3,369.52 "
21/06/2023,1249291,Westminster Society,,Bi-Borough Director of Integrated Care," 2,888.16 "
21/06/2023,1249291,Westminster Society,,Bi-Borough Director of Integrated Care," 4,747.96 "
21/06/2023,1249291,Westminster Society,,Bi-Borough Director of Integrated Care," 2,888.16 "
21/06/2023,1249291,Westminster Society,,Bi-Borough Director of Integrated Care," 1,531.60 "
21/06/2023,1249291,Westminster Society,,Bi-Borough Director of Integrated Care," 2,538.08 "
21/06/2023,1249291,Westminster Society,,Bi-Borough Director of Integrated Care," 9,246.48 "
21/06/2023,1249291,Westminster Society,,Bi-Borough Director of Integrated Care, 798.80 
21/06/2023,1249291,Westminster Society,,Bi-Borough Director of Integrated Care," 2,833.60 "
21/06/2023,1249291,Westminster Society,,Bi-Borough Director of Integrated Care, 599.08 
21/06/2023,1249291,Westminster Society,,Bi-Borough Director of Integrated Care," 6,126.40 "
21/06/2023,1249291,Westminster Society,,Bi-Borough Director of Integrated Care," 7,045.36 "
21/06/2023,1249291,Westminster Society,,Bi-Borough Director of Integrated Care," 1,133.44 "
21/06/2023,1249291,Westminster Society,,Bi-Borough Director of Integrated Care, 601.68 
21/06/2023,1249291,Westminster Society,,Bi-Borough Director of Integrated Care," 5,513.76 "
21/06/2023,1249291,Westminster Society,,Bi-Borough Director of Integrated Care, 947.24 
21/06/2023,1249291,Westminster Society,,Bi-Borough Director of Integrated Care," 3,413.28 "
21/06/2023,1249291,Westminster Society,,Bi-Borough Director of Integrated Care," 3,325.76 "
21/06/2023,1249291,Westminster Society,,Bi-Borough Director of Integrated Care, 599.08 
21/06/2023,1249291,Westminster Society,,Bi-Borough Director of Integrated Care, 601.68 
21/06/2023,1249291,Westminster Society,,Bi-Borough Director of Integrated Care, 947.24 
21/06/2023,1249291,Westminster Society,,Bi-Borough Director of Integrated Care," 7,421.68 "
21/06/2023,1249291,Westminster Society,,Bi-Borough Director of Integrated Care, 601.68 
21/06/2023,1249291,Westminster Society,,Bi-Borough Director of Integrated Care," 10,414.88 "
21/06/2023,1249291,Westminster Society,,Bi-Borough Director of Integrated Care, 947.24 
21/06/2023,1249291,Westminster Society,,Bi-Borough Director of Integrated Care," 10,502.40 "
21/06/2023,1249291,Westminster Society,,Bi-Borough Director of Integrated Care, 947.24 
21/06/2023,1249291,Westminster Society,,Bi-Borough Director of Integrated Care, 601.68 
21/06/2023,1249291,Westminster Society,,Bi-Borough Director of Integrated Care," 4,376.00 "
21/06/2023,1249291,Westminster Society,,Bi-Borough Director of Integrated Care," 1,664.88 "
21/06/2023,1249291,Westminster Society,,Bi-Borough Director of Integrated Care, 647.68 
27/06/2023,1249291,Westminster Society,B*Voluntary-Spot-V Dep-Enhanced - do not u,Bi-Borough Director of Integrated Care, 962.72 
27/06/2023,1249291,Westminster Society,B*Voluntary-Spot-V Dep-Enhanced - do not u,Bi-Borough Director of Integrated Care, 787.68 
27/06/2023,1249291,Westminster Society,B*Voluntary-Spot-V Dep-Enhanced - do not u,Bi-Borough Director of Integrated Care, 700.16 
27/06/2023,1249291,Westminster Society,B*Voluntary-Spot-V Dep-Enhanced - do not u,Bi-Borough Director of Integrated Care," 2,363.04 "
27/06/2023,1249291,Westminster Society,B*Voluntary-Spot-V Dep-Enhanced - do not u,Bi-Borough Director of Integrated Care," 1,050.24 "
27/06/2023,1249291,Westminster Society,B*Voluntary-Spot-V Dep-Enhanced - do not u,Bi-Borough Director of Integrated Care, 787.68 
27/06/2023,1249291,Westminster Society,B*Voluntary-Spot-V Dep-Enhanced - do not u,Bi-Borough Director of Integrated Care, 700.16 
27/06/2023,1249291,Westminster Society,B*Voluntary-Spot-V Dep-Enhanced - do not u,Bi-Borough Director of Integrated Care," 1,225.28 "
27/06/2023,1249291,Westminster Society,B*Voluntary-Spot-V Dep-Enhanced - do not u,Bi-Borough Director of Integrated Care, 525.12 
27/06/2023,1249291,Westminster Society,B*Voluntary-Spot-V Dep-Enhanced - do not u,Bi-Borough Director of Integrated Care, 700.16 
27/06/2023,1249291,Westminster Society,B*Voluntary-Spot-V Dep-Enhanced - do not u,Bi-Borough Director of Integrated Care, 612.64 
27/06/2023,1249291,Westminster Society,B*Voluntary-Spot-V Dep-Enhanced - do not u,Bi-Borough Director of Integrated Care," 1,750.40 "
27/06/2023,1249291,Westminster Society,B*Voluntary-Spot-V Dep-Enhanced - do not u,Bi-Borough Director of Integrated Care, 700.16 
27/06/2023,1249291,Westminster Society,B*Voluntary-Spot-V Dep-Enhanced - do not u,Bi-Borough Director of Integrated Care," 2,625.60 "
27/06/2023,1249291,Westminster Society,B*Voluntary-Spot-V Dep-Enhanced - do not u,Bi-Borough Director of Integrated Care," 2,188.00 "
27/06/2023,1249291,Westminster Society,B*Voluntary-Spot-V Dep-Enhanced - do not u,Bi-Borough Director of Integrated Care, 875.20 
27/06/2023,1249291,Westminster Society,B*Voluntary-Spot-V Dep-Enhanced - do not u,Bi-Borough Director of Integrated Care," 1,137.76 "
27/06/2023,1249291,Westminster Society,B*Voluntary-Spot-V Dep-Enhanced - do not u,Bi-Borough Director of Integrated Care, 700.16 
27/06/2023,1249291,Westminster Society,B*Voluntary-Spot-V Dep-Enhanced - do not u,Bi-Borough Director of Integrated Care," 1,662.88 "
27/06/2023,1249291,Westminster Society,B*Voluntary-Spot-V Dep-Enhanced - do not u,Bi-Borough Director of Integrated Care," 1,225.28 "
02/05/2023,1246224,Whitmore Vale Housing Association,,Bi-Borough Director of Integrated Care," 3,161.83 "
24/05/2023,1246224,Whitmore Vale Housing Association,,Bi-Borough Director of Integrated Care," 3,688.80 "
21/06/2023,1246224,Whitmore Vale Housing Association,,Bi-Borough Director of Integrated Care," 3,688.80 "
02/05/2023,1243566,Yarrow Housing Ltd,,Bi-Borough Director of Integrated Care," 1,557.12 "
02/05/2023,1243566,Yarrow Housing Ltd,,Bi-Borough Director of Integrated Care," 1,557.12 "
02/05/2023,1243566,Yarrow Housing Ltd,,Bi-Borough Director of Integrated Care," 6,255.05 "
02/05/2023,1243566,Yarrow Housing Ltd,,Bi-Borough Director of Integrated Care," 10,562.57 "
02/05/2023,1243566,Yarrow Housing Ltd,,Bi-Borough Director of Integrated Care," 6,729.60 "
02/05/2023,1243566,Yarrow Housing Ltd,,Bi-Borough Director of Integrated Care," 1,445.76 "
02/05/2023,1243566,Yarrow Housing Ltd,,Bi-Borough Director of Integrated Care," 1,445.76 "
02/05/2023,1243566,Yarrow Housing Ltd,,Bi-Borough Director of Integrated Care," 7,115.93 "
02/05/2023,1243566,Yarrow Housing Ltd,,Bi-Borough Director of Integrated Care," 3,333.57 "
02/05/2023,1243566,Yarrow Housing Ltd,,Bi-Borough Director of Integrated Care," 4,757.83 "
24/05/2023,1243566,Yarrow Housing Ltd,,Bi-Borough Director of Integrated Care," 1,686.72 "
24/05/2023,1243566,Yarrow Housing Ltd,,Bi-Borough Director of Integrated Care," 1,686.72 "
24/05/2023,1243566,Yarrow Housing Ltd,,Bi-Borough Director of Integrated Care," 7,851.20 "
24/05/2023,1243566,Yarrow Housing Ltd,,Bi-Borough Director of Integrated Care," 8,301.92 "
24/05/2023,1243566,Yarrow Housing Ltd,,Bi-Borough Director of Integrated Care," 3,889.16 "
24/05/2023,1243566,Yarrow Housing Ltd,,Bi-Borough Director of Integrated Care," 5,550.80 "
24/05/2023,1243566,Yarrow Housing Ltd,,Bi-Borough Director of Integrated Care," 1,816.64 "
24/05/2023,1243566,Yarrow Housing Ltd,,Bi-Borough Director of Integrated Care," 1,816.64 "
24/05/2023,1243566,Yarrow Housing Ltd,,Bi-Borough Director of Integrated Care," 7,297.56 "
24/05/2023,1243566,Yarrow Housing Ltd,,Bi-Borough Director of Integrated Care," 12,323.00 "
25/05/2023,1243566,Yarrow Housing Ltd,Rent,Bi-Borough Director of Integrated Care," 25,743.90 "
30/05/2023,1243566,Yarrow Housing Ltd,,Bi-Borough Director of Integrated Care," 7,921.20 "
21/06/2023,1243566,Yarrow Housing Ltd,,Bi-Borough Director of Integrated Care," 7,921.77 "
21/06/2023,1243566,Yarrow Housing Ltd,,Bi-Borough Director of Integrated Care," 8,301.92 "
21/06/2023,1243566,Yarrow Housing Ltd,,Bi-Borough Director of Integrated Care," 3,889.16 "
21/06/2023,1243566,Yarrow Housing Ltd,,Bi-Borough Director of Integrated Care," 5,550.80 "
21/06/2023,1243566,Yarrow Housing Ltd,,Bi-Borough Director of Integrated Care," 1,816.64 "
21/06/2023,1243566,Yarrow Housing Ltd,,Bi-Borough Director of Integrated Care," 1,816.64 "
21/06/2023,1243566,Yarrow Housing Ltd,,Bi-Borough Director of Integrated Care," 7,297.56 "
21/06/2023,1243566,Yarrow Housing Ltd,,Bi-Borough Director of Integrated Care," 12,323.00 "
21/06/2023,1243566,Yarrow Housing Ltd,,Bi-Borough Director of Integrated Care," 1,686.72 "
21/06/2023,1243566,Yarrow Housing Ltd,,Bi-Borough Director of Integrated Care," 1,686.72 "
21/06/2023,1243566,Yarrow Housing Ltd,,Bi-Borough Director of Integrated Care," 7,851.20 "
28/06/2023,1243566,Yarrow Housing Ltd,,Bi-Borough Director of Integrated Care," 7,921.77 "
12/05/2023,1249317,Zocalo Ltd T/as Bluebird Care,,Bi-Borough Director of Integrated Care," 4,014.00 "
29/06/2023,1249317,Zocalo Ltd T/as Bluebird Care,,Bi-Borough Director of Integrated Care," 4,014.00 "
12/04/2023,1249318,Zodiac Arts Ltd,B*Voluntary-Spot-V Dep-Enhanced - do not u,Bi-Borough Director of Integrated Care, 715.50 
18/05/2023,1249318,Zodiac Arts Ltd,B*Voluntary-Spot-V Dep-Enhanced - do not u,Bi-Borough Director of Integrated Care, 715.50 
27/06/2023,1249318,Zodiac Arts Ltd,B*Voluntary-Spot-V Dep-Enhanced - do not u,Bi-Borough Director of Integrated Care, 715.50 
02/05/2023,D000000016,GENERAL,Equipment,Bi-Borough Director of Integrated Care," 1,925.00 "
15/06/2023,D000000016,GENERAL,Equipment,Bi-Borough Director of Integrated Care," 1,085.86 "
10/04/2023,1249079,The Appropriate Adult Service Ltd,Training related expenditure,Bi-Borough Director of Integrated Care, 637.50 
19/04/2023,1249079,The Appropriate Adult Service Ltd,Training related expenditure,Bi-Borough Director of Integrated Care," 1,073.13 "
31/05/2023,1249079,The Appropriate Adult Service Ltd,Training related expenditure,Bi-Borough Director of Integrated Care," 1,083.75 "
27/06/2023,1243797,Central & North West London Nhs,Other Expenses,Bi-Borough Director of Integrated Care," 5,232.49 "
27/06/2023,1243797,Central & North West London Nhs,Other Expenses,Bi-Borough Director of Integrated Care," 5,232.49 "
02/05/2023,1247852,Look Ahead Care and Support Ltd,,Bi-Borough Director of Integrated Care," 1,077.12 "
02/05/2023,1247852,Look Ahead Care and Support Ltd,,Bi-Borough Director of Integrated Care," 1,175.52 "
02/05/2023,1247852,Look Ahead Care and Support Ltd,,Bi-Borough Director of Integrated Care, 781.51 
02/05/2023,1247852,Look Ahead Care and Support Ltd,,Bi-Borough Director of Integrated Care, 769.65 
02/05/2023,1247852,Look Ahead Care and Support Ltd,,Bi-Borough Director of Integrated Care, 819.05 
02/05/2023,1247852,Look Ahead Care and Support Ltd,,Bi-Borough Director of Integrated Care," 1,077.12 "
02/05/2023,1247852,Look Ahead Care and Support Ltd,,Bi-Borough Director of Integrated Care, 721.95 
02/05/2023,1247852,Look Ahead Care and Support Ltd,,Bi-Borough Director of Integrated Care," 1,211.14 "
24/05/2023,1247852,Look Ahead Care and Support Ltd,,Bi-Borough Director of Integrated Care, 897.92 
24/05/2023,1247852,Look Ahead Care and Support Ltd,,Bi-Borough Director of Integrated Care, 955.56 
24/05/2023,1247852,Look Ahead Care and Support Ltd,,Bi-Borough Director of Integrated Care," 1,256.64 "
24/05/2023,1247852,Look Ahead Care and Support Ltd,,Bi-Borough Director of Integrated Care, 842.28 
24/05/2023,1247852,Look Ahead Care and Support Ltd,,Bi-Borough Director of Integrated Care," 1,413.00 "
24/05/2023,1247852,Look Ahead Care and Support Ltd,,Bi-Borough Director of Integrated Care," 1,256.64 "
24/05/2023,1247852,Look Ahead Care and Support Ltd,,Bi-Borough Director of Integrated Care," 1,371.44 "
24/05/2023,1247852,Look Ahead Care and Support Ltd,,Bi-Borough Director of Integrated Care, 911.76 
21/06/2023,1247852,Look Ahead Care and Support Ltd,,Bi-Borough Director of Integrated Care, 955.56 
21/06/2023,1247852,Look Ahead Care and Support Ltd,,Bi-Borough Director of Integrated Care," 1,256.64 "
21/06/2023,1247852,Look Ahead Care and Support Ltd,,Bi-Borough Director of Integrated Care, 842.28 
21/06/2023,1247852,Look Ahead Care and Support Ltd,,Bi-Borough Director of Integrated Care," 1,413.00 "
21/06/2023,1247852,Look Ahead Care and Support Ltd,,Bi-Borough Director of Integrated Care, 897.92 
21/06/2023,1247852,Look Ahead Care and Support Ltd,,Bi-Borough Director of Integrated Care," 1,256.64 "
21/06/2023,1247852,Look Ahead Care and Support Ltd,,Bi-Borough Director of Integrated Care," 2,001.68 "
21/06/2023,1247852,Look Ahead Care and Support Ltd,,Bi-Borough Director of Integrated Care, 911.76 
02/05/2023,1248618,Riverside Echg,,Bi-Borough Director of Integrated Care, 907.78 
02/05/2023,1248618,Riverside Echg,,Bi-Borough Director of Integrated Care, 864.00 
02/05/2023,1248618,Riverside Echg,,Bi-Borough Director of Integrated Care," 1,057.27 "
24/05/2023,1248618,Riverside Echg,,Bi-Borough Director of Integrated Care," 1,233.48 "
24/05/2023,1248618,Riverside Echg,,Bi-Borough Director of Integrated Care," 1,497.30 "
24/05/2023,1248618,Riverside Echg,,Bi-Borough Director of Integrated Care," 1,005.72 "
21/06/2023,1248618,Riverside Echg,,Bi-Borough Director of Integrated Care," 1,233.48 "
21/06/2023,1248618,Riverside Echg,,Bi-Borough Director of Integrated Care," 1,304.48 "
21/06/2023,1248618,Riverside Echg,,Bi-Borough Director of Integrated Care, 971.04 
02/05/2023,1245584,Single Homeless Project,,Bi-Borough Director of Integrated Care, 923.07 
02/05/2023,1245584,Single Homeless Project,,Bi-Borough Director of Integrated Care," 1,312.59 "
02/05/2023,1245584,Single Homeless Project,,Bi-Borough Director of Integrated Care," 1,416.14 "
24/05/2023,1245584,Single Homeless Project,,Bi-Borough Director of Integrated Care," 1,076.92 "
24/05/2023,1245584,Single Homeless Project,,Bi-Borough Director of Integrated Care," 2,065.23 "
24/05/2023,1245584,Single Homeless Project,,Bi-Borough Director of Integrated Care," 1,531.36 "
21/06/2023,1245584,Single Homeless Project,,Bi-Borough Director of Integrated Care," 1,883.48 "
21/06/2023,1245584,Single Homeless Project,,Bi-Borough Director of Integrated Care," 5,237.92 "
21/06/2023,1245584,Single Homeless Project,,Bi-Borough Director of Integrated Care," 1,076.92 "
02/05/2023,1245636,St Mungos Broadway (Grants &,,Bi-Borough Director of Integrated Care," 1,222.97 "
02/05/2023,1245636,St Mungos Broadway (Grants &,,Bi-Borough Director of Integrated Care," 1,243.68 "
24/05/2023,1245636,St Mungos Broadway (Grants &,,Bi-Borough Director of Integrated Care," 2,546.39 "
24/05/2023,1245636,St Mungos Broadway (Grants &,,Bi-Borough Director of Integrated Care," 2,565.37 "
21/06/2023,1245636,St Mungos Broadway (Grants &,,Bi-Borough Director of Integrated Care," 2,064.40 "
21/06/2023,1245636,St Mungos Broadway (Grants &,,Bi-Borough Director of Integrated Care," 2,064.40 "
11/05/2023,1305117,British Red Cross,Agency Staff,Bi-Borough Director of Integrated Care," 24,626.00 "
06/04/2023,1245728,Cnwl Nhs Foundation Trust (Use,Agency Staff,Bi-Borough Director of Integrated Care," 2,509.43 "
12/06/2023,1245728,Cnwl Nhs Foundation Trust (Use,Agency Staff,Bi-Borough Director of Integrated Care," 2,509.43 "
30/06/2023,1245728,Cnwl Nhs Foundation Trust (Use,Agency Staff,Bi-Borough Director of Integrated Care," 2,910.55 "
09/06/2023,1249167,TMP (UK) Ltd,"Publicity, Promotions and Advertisement",Bi-Borough Director of Integrated Care, 830.00 
12/06/2023,1249167,TMP (UK) Ltd,"Publicity, Promotions and Advertisement",Bi-Borough Director of Integrated Care, 785.00 
21/06/2023,1245563,Sharpe Pritchard,Hired and Contracted Services,Bi-Borough Director of Integrated Care, 697.00 
02/05/2023,1255843,A.I. Care Services Ltd,,Bi-Borough Director of Integrated Care," 1,031.82 "
30/05/2023,1255843,A.I. Care Services Ltd,,Bi-Borough Director of Integrated Care," 1,075.76 "
22/06/2023,1255843,A.I. Care Services Ltd,,Bi-Borough Director of Integrated Care," 1,556.18 "
22/06/2023,1255843,A.I. Care Services Ltd,,Bi-Borough Director of Integrated Care," 1,075.79 "
06/04/2023,1245929,The Regard Partnership Ltd,B*Voluntary-Spot-V Dep-Enhanced - do not u,Bi-Borough Director of Integrated Care," 1,855.00 "
18/05/2023,1245929,The Regard Partnership Ltd,B*Voluntary-Spot-V Dep-Enhanced - do not u,Bi-Borough Director of Integrated Care," 1,428.00 "
24/05/2023,1307987,ALAND HEALTHCARE CONSULTING LIMITED,,Bi-Borough Director of Integrated Care," 1,221.43 "
24/05/2023,1307987,ALAND HEALTHCARE CONSULTING LIMITED,,Bi-Borough Director of Integrated Care," 1,221.43 "
21/06/2023,1307987,ALAND HEALTHCARE CONSULTING LIMITED,,Bi-Borough Director of Integrated Care," 1,800.00 "
21/06/2023,1307987,ALAND HEALTHCARE CONSULTING LIMITED,,Bi-Borough Director of Integrated Care," 1,800.00 "
05/04/2023,1243931,Ashbourne Healthcare Services,,Bi-Borough Director of Integrated Care," 1,601.10 "
20/04/2023,1243931,Ashbourne Healthcare Services,,Bi-Borough Director of Integrated Care," 1,494.36 "
15/05/2023,1243931,Ashbourne Healthcare Services,,Bi-Borough Director of Integrated Care," 1,618.89 "
22/05/2023,1243931,Ashbourne Healthcare Services,,Bi-Borough Director of Integrated Care," 1,494.36 "
22/05/2023,1243931,Ashbourne Healthcare Services,,Bi-Borough Director of Integrated Care," 1,494.36 "
02/06/2023,1243931,Ashbourne Healthcare Services,,Bi-Borough Director of Integrated Care," 1,632.85 "
02/06/2023,1243931,Ashbourne Healthcare Services,,Bi-Borough Director of Integrated Care, 507.49 
26/06/2023,1243931,Ashbourne Healthcare Services,,Bi-Borough Director of Integrated Care," 1,690.48 "
26/06/2023,1243931,Ashbourne Healthcare Services,,Bi-Borough Director of Integrated Care, 507.49 
26/06/2023,1243931,Ashbourne Healthcare Services,,Bi-Borough Director of Integrated Care," 1,613.64 "
02/05/2023,1271022,BONZA CARE LTD,,Bi-Borough Director of Integrated Care," 1,868.57 "
02/05/2023,1271022,BONZA CARE LTD,,Bi-Borough Director of Integrated Care," 1,868.57 "
02/05/2023,1271022,BONZA CARE LTD,,Bi-Borough Director of Integrated Care," 1,443.43 "
24/05/2023,1271022,BONZA CARE LTD,,Bi-Borough Director of Integrated Care," 2,180.00 "
24/05/2023,1271022,BONZA CARE LTD,,Bi-Borough Director of Integrated Care," 2,180.00 "
24/05/2023,1271022,BONZA CARE LTD,,Bi-Borough Director of Integrated Care," 1,684.00 "
21/06/2023,1271022,BONZA CARE LTD,,Bi-Borough Director of Integrated Care," 1,684.00 "
21/06/2023,1271022,BONZA CARE LTD,,Bi-Borough Director of Integrated Care," 2,180.00 "
21/06/2023,1271022,BONZA CARE LTD,,Bi-Borough Director of Integrated Care," 2,180.00 "
02/05/2023,1302222,Bespoke Care Support Ltd,,Bi-Borough Director of Integrated Care," 4,611.43 "
24/05/2023,1302222,Bespoke Care Support Ltd,,Bi-Borough Director of Integrated Care," 5,380.00 "
21/06/2023,1302222,Bespoke Care Support Ltd,,Bi-Borough Director of Integrated Care," 5,380.00 "
15/06/2023,1246247,Blitz Home Environmental Cleaning,,Bi-Borough Director of Integrated Care," 1,650.00 "
29/06/2023,1246247,Blitz Home Environmental Cleaning,,Bi-Borough Director of Integrated Care, 900.00 
18/04/2023,1246261,Brent Wandsworth & Westminster,B*Voluntary-Spot-V Dep-Enhanced - do not u,Bi-Borough Director of Integrated Care," 1,095.79 "
18/04/2023,1246261,Brent Wandsworth & Westminster,,Bi-Borough Director of Integrated Care, 574.14 
17/05/2023,1246262,Brent Wandsworth & Westminster,B*Voluntary-Spot-V Dep-Enhanced - do not u,Bi-Borough Director of Integrated Care, 660.00 
23/05/2023,1246262,Brent Wandsworth & Westminster,B*Voluntary-Spot-V Dep-Enhanced - do not u,Bi-Borough Director of Integrated Care, 540.00 
23/05/2023,1246262,Brent Wandsworth & Westminster,B*Voluntary-Spot-V Dep-Enhanced - do not u,Bi-Borough Director of Integrated Care, 870.00 
23/05/2023,1246262,Brent Wandsworth & Westminster,B*Voluntary-Spot-V Dep-Enhanced - do not u,Bi-Borough Director of Integrated Care, 600.00 
23/05/2023,1246262,Brent Wandsworth & Westminster,B*Voluntary-Spot-V Dep-Enhanced - do not u,Bi-Borough Director of Integrated Care, 540.00 
02/05/2023,1247482,PERSONAL PAYMENTS,,Bi-Borough Director of Integrated Care, 714.24 
24/05/2023,1247482,PERSONAL PAYMENTS,,Bi-Borough Director of Integrated Care, 833.28 
21/06/2023,1247482,PERSONAL PAYMENTS,,Bi-Borough Director of Integrated Care, 833.28 
02/05/2023,1246321,Camphill Village Trust,,Bi-Borough Director of Integrated Care, 993.77 
24/05/2023,1246321,Camphill Village Trust,,Bi-Borough Director of Integrated Care," 1,159.40 "
21/06/2023,1246321,Camphill Village Trust,,Bi-Borough Director of Integrated Care," 1,159.40 "
24/05/2023,1306723,Carefield Support Services Ltd,,Bi-Borough Director of Integrated Care," 3,710.00 "
24/05/2023,1306723,Carefield Support Services Ltd,,Bi-Borough Director of Integrated Care," 3,710.00 "
21/06/2023,1306723,Carefield Support Services Ltd,,Bi-Borough Director of Integrated Care," 1,960.00 "
21/06/2023,1306723,Carefield Support Services Ltd,,Bi-Borough Director of Integrated Care," 1,960.00 "
02/05/2023,1299671,Clear Sight Care Ltd,,Bi-Borough Director of Integrated Care," 1,477.71 "
02/05/2023,1299671,Clear Sight Care Ltd,,Bi-Borough Director of Integrated Care," 1,477.71 "
24/05/2023,1299671,Clear Sight Care Ltd,,Bi-Borough Director of Integrated Care," 1,724.00 "
24/05/2023,1299671,Clear Sight Care Ltd,,Bi-Borough Director of Integrated Care," 1,724.00 "
21/06/2023,1299671,Clear Sight Care Ltd,,Bi-Borough Director of Integrated Care," 1,724.00 "
21/06/2023,1299671,Clear Sight Care Ltd,,Bi-Borough Director of Integrated Care," 1,724.00 "
12/04/2023,1244190,Clouds End Services Ltd,,Bi-Borough Director of Integrated Care," 1,200.00 "
02/06/2023,1244190,Clouds End Services Ltd,,Bi-Borough Director of Integrated Care," 1,000.00 "
08/06/2023,1244190,Clouds End Services Ltd,,Bi-Borough Director of Integrated Care," 1,200.00 "
02/05/2023,1246602,Community Housing Therapy,,Bi-Borough Director of Integrated Care," 1,662.86 "
24/05/2023,1246602,Community Housing Therapy,,Bi-Borough Director of Integrated Care," 1,940.00 "
21/06/2023,1246602,Community Housing Therapy,,Bi-Borough Director of Integrated Care," 1,940.00 "
26/04/2023,1268176,Conquest Care and Support,,Bi-Borough Director of Integrated Care," 1,257.01 "
01/06/2023,1268176,Conquest Care and Support,,Bi-Borough Director of Integrated Care," 1,366.87 "
21/06/2023,1268176,Conquest Care and Support,,Bi-Borough Director of Integrated Care," 1,366.87 "
02/05/2023,1301212,Diverse Services Ltd,,Bi-Borough Director of Integrated Care," 1,457.14 "
24/05/2023,1301212,Diverse Services Ltd,,Bi-Borough Director of Integrated Care," 1,700.00 "
21/06/2023,1301212,Diverse Services Ltd,,Bi-Borough Director of Integrated Care," 1,700.00 "
28/06/2023,1292085,Doughty Street Chambers,Legal Costs,Bi-Borough Director of Integrated Care, 535.00 
11/04/2023,1259597,Ethica Services LTD,,Bi-Borough Director of Integrated Care," 1,138.44 "
02/05/2023,1259597,Ethica Services LTD,,Bi-Borough Director of Integrated Care," 3,131.60 "
01/06/2023,1259597,Ethica Services LTD,,Bi-Borough Director of Integrated Care," 1,369.76 "
30/06/2023,1259597,Ethica Services LTD,,Bi-Borough Director of Integrated Care," 1,479.24 "
06/04/2023,1247257,Health Vision Uk,,Bi-Borough Director of Integrated Care, 706.39 
06/04/2023,1247257,Health Vision Uk,,Bi-Borough Director of Integrated Care," 1,025.91 "
06/04/2023,1247257,Health Vision Uk,,Bi-Borough Director of Integrated Care, 549.92 
06/04/2023,1247257,Health Vision Uk,,Bi-Borough Director of Integrated Care, 549.92 
06/04/2023,1247257,Health Vision Uk,,Bi-Borough Director of Integrated Care," 1,099.84 "
06/04/2023,1247257,Health Vision Uk,,Bi-Borough Director of Integrated Care, 639.94 
06/04/2023,1247257,Health Vision Uk,,Bi-Borough Director of Integrated Care, 551.56 
06/04/2023,1247257,Health Vision Uk,,Bi-Borough Director of Integrated Care," 1,621.68 "
06/04/2023,1247257,Health Vision Uk,,Bi-Borough Director of Integrated Care, 823.57 
06/04/2023,1247257,Health Vision Uk,,Bi-Borough Director of Integrated Care, 546.65 
06/04/2023,1247257,Health Vision Uk,,Bi-Borough Director of Integrated Care, 815.62 
06/04/2023,1247257,Health Vision Uk,,Bi-Borough Director of Integrated Care, 815.62 
06/04/2023,1247257,Health Vision Uk,,Bi-Borough Director of Integrated Care, 820.62 
15/05/2023,1247257,Health Vision Uk,,Bi-Borough Director of Integrated Care, 706.06 
15/05/2023,1247257,Health Vision Uk,,Bi-Borough Director of Integrated Care," 1,023.46 "
15/05/2023,1247257,Health Vision Uk,,Bi-Borough Director of Integrated Care, 530.28 
15/05/2023,1247257,Health Vision Uk,,Bi-Borough Director of Integrated Care, 544.03 
15/05/2023,1247257,Health Vision Uk,,Bi-Borough Director of Integrated Care," 1,099.84 "
15/05/2023,1247257,Health Vision Uk,,Bi-Borough Director of Integrated Care, 530.28 
15/05/2023,1247257,Health Vision Uk,,Bi-Borough Director of Integrated Care, 549.27 
15/05/2023,1247257,Health Vision Uk,,Bi-Borough Director of Integrated Care," 1,585.79 "
15/05/2023,1247257,Health Vision Uk,,Bi-Borough Director of Integrated Care, 819.32 
15/05/2023,1247257,Health Vision Uk,,Bi-Borough Director of Integrated Care, 542.06 
15/05/2023,1247257,Health Vision Uk,,Bi-Borough Director of Integrated Care, 815.17 
15/05/2023,1247257,Health Vision Uk,,Bi-Borough Director of Integrated Care, 815.17 
15/05/2023,1247257,Health Vision Uk,,Bi-Borough Director of Integrated Care, 834.70 
15/05/2023,1247257,Health Vision Uk,,Bi-Borough Director of Integrated Care, 549.92 
30/05/2023,1247257,Health Vision Uk,,Bi-Borough Director of Integrated Care, 707.04 
30/05/2023,1247257,Health Vision Uk,,Bi-Borough Director of Integrated Care," 1,031.62 "
30/05/2023,1247257,Health Vision Uk,,Bi-Borough Director of Integrated Care, 544.03 
30/05/2023,1247257,Health Vision Uk,,Bi-Borough Director of Integrated Care," 1,099.84 "
30/05/2023,1247257,Health Vision Uk,,Bi-Borough Director of Integrated Care, 576.44 
30/05/2023,1247257,Health Vision Uk,,Bi-Borough Director of Integrated Care, 565.07 
30/05/2023,1247257,Health Vision Uk,,Bi-Borough Director of Integrated Care," 1,597.56 "
30/05/2023,1247257,Health Vision Uk,,Bi-Borough Director of Integrated Care, 804.58 
30/05/2023,1247257,Health Vision Uk,,Bi-Borough Director of Integrated Care, 859.51 
30/05/2023,1247257,Health Vision Uk,,Bi-Borough Director of Integrated Care, 795.51 
30/05/2023,1247257,Health Vision Uk,,Bi-Borough Director of Integrated Care, 827.32 
30/05/2023,1247257,Health Vision Uk,,Bi-Borough Director of Integrated Care," 1,107.02 "
27/06/2023,1247257,Health Vision Uk,,Bi-Borough Director of Integrated Care, 763.84 
27/06/2023,1247257,Health Vision Uk,,Bi-Borough Director of Integrated Care," 1,107.53 "
27/06/2023,1247257,Health Vision Uk,,Bi-Borough Director of Integrated Care, 593.88 
27/06/2023,1247257,Health Vision Uk,,Bi-Borough Director of Integrated Care, 509.12 
27/06/2023,1247257,Health Vision Uk,,Bi-Borough Director of Integrated Care," 1,166.55 "
27/06/2023,1247257,Health Vision Uk,,Bi-Borough Director of Integrated Care, 652.76 
27/06/2023,1247257,Health Vision Uk,,Bi-Borough Director of Integrated Care, 545.90 
27/06/2023,1247257,Health Vision Uk,,Bi-Borough Director of Integrated Care," 1,741.63 "
27/06/2023,1247257,Health Vision Uk,,Bi-Borough Director of Integrated Care, 891.24 
27/06/2023,1247257,Health Vision Uk,,Bi-Borough Director of Integrated Care, 851.43 
27/06/2023,1247257,Health Vision Uk,,Bi-Borough Director of Integrated Care, 919.93 
27/06/2023,1247257,Health Vision Uk,,Bi-Borough Director of Integrated Care, 890.61 
27/06/2023,1247257,Health Vision Uk,,Bi-Borough Director of Integrated Care," 1,187.76 "
27/06/2023,1247257,Health Vision Uk,,Bi-Borough Director of Integrated Care," 1,560.09 "
27/06/2023,1247257,Health Vision Uk,,Bi-Borough Director of Integrated Care," 1,266.59 "
02/05/2023,1300210,Instant Care Solutions Ltd,,Bi-Borough Director of Integrated Care," 2,142.86 "
02/05/2023,1300210,Instant Care Solutions Ltd,,Bi-Borough Director of Integrated Care," 2,142.86 "
24/05/2023,1300210,Instant Care Solutions Ltd,,Bi-Borough Director of Integrated Care," 2,500.00 "
24/05/2023,1300210,Instant Care Solutions Ltd,,Bi-Borough Director of Integrated Care," 2,500.00 "
21/06/2023,1300210,Instant Care Solutions Ltd,,Bi-Borough Director of Integrated Care," 2,500.00 "
21/06/2023,1300210,Instant Care Solutions Ltd,,Bi-Borough Director of Integrated Care," 2,500.00 "
18/04/2023,1247526,Integrity Care and Support Ltd,,Bi-Borough Director of Integrated Care," 1,278.60 "
07/06/2023,1247526,Integrity Care and Support Ltd,,Bi-Borough Director of Integrated Care," 1,278.60 "
21/06/2023,1247526,Integrity Care and Support Ltd,,Bi-Borough Director of Integrated Care," 1,278.60 "
08/06/2023,1255762,J P Healthwise Limited,Legal Costs,Bi-Borough Director of Integrated Care," 1,153.45 "
06/04/2023,1256893,Kapital Care WCC,,Bi-Borough Director of Integrated Care, 996.24 
22/05/2023,1256893,Kapital Care WCC,,Bi-Borough Director of Integrated Care, 996.24 
30/05/2023,1256893,Kapital Care WCC,,Bi-Borough Director of Integrated Care," 1,085.79 "
28/06/2023,1256893,Kapital Care WCC,,Bi-Borough Director of Integrated Care," 1,075.76 "
15/05/2023,1247650,London Care Ltd,,Bi-Borough Director of Integrated Care, 788.31 
15/05/2023,1247650,London Care Ltd,,Bi-Borough Director of Integrated Care," 1,435.81 "
15/05/2023,1247650,London Care Ltd,,Bi-Borough Director of Integrated Care, 997.79 
15/05/2023,1247650,London Care Ltd,,Bi-Borough Director of Integrated Care, 800.67 
15/05/2023,1247650,London Care Ltd,,Bi-Borough Director of Integrated Care, 694.93 
15/05/2023,1247650,London Care Ltd,,Bi-Borough Director of Integrated Care, 526.35 
15/05/2023,1247650,London Care Ltd,,Bi-Borough Director of Integrated Care, 540.00 
15/05/2023,1247650,London Care Ltd,,Bi-Borough Director of Integrated Care," 1,281.84 "
15/05/2023,1247650,London Care Ltd,,Bi-Borough Director of Integrated Care, 628.48 
02/05/2023,1247852,Look Ahead Care and Support Ltd,Rent,Bi-Borough Director of Integrated Care," 1,117.10 "
24/05/2023,1247852,Look Ahead Care and Support Ltd,Rent,Bi-Borough Director of Integrated Care," 1,303.28 "
21/06/2023,1247852,Look Ahead Care and Support Ltd,Rent,Bi-Borough Director of Integrated Care," 1,303.28 "
02/05/2023,1262948,Lotus House,,Bi-Borough Director of Integrated Care," 2,509.71 "
24/05/2023,1262948,Lotus House,,Bi-Borough Director of Integrated Care," 2,928.00 "
21/06/2023,1262948,Lotus House,,Bi-Borough Director of Integrated Care," 2,928.00 "
19/04/2023,1259132,MMR Home Care LTD,,Bi-Borough Director of Integrated Care," 11,954.88 "
19/04/2023,1259132,MMR Home Care LTD,,Bi-Borough Director of Integrated Care," 11,954.88 "
19/04/2023,1259132,MMR Home Care LTD,,Bi-Borough Director of Integrated Care," 4,696.56 "
05/05/2023,1259132,MMR Home Care LTD,,Bi-Borough Director of Integrated Care, 515.91 
05/05/2023,1259132,MMR Home Care LTD,,Bi-Borough Director of Integrated Care, 569.28 
17/05/2023,1259132,MMR Home Care LTD,,Bi-Borough Director of Integrated Care," 11,954.88 "
25/05/2023,1259132,MMR Home Care LTD,,Bi-Borough Director of Integrated Care, 569.28 
25/05/2023,1259132,MMR Home Care LTD,,Bi-Borough Director of Integrated Care," 11,954.88 "
23/06/2023,1259132,MMR Home Care LTD,,Bi-Borough Director of Integrated Care, 614.72 
23/06/2023,1259132,MMR Home Care LTD,,Bi-Borough Director of Integrated Care," 12,909.12 "
02/05/2023,1244866,Micado Community Living Services,,Bi-Borough Director of Integrated Care," 2,468.57 "
24/05/2023,1244866,Micado Community Living Services,,Bi-Borough Director of Integrated Care," 2,880.00 "
21/06/2023,1244866,Micado Community Living Services,,Bi-Borough Director of Integrated Care," 2,880.00 "
02/05/2023,1270326,New Directions Flexible Social Care,,Bi-Borough Director of Integrated Care," 1,200.00 "
24/05/2023,1270326,New Directions Flexible Social Care,,Bi-Borough Director of Integrated Care," 1,400.00 "
21/06/2023,1270326,New Directions Flexible Social Care,,Bi-Borough Director of Integrated Care," 1,400.00 "
06/04/2023,1259940,PERSONAL PAYMENTS,Adult Social Care - Other Transfer Pay,Bi-Borough Director of Integrated Care," 2,076.20 "
06/04/2023,1284661,PERSONAL PAYMENTS,Social Care - Direct Payments,Bi-Borough Director of Integrated Care, 528.00 
06/04/2023,1291114,PERSONAL PAYMENTS,Social Care - Direct Payments,Bi-Borough Director of Integrated Care, 960.00 
06/04/2023,1254334,PERSONAL PAYMENTS,Adult Social Care - Other Transfer Pay,Bi-Borough Director of Integrated Care," 1,500.00 "
06/04/2023,1266895,PERSONAL PAYMENTS,Social Care - Direct Payments,Bi-Borough Director of Integrated Care, 728.00 
06/04/2023,1247409,PERSONAL PAYMENTS,Social Care - Direct Payments,Bi-Borough Director of Integrated Care, 508.84 
06/04/2023,1247479,PERSONAL PAYMENTS,Social Care - Direct Payments,Bi-Borough Director of Integrated Care," 1,639.08 "
04/05/2023,1291114,PERSONAL PAYMENTS,Social Care - Direct Payments,Bi-Borough Director of Integrated Care, 960.00 
04/05/2023,1254334,PERSONAL PAYMENTS,Adult Social Care - Other Transfer Pay,Bi-Borough Director of Integrated Care," 1,500.00 "
04/05/2023,1247479,PERSONAL PAYMENTS,Social Care - Direct Payments,Bi-Borough Director of Integrated Care," 1,639.08 "
04/05/2023,1247409,PERSONAL PAYMENTS,Social Care - Direct Payments,Bi-Borough Director of Integrated Care, 508.84 
04/05/2023,1259940,PERSONAL PAYMENTS,Adult Social Care - Other Transfer Pay,Bi-Borough Director of Integrated Care," 2,076.20 "
04/05/2023,1266895,PERSONAL PAYMENTS,Social Care - Direct Payments,Bi-Borough Director of Integrated Care, 728.00 
04/05/2023,1284661,PERSONAL PAYMENTS,Social Care - Direct Payments,Bi-Borough Director of Integrated Care, 528.00 
12/05/2023,1307802,PERSONAL PAYMENTS,Social Care - Direct Payments,Bi-Borough Director of Integrated Care, 500.00 
01/06/2023,1266895,PERSONAL PAYMENTS,Social Care - Direct Payments,Bi-Borough Director of Integrated Care, 728.00 
01/06/2023,1284661,PERSONAL PAYMENTS,Social Care - Direct Payments,Bi-Borough Director of Integrated Care, 528.00 
01/06/2023,1291114,PERSONAL PAYMENTS,Social Care - Direct Payments,Bi-Borough Director of Integrated Care, 960.00 
01/06/2023,1254334,PERSONAL PAYMENTS,Adult Social Care - Other Transfer Pay,Bi-Borough Director of Integrated Care," 1,500.00 "
01/06/2023,1247479,PERSONAL PAYMENTS,Social Care - Direct Payments,Bi-Borough Director of Integrated Care," 1,639.08 "
01/06/2023,1247409,PERSONAL PAYMENTS,Social Care - Direct Payments,Bi-Borough Director of Integrated Care, 508.84 
01/06/2023,1259940,PERSONAL PAYMENTS,Adult Social Care - Other Transfer Pay,Bi-Borough Director of Integrated Care," 2,076.20 "
29/06/2023,1266895,PERSONAL PAYMENTS,Social Care - Direct Payments,Bi-Borough Director of Integrated Care, 728.00 
29/06/2023,1280903,PERSONAL PAYMENTS,Social Care - Direct Payments,Bi-Borough Director of Integrated Care," 1,120.50 "
29/06/2023,1284661,PERSONAL PAYMENTS,Social Care - Direct Payments,Bi-Borough Director of Integrated Care, 528.00 
29/06/2023,1291114,PERSONAL PAYMENTS,Social Care - Direct Payments,Bi-Borough Director of Integrated Care, 960.00 
29/06/2023,1254334,PERSONAL PAYMENTS,Adult Social Care - Other Transfer Pay,Bi-Borough Director of Integrated Care," 1,500.00 "
29/06/2023,1246066,Barrie Bookkeeping & Payroll,Adult Social Care - Other Transfer Pay,Bi-Borough Director of Integrated Care," 2,528.95 "
29/06/2023,1247479,PERSONAL PAYMENTS,Social Care - Direct Payments,Bi-Borough Director of Integrated Care," 1,639.08 "
29/06/2023,1247409,PERSONAL PAYMENTS,Social Care - Direct Payments,Bi-Borough Director of Integrated Care, 508.84 
29/06/2023,1259940,PERSONAL PAYMENTS,Adult Social Care - Other Transfer Pay,Bi-Borough Director of Integrated Care," 2,076.20 "
15/05/2023,1248541,Priory Nursing Agency & Home Care,,Bi-Borough Director of Integrated Care," 3,715.20 "
05/06/2023,1248541,Priory Nursing Agency & Home Care,,Bi-Borough Director of Integrated Care," 4,179.60 "
27/06/2023,1248541,Priory Nursing Agency & Home Care,,Bi-Borough Director of Integrated Care," 6,501.60 "
13/04/2023,1245316,Respect Care Services Ltd,,Bi-Borough Director of Integrated Care, 640.44 
05/05/2023,1245316,Respect Care Services Ltd,,Bi-Borough Director of Integrated Care, 640.44 
18/05/2023,1245316,Respect Care Services Ltd,,Bi-Borough Director of Integrated Care, 640.44 
30/05/2023,1245316,Respect Care Services Ltd,,Bi-Borough Director of Integrated Care, 691.56 
30/05/2023,1245316,Respect Care Services Ltd,,Bi-Borough Director of Integrated Care, 640.44 
12/06/2023,1245316,Respect Care Services Ltd,,Bi-Borough Director of Integrated Care, 691.56 
02/05/2023,1248618,Riverside Echg,Rent,Bi-Borough Director of Integrated Care, 717.12 
02/05/2023,1248618,Riverside Echg,Rent,Bi-Borough Director of Integrated Care, 730.56 
24/05/2023,1248618,Riverside Echg,Rent,Bi-Borough Director of Integrated Care, 836.64 
24/05/2023,1248618,Riverside Echg,Rent,Bi-Borough Director of Integrated Care, 852.32 
21/06/2023,1248618,Riverside Echg,Rent,Bi-Borough Director of Integrated Care, 836.64 
21/06/2023,1248618,Riverside Echg,Rent,Bi-Borough Director of Integrated Care, 852.32 
18/05/2023,1274076,Royal Association for Deaf People,,Bi-Borough Director of Integrated Care, 840.00 
09/06/2023,1274076,Royal Association for Deaf People,,Bi-Borough Director of Integrated Care, 665.00 
15/06/2023,1274076,Royal Association for Deaf People,,Bi-Borough Director of Integrated Care, 840.00 
02/05/2023,1272438,ST GEORGES SUPPORTED LIVING LTD,,Bi-Borough Director of Integrated Care," 1,457.14 "
24/05/2023,1272438,ST GEORGES SUPPORTED LIVING LTD,,Bi-Borough Director of Integrated Care," 1,700.00 "
21/06/2023,1272438,ST GEORGES SUPPORTED LIVING LTD,,Bi-Borough Director of Integrated Care," 1,700.00 "
04/04/2023,1248843,Sage Care Ltd,,Bi-Borough Director of Integrated Care," 2,425.21 "
04/04/2023,1248843,Sage Care Ltd,,Bi-Borough Director of Integrated Care," 1,781.68 "
04/04/2023,1248843,Sage Care Ltd,,Bi-Borough Director of Integrated Care, 681.55 
12/04/2023,1248843,Sage Care Ltd,,Bi-Borough Director of Integrated Care," 2,435.36 "
12/04/2023,1248843,Sage Care Ltd,,Bi-Borough Director of Integrated Care," 1,886.42 "
12/04/2023,1248843,Sage Care Ltd,,Bi-Borough Director of Integrated Care, 549.92 
12/04/2023,1248843,Sage Care Ltd,,Bi-Borough Director of Integrated Care, 702.68 
05/05/2023,1248843,Sage Care Ltd,,Bi-Borough Director of Integrated Care, 549.92 
05/05/2023,1248843,Sage Care Ltd,,Bi-Borough Director of Integrated Care," 2,435.36 "
05/05/2023,1248843,Sage Care Ltd,,Bi-Borough Director of Integrated Care," 1,924.72 "
09/06/2023,1248843,Sage Care Ltd,,Bi-Borough Director of Integrated Care," 2,435.36 "
09/06/2023,1248843,Sage Care Ltd,,Bi-Borough Director of Integrated Care," 1,924.72 "
09/06/2023,1248843,Sage Care Ltd,,Bi-Borough Director of Integrated Care, 559.12 
02/05/2023,1245584,Single Homeless Project,Rent,Bi-Borough Director of Integrated Care," 1,416.14 "
24/05/2023,1245584,Single Homeless Project,Rent,Bi-Borough Director of Integrated Care," 1,652.16 "
21/06/2023,1245584,Single Homeless Project,Rent,Bi-Borough Director of Integrated Care," 1,652.16 "
12/04/2023,1248913,Smithfield Health & Social Care,,Bi-Borough Director of Integrated Care, 911.74 
11/05/2023,1248913,Smithfield Health & Social Care,,Bi-Borough Director of Integrated Care, 742.60 
12/06/2023,1248913,Smithfield Health & Social Care,,Bi-Borough Director of Integrated Care, 802.16 
20/06/2023,1248913,Smithfield Health & Social Care,,Bi-Borough Director of Integrated Care, 792.56 
02/05/2023,1248970,St Martin Of Tours Ha Ltd (Use,,Bi-Borough Director of Integrated Care," 1,662.86 "
02/05/2023,1248970,St Martin Of Tours Ha Ltd (Use,,Bi-Borough Director of Integrated Care," 1,662.86 "
02/05/2023,1248970,St Martin Of Tours Ha Ltd (Use,,Bi-Borough Director of Integrated Care," 3,257.14 "
02/05/2023,1248970,St Martin Of Tours Ha Ltd (Use,,Bi-Borough Director of Integrated Care," 1,311.43 "
02/05/2023,1248970,St Martin Of Tours Ha Ltd (Use,,Bi-Borough Director of Integrated Care," 1,311.43 "
24/05/2023,1248970,St Martin Of Tours Ha Ltd (Use,,Bi-Borough Director of Integrated Care," 1,530.00 "
24/05/2023,1248970,St Martin Of Tours Ha Ltd (Use,,Bi-Borough Director of Integrated Care," 1,530.00 "
24/05/2023,1248970,St Martin Of Tours Ha Ltd (Use,,Bi-Borough Director of Integrated Care," 3,800.00 "
24/05/2023,1248970,St Martin Of Tours Ha Ltd (Use,,Bi-Borough Director of Integrated Care," 1,940.00 "
24/05/2023,1248970,St Martin Of Tours Ha Ltd (Use,,Bi-Borough Director of Integrated Care," 1,940.00 "
21/06/2023,1248970,St Martin Of Tours Ha Ltd (Use,,Bi-Borough Director of Integrated Care," 1,940.00 "
21/06/2023,1248970,St Martin Of Tours Ha Ltd (Use,,Bi-Borough Director of Integrated Care," 1,940.00 "
21/06/2023,1248970,St Martin Of Tours Ha Ltd (Use,,Bi-Borough Director of Integrated Care," 3,800.00 "
21/06/2023,1248970,St Martin Of Tours Ha Ltd (Use,,Bi-Borough Director of Integrated Care," 1,530.00 "
21/06/2023,1248970,St Martin Of Tours Ha Ltd (Use,,Bi-Borough Director of Integrated Care," 1,530.00 "
02/05/2023,1245636,St Mungos Broadway (Grants &,Rent,Bi-Borough Director of Integrated Care," 1,390.59 "
24/05/2023,1245636,St Mungos Broadway (Grants &,Rent,Bi-Borough Director of Integrated Care," 1,622.36 "
21/06/2023,1245636,St Mungos Broadway (Grants &,Rent,Bi-Borough Director of Integrated Care," 1,622.36 "
02/05/2023,1246095,Theana Ltd T/a Enlighten Homes,,Bi-Borough Director of Integrated Care," 2,031.43 "
02/05/2023,1246095,Theana Ltd T/a Enlighten Homes,,Bi-Borough Director of Integrated Care," 2,031.43 "
24/05/2023,1246095,Theana Ltd T/a Enlighten Homes,,Bi-Borough Director of Integrated Care," 2,370.00 "
24/05/2023,1246095,Theana Ltd T/a Enlighten Homes,,Bi-Borough Director of Integrated Care," 2,370.00 "
